Workbook

Sheet Location
A1: General Information
B2: PHA/Zip Code* Lookup | D2: AL001
B3: *If zip code is unavailable, choose adjacent zip code.
B4: Name of Housing Authority/City | D4: =VLOOKUP($D$2,pha_average_hdd_cdd,28,FALSE) -> Birmingham
B6: State | D6: =VLOOKUP($D$2,pha_average_hdd_cdd,30,FALSE) -> AL
B8: Form Date | D8: July 31,2015
B10: Include Allowance for Air Conditioning | F10: FALSE
A12: Climate Data (Degree Days)
C14: HDD Jan | D14: =VLOOKUP(Location!$D$2,pha_average_hdd_cdd,2,FALSE) -> 671.2857056 | E14: required
C15: HDD Feb | D15: =VLOOKUP(Location!$D$2,pha_average_hdd_cdd,3) -> 496.8571472 | E15: required
C16: HDD Mar | D16: =VLOOKUP(Location!$D$2,pha_average_hdd_cdd,4) -> 333.5714417 | E16: required
C17: HDD Apr | D17: =VLOOKUP(Location!$D$2,pha_average_hdd_cdd,5) -> 145.7142792 | E17: required
C18: HDD May | D18: =VLOOKUP(Location!$D$2,pha_average_hdd_cdd,6) -> 27.4285717 | E18: required
C19: HDD Jun | D19: =VLOOKUP(Location!$D$2,pha_average_hdd_cdd,7) -> 1.142857194 | E19: required
C20: HDD Jul | D20: =VLOOKUP(Location!$D$2,pha_average_hdd_cdd,8) -> 0 | E20: required
C21: HDD Aug | D21: =VLOOKUP(Location!$D$2,pha_average_hdd_cdd,9) -> 0 | E21: required
C22: HDD Sep | D22: =VLOOKUP(Location!$D$2,pha_average_hdd_cdd,10) -> 10.28571415 | E22: required
C23: HDD Oct | D23: =VLOOKUP(Location!$D$2,pha_average_hdd_cdd,11) -> 126.5714264 | E23: required
C24: HDD Nov | D24: =VLOOKUP(Location!$D$2,pha_average_hdd_cdd,12) -> 345.2857056 | E24: required
C25: HDD Dec | D25: =VLOOKUP(Location!$D$2,pha_average_hdd_cdd,13) -> 602.8571167 | E25: required
C26: HDD Annual | D26: =VLOOKUP(Location!$D$2,pha_average_hdd_cdd,14) -> 2761
C27: CDD Jan | D27: =VLOOKUP(Location!$D$2,pha_average_hdd_cdd,15) -> 1 | E27: required
C28: CDD Feb | D28: =VLOOKUP(Location!$D$2,pha_average_hdd_cdd,16) -> 3 | E28: required
C29: CDD Mar | D29: =VLOOKUP(Location!$D$2,pha_average_hdd_cdd,17) -> 18 | E29: required
C30: CDD Apr | D30: =VLOOKUP(Location!$D$2,pha_average_hdd_cdd,18) -> 62 | E30: required
C31: CDD May | D31: =VLOOKUP(Location!$D$2,pha_average_hdd_cdd,19) -> 198 | E31: required
C32: CDD Jun | D32: =VLOOKUP(Location!$D$2,pha_average_hdd_cdd,20) -> 382 | E32: required
C33: CDD Jul | D33: =VLOOKUP(Location!$D$2,pha_average_hdd_cdd,21) -> 499 | E33: required
C34: CDD Aug | D34: =VLOOKUP(Location!$D$2,pha_average_hdd_cdd,22) -> 487 | E34: required
C35: CDD Sep | D35: =VLOOKUP(Location!$D$2,pha_average_hdd_cdd,23) -> 300 | E35: required
C36: CDD Oct | D36: =VLOOKUP(Location!$D$2,pha_average_hdd_cdd,24) -> 90 | E36: required
C37: CDD Nov | D37: =VLOOKUP(Location!$D$2,pha_average_hdd_cdd,25) -> 15 | E37: required
C38: CDD Dec | D38: =VLOOKUP(Location!$D$2,pha_average_hdd_cdd,26) -> 3 | E38: required
C39: CDD Annual | D39: =VLOOKUP(Location!$D$2,pha_average_hdd_cdd,27) -> 2058
C40: Typical Low Temp | D40: =VLOOKUP(Location!$D$2,pha_average_hdd_cdd,29) -> 44 | E40: required

Sheet PHA_Average_HDD_CDD (hidden)
A1: Participant | B1: HDD_Jan | C1: HDD_Feb | D1: HDD_Mar | E1: HDD_Apr | F1: HDD_May | G1: HDD_Jun | H1: HDD_Jul | I1: HDD_Aug | J1: HDD_Sep | K1: HDD_Oct | L1: HDD_Nov | M1: HDD_Dec | N1: HDD_Annual | O1: CDD_Jan | P1: CDD_Feb | Q1: CDD_Mar | R1: CDD_Apr | S1: CDD_May | T1: CDD_Jun | U1: CDD_Jul | V1: CDD_Aug | W1: CDD_Sep | X1: CDD_Oct | Y1: CDD_Nov | Z1: CDD_Dec | AA1: CDD_Annual | AB1: HA_Name | AC1: Monthly_Min_Temp | AD1: state
A2: AL001 | B2: 671.2857056 | C2: 496.8571472 | D2: 333.5714417 | E2: 145.7142792 | F2: 27.4285717 | G2: 1.142857194 | H2: 0 | I2: 0 | J2: 10.28571415 | K2: 126.5714264 | L2: 345.2857056 | M2: 602.8571167 | N2: 2761 | O2: 1 | P2: 3 | Q2: 18 | R2: 62 | S2: 198 | T2: 382 | U2: 499 | V2: 487 | W2: 300 | X2: 90 | Y2: 15 | Z2: 3 | AA2: 2058 | AB2: Birmingham | AC2: 44 | AD2: AL
A3: AL002 | B3: 462.8999939 | C3: 329.1000061 | D3: 192.1999969 | E3: 60.79999924 | F3: 3.799999952 | G3: 0 | H3: 0 | I3: 0 | J3: 1.5 | K3: 47.90000153 | L3: 194.5 | M3: 399.1000061 | N3: 1691.800049 | O3: 2 | P3: 6 | Q3: 25 | R3: 99 | S3: 278 | T3: 444 | U3: 528 | V3: 528 | W3: 406 | X3: 175 | Y3: 36 | Z3: 9 | AA3: 2536 | AB3: Mobile | AC3: 48 | AD3: AL
A4: AL004 | B4: 696 | C4: 523 | D4: 358.3333435 | E4: 163.3333282 | F4: 34.66666794 | G4: 1.666666627 | H4: 0 | I4: 0 | J4: 13.66666698 | K4: 144.6666718 | L4: 373.6666565 | M4: 629.666687 | N4: 2938.666748 | O4: 0 | P4: 1 | Q4: 12 | R4: 49 | S4: 178 | T4: 359 | U4: 465 | V4: 453 | W4: 266 | X4: 71 | Y4: 11 | Z4: 2 | AA4: 1867 | AB4: Anniston | AC4: 43 | AD4: AL
A5: AL005 | B5: 579.5 | C5: 418.5 | D5: 275 | E5: 107 | F5: 12.5 | G5: 0 | H5: 0 | I5: 0 | J5: 3 | K5: 75.5 | L5: 272.5 | M5: 516 | N5: 2259.5 | O5: 1 | P5: 3 | Q5: 23 | R5: 77 | S5: 254 | T5: 446 | U5: 544 | V5: 524 | W5: 350 | X5: 118 | Y5: 24 | Z5: 4 | AA5: 2368 | AB5: Phenix City | AC5: 46 | AD5: AL
A6: AL006 | B6: 581.9000244 | C6: 412.7000122 | D6: 260.5 | E6: 104.3000031 | F6: 13.30000019 | G6: 0 | H6: 0 | I6: 0 | J6: 6 | K6: 98.69999695 | L6: 283.1000061 | M6: 521.7000122 | N6: 2282.199951 | O6: 2 | P6: 4 | Q6: 23 | R6: 72 | S6: 238 | T6: 419 | U6: 521 | V6: 510 | W6: 341 | X6: 115 | Y6: 23 | Z6: 6 | AA6: 2274 | AB6: Montgomery | AC6: 45 | AD6: AL
A7: AL007 | B7: 503 | C7: 343 | D7: 211 | E7: 70 | F7: 6 | G7: 0 | H7: 0 | I7: 0 | J7: 2 | K7: 57 | L7: 218 | M7: 436 | N7: 1846 | O7: 4 | P7: 6 | Q7: 21 | R7: 90 | S7: 292 | T7: 444 | U7: 524 | V7: 499 | W7: 348 | X7: 135 | Y7: 29 | Z7: 10 | AA7: 2402 | AB7: Dothan | AC7: 46 | AD7: AL
A8: AL010 | B8: 670.7857056 | C8: 496.1428528 | D8: 332.5 | E8: 144 | F8: 25.5 | G8: 1 | H8: 0 | I8: 0 | J8: 10.14285755 | K8: 127.7142868 | L8: 344.1428528 | M8: 604.2142944 | N8: 2756.142822 | O8: 0 | P8: 2 | Q8: 11 | R8: 50 | S8: 188 | T8: 364 | U8: 480 | V8: 467 | W8: 282 | X8: 76 | Y8: 11 | Z8: 2 | AA8: 1933 | AB8: Fairfield | AC8: 43 | AD8: AL
A9: AL011 | B9: 784.5 | C9: 603.75 | D9: 426.75 | E9: 205.25 | F9: 53.25 | G9: 2.25 | H9: 0 | I9: 0.75 | J9: 15.75 | K9: 165 | L9: 420.25 | M9: 712.75 | N9: 3390.25 | O9: 0 | P9: 1 | Q9: 7 | R9: 35 | S9: 149 | T9: 331 | U9: 446 | V9: 442 | W9: 255 | X9: 53 | Y9: 7 | Z9: 0 | AA9: 1726 | AB9: Fort Payne | AC9: 42 | AD9: AL
A10: AL012 | B10: 741.666687 | C10: 563.166687 | D10: 385.5 | E10: 179.5 | F10: 42.5 | G10: 1.833333373 | H10: 0 | I10: 0 | J10: 15.83333302 | K10: 161.5 | L10: 396.5 | M10: 668 | N10: 3156 | O10: 0 | P10: 1 | Q10: 9 | R10: 34 | S10: 151 | T10: 326 | U10: 442 | V10: 436 | W10: 247 | X10: 49 | Y10: 8 | Z10: 1 | AA10: 1704 | AB10: Jasper | AC10: 40 | AD10: AL
A11: AL013 | B11: 661.2000122 | C11: 487.6000061 | D11: 324.7999878 | E11: 139.6000061 | F11: 24.79999924 | G11: 1 | H11: 0 | I11: 0 | J11: 9 | K11: 119.8000031 | L11: 334.7999878 | M11: 592.7999878 | N11: 2695.399902 | O11: 1 | P11: 3 | Q11: 18 | R11: 62 | S11: 198 | T11: 382 | U11: 499 | V11: 487 | W11: 300 | X11: 90 | Y11: 15 | Z11: 3 | AA11: 2058 | AB11: Tarrant | AC11: 44 | AD11: AL
A12: AL014 | B12: 744.5 | C12: 561 | D12: 384.5 | E12: 162.5 | F12: 27 | G12: 0.5 | H12: 0 | I12: 0 | J12: 6.5 | K12: 122.5 | L12: 371 | M12: 660.5 | N12: 3040.5 | O12: 0 | P12: 1 | Q12: 7 | R12: 45 | S12: 164 | T12: 353 | U12: 468 | V12: 459 | W12: 274 | X12: 69 | Y12: 7 | Z12: 2 | AA12: 1849 | AB12: Guntersville | AC12: 43 | AD12: AL
A13: AL050 | B13: 622 | C13: 454 | D13: 297 | E13: 120 | F13: 15 | G13: 1 | H13: 0 | I13: 0 | J13: 6 | K13: 87 | L13: 277 | M13: 553 | N13: 2432 | O13: 1 | P13: 2 | Q13: 19 | R13: 59 | S13: 213 | T13: 380 | U13: 482 | V13: 470 | W13: 310 | X13: 112 | Y13: 19 | Z13: 3 | AA13: 2070 | AB13: Auburn | AC13: 44 | AD13: AL
A14: AL052 | B14: 750.25 | C14: 569 | D14: 388.75 | E14: 168.25 | F14: 34.25 | G14: 0.75 | H14: 0 | I14: 0 | J14: 10.25 | K14: 155.25 | L14: 410.75 | M14: 689 | N14: 3176.5 | O14: 0 | P14: 1 | Q14: 11 | R14: 44 | S14: 144 | T14: 307 | U14: 425 | V14: 420 | W14: 228 | X14: 47 | Y14: 6 | Z14: 1 | AA14: 1634 | AB14: Cullman | AC14: 39 | AD14: AL
A15: AL053 | B15: 791.666687 | C15: 607.666687 | D15: 430 | E15: 210.3333282 | F15: 53.33333206 | G15: 2.666666746 | H15: 0 | I15: 0 | J15: 20.66666603 | K15: 182.3333282 | L15: 428.3333435 | M15: 710.666687 | N15: 3437.666748 | O15: 1 | P15: 1 | Q15: 7 | R15: 34 | S15: 139 | T15: 316 | U15: 439 | V15: 427 | W15: 239 | X15: 52 | Y15: 6 | Z15: 1 | AA15: 1662 | AB15: Hamilton | AC15: 38 | AD15: AL
A16: AL054 | B16: 820.7999878 | C16: 640 | D16: 446.3999939 | E16: 197.1999969 | F16: 43.79999924 | G16: 0.6000000238 | H16: 0 | I16: 0.200000003 | J16: 12.39999962 | K16: 184.1999969 | L16: 437.6000061 | M16: 733.5999756 | N16: 3516.800049 | O16: 0 | P16: 0 | Q16: 1 | R16: 21 | S16: 132 | T16: 313 | U16: 429 | V16: 426 | W16: 215 | X16: 38 | Y16: 1 | Z16: 0 | AA16: 1576 | AB16: Florence | AC16: 41 | AD16: AL
A17: AL055 | B17: 739.5999756 | C17: 560.7999878 | D17: 384.2000122 | E17: 178.6000061 | F17: 42 | G17: 1.799999952 | H17: 0 | I17: 0 | J17: 15.60000038 | K17: 160 | L17: 394.2000122 | M17: 665.5999756 | N17: 3142.399902 | O17: 0 | P17: 1 | Q17: 9 | R17: 34 | S17: 151 | T17: 326 | U17: 442 | V17: 436 | W17: 247 | X17: 49 | Y17: 8 | Z17: 1 | AA17: 1704 | AB17: Cordova | AC17: 40 | AD17: AL
A18: AL060 | B18: 794.25 | C18: 625.75 | D18: 424.25 | E18: 196.5 | F18: 48.25 | G18: 1.5 | H18: 0 | I18: 0 | J18: 20.5 | K18: 197.25 | L18: 431.5 | M18: 703.75 | N18: 3443.5 | O18: 1 | P18: 1 | Q18: 10 | R18: 39 | S18: 140 | T18: 314 | U18: 434 | V18: 420 | W18: 236 | X18: 54 | Y18: 8 | Z18: 1 | AA18: 1658 | AB18: Russellville | AC18: 41 | AD18: AL
A19: AL061 | B19: 645.5 | C19: 473.25 | D19: 328.25 | E19: 144.25 | F19: 24.25 | G19: 0.5 | H19: 0 | I19: 0 | J19: 7 | K19: 113 | L19: 322.5 | M19: 578.25 | N19: 2636.75 | O19: 0 | P19: 1 | Q19: 8 | R19: 35 | S19: 158 | T19: 328 | U19: 440 | V19: 420 | W19: 250 | X19: 65 | Y19: 10 | Z19: 2 | AA19: 1717 | AB19: Opelika | AC19: 42 | AD19: AL
A20: AL063 | B20: 736 | C20: 564.5 | D20: 392.75 | E20: 182.5 | F20: 40 | G20: 2.5 | H20: 0 | I20: 0 | J20: 15.25 | K20: 153 | L20: 387 | M20: 666 | N20: 3139.5 | O20: 0 | P20: 1 | Q20: 10 | R20: 41 | S20: 150 | T20: 325 | U20: 443 | V20: 432 | W20: 245 | X20: 55 | Y20: 8 | Z20: 2 | AA20: 1712 | AB20: Oneonta | AC20: 41 | AD20: AL
A21: AL068 | B21: 786.75 | C21: 606.75 | D21: 422 | E21: 188.25 | F21: 43 | G21: 1.25 | H21: 0 | I21: 0 | J21: 15.25 | K21: 174.75 | L21: 419.5 | M21: 708 | N21: 3365.5 | O21: 0 | P21: 0 | Q21: 1 | R21: 21 | S21: 132 | T21: 313 | U21: 429 | V21: 426 | W21: 215 | X21: 38 | Y21: 1 | Z21: 0 | AA21: 1576 | AB21: Sheffield | AC21: 41 | AD21: AL
A22: AL069 | B22: 707.666687 | C22: 538.333313 | D22: 372.3333435 | E22: 151.6666718 | F22: 25.66666603 | G22: 0.6666666865 | H22: 0 | I22: 0 | J22: 6.666666508 | K22: 136.3333282 | L22: 380.6666565 | M22: 634.333313 | N22: 2954.333252 | O22: 1 | P22: 3 | Q22: 18 | R22: 62 | S22: 198 | T22: 382 | U22: 499 | V22: 487 | W22: 300 | X22: 90 | Y22: 15 | Z22: 3 | AA22: 2058 | AB22: Leeds | AC22: 44 | AD22: AL
A23: AL072 | B23: 645.777771 | C23: 472.8888855 | D23: 312 | E23: 130.3333282 | F23: 20.44444466 | G23: 0.2222222239 | H23: 0 | I23: 0 | J23: 8.444444656 | K23: 122.1111145 | L23: 327.3333435 | M23: 583.777771 | N23: 2623.333252 | O23: 1 | P23: 3 | Q23: 13 | R23: 58 | S23: 194 | T23: 374 | U23: 487 | V23: 468 | W23: 286 | X23: 79 | Y23: 13 | Z23: 3 | AA23: 1979 | AB23: Columbiana | AC23: 44 | AD23: AL
A24: AL073 | B24: 500.5 | C24: 342.5 | D24: 209.5 | E24: 73.5 | F24: 6.5 | G24: 0 | H24: 0 | I24: 0 | J24: 2 | K24: 56 | L24: 213.5 | M24: 434 | N24: 1838 | O24: 4 | P24: 6 | Q24: 21 | R24: 90 | S24: 292 | T24: 444 | U24: 524 | V24: 499 | W24: 348 | X24: 135 | Y24: 29 | Z24: 10 | AA24: 2402 | AB24: Ozark | AC24: 46 | AD24: AL
A25: AL075 | B25: 757.25 | C25: 579 | D25: 402.625 | E25: 180.5 | F25: 38.375 | G25: 1.25 | H25: 0 | I25: 0.25 | J25: 11.75 | K25: 144.25 | L25: 394.5 | M25: 680.875 | N25: 3190.625 | O25: 0 | P25: 0 | Q25: 3 | R25: 26 | S25: 150 | T25: 339 | U25: 460 | V25: 452 | W25: 256 | X25: 59 | Y25: 1 | Z25: 0 | AA25: 1746 | AB25: Boaz | AC25: 43 | AD25: AL
A26: AL077 | B26: 631 | C26: 458 | D26: 294 | E26: 121 | F26: 16 | G26: 1 | H26: 0 | I26: 0 | J26: 7 | K26: 110 | L26: 320 | M26: 564 | N26: 2522 | O26: 2 | P26: 3 | Q26: 18 | R26: 65 | S26: 223 | T26: 403 | U26: 518 | V26: 505 | W26: 320 | X26: 94 | Y26: 17 | Z26: 4 | AA26: 2172 | AB26: Tuscaloosa | AC26: 44 | AD26: AL
A27: AL090 | B27: 775.25 | C27: 599.5 | D27: 404.5 | E27: 184 | F27: 42.25 | G27: 1.25 | H27: 0 | I27: 0 | J27: 17.5 | K27: 175.25 | L27: 411.25 | M27: 687.25 | N27: 3298 | O27: 0 | P27: 1 | Q27: 4 | R27: 24 | S27: 107 | T27: 284 | U27: 400 | V27: 381 | W27: 185 | X27: 33 | Y27: 1 | Z27: 0 | AA27: 1420 | AB27: Phil Campbell | AC27: 40 | AD27: AL
A28: AL091 | B28: 770.333313 | C28: 599.666687 | D28: 425 | E28: 196 | F28: 43.33333206 | G28: 0.6666666865 | H28: 0 | I28: 0 | J28: 12.66666698 | K28: 165.3333282 | L28: 414.6666565 | M28: 697 | N28: 3324.666748 | O28: 0 | P28: 1 | Q28: 8 | R28: 38 | S28: 158 | T28: 349 | U28: 466 | V28: 462 | W28: 270 | X28: 61 | Y28: 8 | Z28: 1 | AA28: 1822 | AB28: Arab | AC28: 43 | AD28: AL
A29: AL099 | B29: 802 | C29: 612.666687 | D29: 442.6666565 | E29: 207.3333282 | F29: 49.33333206 | G29: 2.333333254 | H29: 0 | I29: 0 | J29: 19 | K29: 190 | L29: 443 | M29: 724.666687 | N29: 3493 | O29: 0 | P29: 1 | Q29: 5 | R29: 31 | S29: 134 | T29: 320 | U29: 429 | V29: 416 | W29: 221 | X29: 44 | Y29: 5 | Z29: 1 | AA29: 1607 | AB29: Scottsboro | AC29: 40 | AD29: AL
A30: AL103 | B30: 514 | C30: 358.5 | D30: 221 | E30: 81 | F30: 8 | G30: 0 | H30: 0 | I30: 0 | J30: 2.5 | K30: 66.5 | L30: 232 | M30: 448.5 | N30: 1932 | O30: 4 | P30: 7 | Q30: 29 | R30: 81 | S30: 252 | T30: 417 | U30: 494 | V30: 479 | W30: 338 | X30: 127 | Y30: 31 | Z30: 9 | AA30: 2268 | AB30: Hartford | AC30: 44 | AD30: AL
A31: AL105 | B31: 661 | C31: 487.6666565 | D31: 329 | E31: 144 | F31: 28.66666603 | G31: 1 | H31: 0 | I31: 0 | J31: 12.33333302 | K31: 135 | L31: 349.6666565 | M31: 595.333313 | N31: 2743.666748 | O31: 0 | P31: 1 | Q31: 7 | R31: 35 | S31: 147 | T31: 321 | U31: 445 | V31: 423 | W31: 243 | X31: 55 | Y31: 10 | Z31: 1 | AA31: 1688 | AB31: Talladega | AC31: 41 | AD31: AL
A32: AL107 | B32: 498 | C32: 342 | D32: 208 | E32: 77 | F32: 7 | G32: 0 | H32: 0 | I32: 0 | J32: 2 | K32: 55 | L32: 209 | M32: 432 | N32: 1830 | O32: 4 | P32: 8 | Q32: 36 | R32: 98 | S32: 275 | T32: 435 | U32: 510 | V32: 494 | W32: 359 | X32: 150 | Y32: 38 | Z32: 9 | AA32: 2416 | AB32: Elba | AC32: 46 | AD32: AL
A33: AL112 | B33: 514.5 | C33: 369.5 | D33: 244 | E33: 91 | F33: 10 | G33: 0 | H33: 0 | I33: 0 | J33: 4 | K33: 79.5 | L33: 247.5 | M33: 463.5 | N33: 2023.5 | O33: 2 | P33: 7 | Q33: 19 | R33: 89 | S33: 281 | T33: 451 | U33: 530 | V33: 522 | W33: 378 | X33: 139 | Y33: 20 | Z33: 7 | AA33: 2445 | AB33: Opp | AC33: 47 | AD33: AL
A34: AL114 | B34: 717 | C34: 537.5 | D34: 376.25 | E34: 177.75 | F34: 43 | G34: 2.5 | H34: 0 | I34: 0 | J34: 17 | K34: 161.5 | L34: 388.5 | M34: 649.5 | N34: 3070.5 | O34: 0 | P34: 1 | Q34: 7 | R34: 29 | S34: 131 | T34: 292 | U34: 403 | V34: 392 | W34: 214 | X34: 46 | Y34: 7 | Z34: 1 | AA34: 1523 | AB34: Lineville | AC34: 40 | AD34: AL
A35: AL115 | B35: 498 | C35: 342 | D35: 208 | E35: 77 | F35: 7 | G35: 0 | H35: 0 | I35: 0 | J35: 2 | K35: 55 | L35: 209 | M35: 432 | N35: 1830 | O35: 4 | P35: 8 | Q35: 36 | R35: 98 | S35: 275 | T35: 435 | U35: 510 | V35: 494 | W35: 359 | X35: 150 | Y35: 38 | Z35: 9 | AA35: 2416 | AB35: Enterprise | AC35: 46 | AD35: AL
A36: AL116 | B36: 642.666687 | C36: 472 | D36: 311.3333435 | E36: 129 | F36: 19.33333397 | G36: 0.6666666865 | H36: 0 | I36: 0 | J36: 8.333333015 | K36: 121 | L36: 331 | M36: 580 | N36: 2615.333252 | O36: 2 | P36: 3 | Q36: 16 | R36: 60 | S36: 205 | T36: 389 | U36: 487 | V36: 477 | W36: 302 | X36: 83 | Y36: 14 | Z36: 4 | AA36: 2042 | AB36: York | AC36: 43 | AD36: AL
A37: AL121 | B37: 751.166687 | C37: 570.166687 | D37: 396.1666565 | E37: 173.3333282 | F37: 32.16666794 | G37: 1 | H37: 0 | I37: 0.1666666716 | J37: 9.833333015 | K37: 136.6666718 | L37: 381.5 | M37: 674.666687 | N37: 3126.833252 | O37: 0 | P37: 0 | Q37: 3 | R37: 26 | S37: 150 | T37: 339 | U37: 460 | V37: 452 | W37: 256 | X37: 59 | Y37: 1 | Z37: 0 | AA37: 1746 | AB37: Albertville | AC37: 43 | AD37: AL
A38: AL124 | B38: 506 | C38: 346.75 | D38: 211 | E38: 71 | F38: 6 | G38: 0 | H38: 0 | I38: 0 | J38: 2.25 | K38: 59.25 | L38: 219.25 | M38: 439.25 | N38: 1860.75 | O38: 4 | P38: 6 | Q38: 21 | R38: 90 | S38: 292 | T38: 444 | U38: 524 | V38: 499 | W38: 348 | X38: 135 | Y38: 29 | Z38: 10 | AA38: 2402 | AB38: Midland City | AC38: 46 | AD38: AL
A39: AL125 | B39: 668 | C39: 493.125 | D39: 330.75 | E39: 140.875 | F39: 24.375 | G39: 1 | H39: 0 | I39: 0 | J39: 9 | K39: 123.625 | L39: 342.875 | M39: 600.875 | N39: 2734.5 | O39: 0 | P39: 2 | Q39: 11 | R39: 50 | S39: 188 | T39: 364 | U39: 480 | V39: 467 | W39: 282 | X39: 76 | Y39: 11 | Z39: 2 | AA39: 1933 | AB39: Bessemer | AC39: 43 | AD39: AL
A40: AL129 | B40: 723.4000244 | C40: 545.2999878 | D40: 370.1000061 | E40: 168.1000061 | F40: 37.90000153 | G40: 1.600000024 | H40: 0 | I40: 0 | J40: 14.19999981 | K40: 150.5 | L40: 380.8999939 | M40: 650.2999878 | N40: 3042.300049 | O40: 1 | P40: 3 | Q40: 18 | R40: 62 | S40: 198 | T40: 382 | U40: 499 | V40: 487 | W40: 300 | X40: 90 | Y40: 15 | Z40: 3 | AA40: 2058 | AB40: Walker County | AC40: 44 | AD40: AL
A41: AL131 | B41: 584 | C41: 419 | D41: 264 | E41: 107.3333359 | F41: 14 | G41: 0 | H41: 0 | I41: 0 | J41: 3.666666746 | K41: 91 | L41: 285.6666565 | M41: 523.333313 | N41: 2292 | O41: 2 | P41: 4 | Q41: 23 | R41: 72 | S41: 238 | T41: 419 | U41: 521 | V41: 510 | W41: 341 | X41: 115 | Y41: 23 | Z41: 6 | AA41: 2274 | AB41: Prattville | AC41: 45 | AD41: AL
A42: AL138 | B42: 686 | C42: 510.6666565 | D42: 331 | E42: 144.3333282 | F42: 27.66666603 | G42: 0.6666666865 | H42: 0 | I42: 0 | J42: 12.33333302 | K42: 133 | L42: 344.6666565 | M42: 609.666687 | N42: 2800 | O42: 2 | P42: 3 | Q42: 18 | R42: 60 | S42: 193 | T42: 393 | U42: 494 | V42: 480 | W42: 302 | X42: 85 | Y42: 16 | Z42: 3 | AA42: 2049 | AB42: Gordo | AC42: 42 | AD42: AL
A43: AL139 | B43: 709 | C43: 533 | D43: 362.3999939 | E43: 158.1999969 | F43: 31.79999924 | G43: 1 | H43: 0 | I43: 0 | J43: 11 | K43: 139.8000031 | L43: 376.2000122 | M43: 638.7999878 | N43: 2961.199951 | O43: 0 | P43: 1 | Q43: 9 | R43: 47 | S43: 176 | T43: 364 | U43: 487 | V43: 467 | W43: 273 | X43: 67 | Y43: 6 | Z43: 1 | AA43: 1898 | AB43: Jacksonville | AC43: 43 | AD43: AL
A44: AL152 | B44: 631.5999756 | C44: 456 | D44: 293 | E44: 119.4000015 | F44: 17.60000038 | G44: 0.6000000238 | H44: 0 | I44: 0 | J44: 6.800000191 | K44: 106 | L44: 313 | M44: 562.7999878 | N44: 2506.800049 | O44: 2 | P44: 3 | Q44: 18 | R44: 65 | S44: 223 | T44: 403 | U44: 518 | V44: 505 | W44: 320 | X44: 94 | Y44: 17 | Z44: 4 | AA44: 2172 | AB44: Northport | AC44: 44 | AD44: AL
A45: AL154 | B45: 528.5 | C45: 377 | D45: 230.5 | E45: 76.5 | F45: 7.5 | G45: 0 | H45: 0 | I45: 0 | J45: 2 | K45: 73.5 | L45: 244.5 | M45: 460.5 | N45: 2000.5 | O45: 4 | P45: 7 | Q45: 26 | R45: 86 | S45: 262 | T45: 420 | U45: 497 | V45: 482 | W45: 340 | X45: 132 | Y45: 32 | Z45: 9 | AA45: 2297 | AB45: Atmore | AC45: 46 | AD45: AL
A46: AL155 | B46: 606 | C46: 445 | D46: 302 | E46: 127 | F46: 19 | G46: 0 | H46: 0 | I46: 0 | J46: 8 | K46: 102 | L46: 300 | M46: 545 | N46: 2454 | O46: 1 | P46: 3 | Q46: 14 | R46: 52 | S46: 192 | T46: 354 | U46: 443 | V46: 436 | W46: 289 | X46: 93 | Y46: 18 | Z46: 3 | AA46: 1898 | AB46: Greenville | AC46: 43 | AD46: AL
A47: AL160 | B47: 598 | C47: 437 | D47: 281 | E47: 122 | F47: 18 | G47: 0 | H47: 0 | I47: 0 | J47: 6 | K47: 93 | L47: 285 | M47: 520 | N47: 2360 | O47: 2 | P47: 3 | Q47: 19 | R47: 62 | S47: 224 | T47: 404 | U47: 505 | V47: 493 | W47: 321 | X47: 99 | Y47: 21 | Z47: 5 | AA47: 2158 | AB47: Tuskegee | AC47: 44 | AD47: AL
A48: AL165 | B48: 479.444458 | C48: 346.3333435 | D48: 213.8888855 | E48: 70.1111145 | F48: 5.666666508 | G48: 0 | H48: 0 | I48: 0 | J48: 2.111111164 | K48: 59.33333206 | L48: 208.777771 | M48: 414.222229 | N48: 1799.888916 | O48: 7 | P48: 8 | Q48: 31 | R48: 83 | S48: 255 | T48: 420 | U48: 499 | V48: 493 | W48: 351 | X48: 138 | Y48: 37 | Z48: 14 | AA48: 2336 | AB48: Foley | AC48: 46 | AD48: AL
A49: AL169 | B49: 459.6000061 | C49: 325.2000122 | D49: 187.1999969 | E49: 58.20000076 | F49: 3.400000095 | G49: 0 | H49: 0 | I49: 0 | J49: 1.399999976 | K49: 47 | L49: 192.1999969 | M49: 396.7999878 | N49: 1671 | O49: 2 | P49: 6 | Q49: 25 | R49: 99 | S49: 278 | T49: 444 | U49: 528 | V49: 528 | W49: 406 | X49: 175 | Y49: 36 | Z49: 9 | AA49: 2536 | AB49: Prichard | AC49: 48 | AD49: AL
A50: AL171 | B50: 692 | C50: 518 | D50: 365 | E50: 167 | F50: 36 | G50: 1 | H50: 0 | I50: 0 | J50: 13 | K50: 148 | L50: 376 | M50: 627 | N50: 2943 | O50: 1 | P50: 4 | Q50: 6 | R50: 42 | S50: 178 | T50: 366 | U50: 474 | V50: 458 | W50: 287 | X50: 83 | Y50: 10 | Z50: 3 | AA50: 1912 | AB50: Uniontown | AC50: 42 | AD50: AL
A51: AL172 | B51: 598 | C51: 437 | D51: 281 | E51: 122 | F51: 18 | G51: 0 | H51: 0 | I51: 0 | J51: 6 | K51: 93 | L51: 285 | M51: 520 | N51: 2360 | O51: 2 | P51: 3 | Q51: 19 | R51: 62 | S51: 224 | T51: 404 | U51: 505 | V51: 493 | W51: 321 | X51: 99 | Y51: 21 | Z51: 5 | AA51: 2158 | AB51: Tallassee | AC51: 44 | AD51: AL
A52: AL174 | B52: 687.5999756 | C52: 503.3999939 | D52: 344.6000061 | E52: 161.1999969 | F52: 31.60000038 | G52: 1.200000048 | H52: 0 | I52: 0 | J52: 10.39999962 | K52: 138.1999969 | L52: 350.2000122 | M52: 608 | N52: 2836.399902 | O52: 0 | P52: 1 | Q52: 10 | R52: 42 | S52: 170 | T52: 350 | U52: 468 | V52: 439 | W52: 262 | X52: 68 | Y52: 11 | Z52: 2 | AA52: 1823 | AB52: Alexander City | AC52: 42 | AD52: AL
A53: AL177 | B53: 571 | C53: 418 | D53: 275.5 | E53: 103.5 | F53: 14 | G53: 0 | H53: 0 | I53: 0 | J53: 3 | K53: 94.5 | L53: 285.5 | M53: 514.5 | N53: 2279.5 | O53: 2 | P53: 3 | Q53: 14 | R53: 58 | S53: 210 | T53: 388 | U53: 485 | V53: 474 | W53: 314 | X53: 99 | Y53: 20 | Z53: 4 | AA53: 2071 | AB53: Troy | AC53: 44 | AD53: AL
A54: AL181 | B54: 528.5 | C54: 382.5 | D54: 244.5 | E54: 99.5 | F54: 13 | G54: 0 | H54: 0 | I54: 0 | J54: 5 | K54: 87 | L54: 261 | M54: 471.5 | N54: 2092.5 | O54: 3 | P54: 6 | Q54: 26 | R54: 74 | S54: 233 | T54: 399 | U54: 479 | V54: 471 | W54: 327 | X54: 120 | Y54: 26 | Z54: 8 | AA54: 2172 | AB54: Evergreen | AC54: 44 | AD54: AL
A55: AL192 | B55: 606 | C55: 442.777771 | D55: 291 | E55: 124.1111145 | F55: 18.55555534 | G55: 0.2222222239 | H55: 0 | I55: 0 | J55: 6.111111164 | K55: 98.55555725 | L55: 292.555542 | M55: 535 | N55: 2414.888916 | O55: 0 | P55: 3 | Q55: 10 | R55: 42 | S55: 197 | T55: 355 | U55: 457 | V55: 440 | W55: 305 | X55: 94 | Y55: 9 | Z55: 3 | AA55: 1915 | AB55: South Central | AC55: 44 | AD55: AL
A56: AL202 | B56: 474.5833435 | C56: 336.8333435 | D56: 200.3333282 | E56: 65.16666412 | F56: 4.916666508 | G56: 0 | H56: 0 | I56: 0 | J56: 2.333333254 | K56: 55.16666794 | L56: 207.75 | M56: 414.3333435 | N56: 1761.416626 | O56: 3 | P56: 4 | Q56: 21 | R56: 73 | S56: 223 | T56: 380 | U56: 484 | V56: 468 | W56: 302 | X56: 99 | Y56: 20 | Z56: 5 | AA56: 2082 | AB56: Mobile County | AC56: 42 | AD56: AL
A57: AR002 | B57: 745 | C57: 560 | D57: 367.5 | E57: 140 | F57: 21.5 | G57: 0.5 | H57: 0 | I57: 0 | J57: 12 | K57: 121.5 | L57: 379.5 | M57: 681.5 | N57: 3029 | O57: 1 | P57: 1 | Q57: 14 | R57: 56 | S57: 209 | T57: 425 | U57: 553 | V57: 542 | W57: 312 | X57: 81 | Y57: 10 | Z57: 2 | AA57: 2206 | AB57: North Little Rock Housing Authority | AC57: 44 | AD57: AR
A58: AR003 | B58: 792 | C58: 582 | D58: 386 | E58: 156 | F58: 27 | G58: 1 | H58: 0 | I58: 0 | J58: 17 | K58: 137 | L58: 411 | M58: 734 | N58: 3243 | O58: 0 | P58: 1 | Q58: 11 | R58: 54 | S58: 178 | T58: 385 | U58: 536 | V58: 530 | W58: 283 | X58: 68 | Y58: 8 | Z58: 1 | AA58: 2055 | AB58: Fort Smith Housing Authority | AC58: 42 | AD58: AR
A59: AR004 | B59: 747.666687 | C59: 564.666687 | D59: 372.5 | E59: 142.6666718 | F59: 20.5 | G59: 0.1666666716 | H59: 0 | I59: 0 | J59: 11.33333302 | K59: 121.1666641 | L59: 381.1666565 | M59: 682.5 | N59: 3044.333252 | O59: 1 | P59: 1 | Q59: 14 | R59: 56 | S59: 209 | T59: 425 | U59: 553 | V59: 542 | W59: 312 | X59: 81 | Y59: 10 | Z59: 2 | AA59: 2206 | AB59: Little Rock Housing Authority | AD59: AR
A60: AR006 | B60: 856.5 | C60: 654.5 | D60: 453.5 | E60: 204.5 | F60: 44 | G60: 2 | H60: 0 | I60: 0.5 | J60: 26.5 | K60: 184.5 | L60: 474 | M60: 787.5 | N60: 3688 | O60: 0 | P60: 0 | Q60: 8 | R60: 41 | S60: 155 | T60: 355 | U60: 490 | V60: 482 | W60: 252 | X60: 54 | Y60: 5 | Z60: 0 | AA60: 1842 | AB60: Conway Housing Authority | AC60: 41 | AD60: AR
A61: AR010 | B61: 891.2999878 | C61: 687.2000122 | D61: 508.3999939 | E61: 244.3000031 | F61: 71.19999695 | G61: 5.599999905 | H61: 0.1000000015 | I61: 1.100000024 | J61: 38.40000153 | K61: 217 | L61: 500.7999878 | M61: 835.7999878 | N61: 4001.199951 | O61: 0 | P61: 0 | Q61: 6 | R61: 31 | S61: 102 | T61: 265 | U61: 414 | V61: 393 | W61: 168 | X61: 33 | Y61: 4 | Z61: 0 | AA61: 1416 | AB61: NW Regional Housing Authority | AC61: 39 | AD61: AR
A62: AR012 | B62: 746 | C62: 558 | D62: 369 | E62: 150.5 | F62: 29.5 | G62: 1 | H62: 0 | I62: 0 | J62: 16.5 | K62: 153 | L62: 391 | M62: 688.5 | N62: 3103 | O62: 0 | P62: 1 | Q62: 11 | R62: 48 | S62: 177 | T62: 371 | U62: 491 | V62: 480 | W62: 269 | X62: 63 | Y62: 6 | Z62: 1 | AA62: 1918 | AB62: Arkadelphia Housing Authority | AC62: 42 | AD62: AR
A63: AR015 | B63: 655 | C63: 472 | D63: 300 | E63: 109 | F63: 13 | G63: 0 | H63: 0 | I63: 0 | J63: 11 | K63: 107 | L63: 340 | M63: 609 | N63: 2616 | O63: 1 | P63: 3 | Q63: 19 | R63: 74 | S63: 223 | T63: 405 | U63: 535 | V63: 528 | W63: 306 | X63: 94 | Y63: 16 | Z63: 3 | AA63: 2207 | AB63: Texarkana Housing Authority | AC63: 44 | AD63: AR
A64: AR016 | B64: 705 | C64: 522 | D64: 339 | E64: 134 | F64: 22 | G64: 1 | H64: 0 | I64: 0 | J64: 16 | K64: 137 | L64: 365 | M64: 645 | N64: 2886 | O64: 1 | P64: 2 | Q64: 16 | R64: 62 | S64: 193 | T64: 389 | U64: 513 | V64: 499 | W64: 280 | X64: 72 | Y64: 11 | Z64: 2 | AA64: 2040 | AB64: Camden Housing Authority | AC64: 42 | AD64: AR
A65: AR017 | B65: 719 | C65: 540.666687 | D65: 356.3333435 | E65: 136.3333282 | F65: 20.33333397 | G65: 0.6666666865 | H65: 0 | I65: 0 | J65: 11.66666698 | K65: 126.6666641 | L65: 364.3333435 | M65: 655 | N65: 2931 | O65: 1 | P65: 2 | Q65: 17 | R65: 67 | S65: 220 | T65: 422 | U65: 528 | V65: 501 | W65: 286 | X65: 75 | Y65: 12 | Z65: 1 | AA65: 2132 | AB65: Pine Bluff Housing Authority | AC65: 44 | AD65: AR
A66: AR020 | B66: 688.333313 | C66: 511.3333435 | D66: 337.3333435 | E66: 126 | F66: 18.33333397 | G66: 0.6666666865 | H66: 0 | I66: 0 | J66: 12.66666698 | K66: 116 | L66: 355 | M66: 643.333313 | N66: 2809 | O66: 1 | P66: 2 | Q66: 16 | R66: 71 | S66: 205 | T66: 386 | U66: 516 | V66: 508 | W66: 294 | X66: 83 | Y66: 15 | Z66: 2 | AA66: 2099 | AB66: Little River County Housing Authority | AC66: 42 | AD66: AR
A67: AR031 | B67: 746 | C67: 558 | D67: 380 | E67: 154 | F67: 31 | G67: 1 | H67: 0 | I67: 0 | J67: 16 | K67: 145 | L67: 399 | M67: 701 | N67: 3131 | O67: 0 | P67: 1 | Q67: 12 | R67: 55 | S67: 178 | T67: 376 | U67: 522 | V67: 521 | W67: 284 | X67: 68 | Y67: 6 | Z67: 1 | AA67: 2024 | AB67: Hot Springs Housing Authority | AC67: 43 | AD67: AR
A68: AR033 | B68: 822.4000244 | C68: 620.2000122 | D68: 433.7999878 | E68: 187.6000061 | F68: 40 | G68: 1.799999952 | H68: 0 | I68: 0.400000006 | J68: 22.20000076 | K68: 163.8000031 | L68: 441.7999878 | M68: 765.7999878 | N68: 3499.800049 | O68: 0 | P68: 0 | Q68: 7 | R68: 42 | S68: 145 | T68: 328 | U68: 482 | V68: 463 | W68: 240 | X68: 59 | Y68: 5 | Z68: 0 | AA68: 1771 | AB68: Logan County Housing Authority | AC68: 40 | AD68: AR
A69: AR035 | B69: 836 | C69: 639 | D69: 432 | E69: 182 | F69: 33 | G69: 1 | H69: 0 | I69: 0 | J69: 21 | K69: 174 | L69: 446 | M69: 768 | N69: 3532 | O69: 0 | P69: 0 | Q69: 9 | R69: 43 | S69: 178 | T69: 382 | U69: 507 | V69: 480 | W69: 252 | X69: 51 | Y69: 5 | Z69: 1 | AA69: 1908 | AB69: Searcy Housing Authority | AC69: 41 | AD69: AR
A70: AR037 | B70: 764 | C70: 569 | D70: 385 | E70: 155 | F70: 27 | G70: 0 | H70: 0 | I70: 0 | J70: 16 | K70: 149 | L70: 416 | M70: 706 | N70: 3187 | O70: 0 | P70: 1 | Q70: 8 | R70: 41 | S70: 164 | T70: 348 | U70: 468 | V70: 468 | W70: 258 | X70: 59 | Y70: 6 | Z70: 1 | AA70: 1822 | AB70: Prescott Housing Authority | AC70: 41 | AD70: AR
A71: AR039 | B71: 852 | C71: 651 | D71: 456 | E71: 201 | F71: 40 | G71: 1 | H71: 0 | I71: 0 | J71: 27 | K71: 166 | L71: 442 | M71: 763 | N71: 3599 | O71: 0 | P71: 0 | Q71: 8 | R71: 42 | S71: 176 | T71: 383 | U71: 476 | V71: 434 | W71: 225 | X71: 64 | Y71: 7 | Z71: 0 | AA71: 1815 | AB71: Wynne Housing Authority | AC71: 42 | AD71: AR
A72: AR041 | B72: 770.4000244 | C72: 579.2000122 | D72: 386.6000061 | E72: 160.1999969 | F72: 27.20000076 | G72: 1.200000048 | H72: 0 | I72: 0 | J72: 16.39999962 | K72: 142.1999969 | L72: 401.7999878 | M72: 705.5999756 | N72: 3190.800049 | O72: 1 | P72: 1 | Q72: 15 | R72: 70 | S72: 212 | T72: 402 | U72: 502 | V72: 473 | W72: 268 | X72: 73 | Y72: 10 | Z72: 1 | AA72: 2028 | AB72: Lonoke County Housing Authority | AC72: 44 | AD72: AR
A73: AR042 | B73: 724 | C73: 534 | D73: 348 | E73: 124 | F73: 17 | G73: 0 | H73: 0 | I73: 0 | J73: 8 | K73: 123 | L73: 326 | M73: 617 | N73: 2821 | O73: 1 | P73: 3 | Q73: 13 | R73: 69 | S73: 213 | T73: 396 | U73: 515 | V73: 504 | W73: 300 | X73: 89 | Y73: 12 | Z73: 3 | AA73: 2118 | AB73: Star City | AC73: 44 | AD73: AR
A74: AR045 | B74: 774.75 | C74: 589.25 | D74: 415.25 | E74: 187 | F74: 44 | G74: 2.75 | H74: 0 | I74: 0.25 | J74: 23.25 | K74: 169.5 | L74: 426.75 | M74: 720.75 | N74: 3353.5 | O74: 0 | P74: 0 | Q74: 6 | R74: 28 | S74: 121 | T74: 299 | U74: 426 | V74: 429 | W74: 231 | X74: 48 | Y74: 5 | Z74: 0 | AA74: 1593 | AB74: Pike County Housing Authority | AC74: 40 | AD74: AR
A75: AR052 | B75: 771 | C75: 575.5 | D75: 385.5 | E75: 157 | F75: 25.5 | G75: 0 | H75: 0 | I75: 0 | J75: 19 | K75: 147.5 | L75: 391 | M75: 696.5 | N75: 3168.5 | O75: 0 | P75: 1 | Q75: 9 | R75: 56 | S75: 192 | T75: 399 | U75: 508 | V75: 468 | W75: 244 | X75: 63 | Y75: 9 | Z75: 1 | AA75: 1950 | AB75: Clarendon | AC75: 42 | AD75: AR
A76: AR059 | B76: 814 | C76: 614 | D76: 418 | E76: 171 | F76: 31 | G76: 1 | H76: 0 | I76: 0 | J76: 19 | K76: 156 | L76: 415 | M76: 731 | N76: 3370 | O76: 0 | P76: 1 | Q76: 9 | R76: 51 | S76: 183 | T76: 388 | U76: 497 | V76: 468 | W76: 256 | X76: 62 | Y76: 8 | Z76: 1 | AA76: 1924 | AB76: Brinkley Housing Authority | AC76: 43 | AD76: AR
A77: AR066 | B77: 821.75 | C77: 618.75 | D77: 430 | E77: 182.25 | F77: 36.75 | G77: 1.25 | H77: 0 | I77: 0 | J77: 16.75 | K77: 169 | L77: 441 | M77: 766.75 | N77: 3484.25 | O77: 1 | P77: 1 | Q77: 11 | R77: 45 | S77: 174 | T77: 369 | U77: 513 | V77: 508 | W77: 276 | X77: 60 | Y77: 5 | Z77: 1 | AA77: 1964 | AB77: Russellville Housing Authority | AC77: 41 | AD77: AR
A78: AR068 | B78: 713 | C78: 537 | D78: 366 | E78: 152 | F78: 27 | G78: 1 | H78: 0 | I78: 0 | J78: 16 | K78: 136 | L78: 377 | M78: 661 | N78: 2986 | O78: 1 | P78: 1 | Q78: 13 | R78: 52 | S78: 179 | T78: 371 | U78: 505 | V78: 499 | W78: 282 | X78: 73 | Y78: 14 | Z78: 2 | AA78: 1992 | AB78: Hope Housing Authority | AC78: 42 | AD78: AR
A79: AR082 | B79: 711 | C79: 536 | D79: 361 | E79: 150 | F79: 26 | G79: 1 | H79: 0 | I79: 0 | J79: 17 | K79: 138 | L79: 366 | M79: 643 | N79: 2949 | O79: 1 | P79: 2 | Q79: 14 | R79: 57 | S79: 183 | T79: 370 | U79: 488 | V79: 473 | W79: 274 | X79: 73 | Y79: 12 | Z79: 3 | AA79: 1950 | AB79: Warren Housing Authority | AC79: 43 | AD79: AR
A80: AR104 | B80: 888 | C80: 691 | D80: 518 | E80: 248 | F80: 77 | G80: 8 | H80: 0 | I80: 1 | J80: 43 | K80: 225 | L80: 496 | M80: 818 | N80: 4013 | O80: 0 | P80: 1 | Q80: 6 | R80: 34 | S80: 103 | T80: 281 | U80: 434 | V80: 420 | W80: 199 | X80: 36 | Y80: 4 | Z80: 0 | AA80: 1518 | AB80: Springdale Housing Authority | AC80: 40 | AD80: AR
A81: AR117 | B81: 814 | C81: 630 | D81: 465 | E81: 222 | F81: 59 | G81: 4 | H81: 0 | I81: 1 | J81: 30 | K81: 190 | L81: 458 | M81: 763 | N81: 3636 | O81: 0 | P81: 0 | Q81: 6 | R81: 26 | S81: 114 | T81: 285 | U81: 419 | V81: 411 | W81: 207 | X81: 44 | Y81: 5 | Z81: 1 | AA81: 1518 | AB81: Polk County Housing Authority | AC81: 40 | AD81: AR
A82: AR121 | B82: 886 | C82: 680 | D82: 472 | E82: 189 | F82: 37 | G82: 1 | H82: 0 | I82: 0 | J82: 20 | K82: 171 | L82: 468 | M82: 798 | N82: 3722 | O82: 0 | P82: 0 | Q82: 5 | R82: 39 | S82: 164 | T82: 375 | U82: 482 | V82: 453 | W82: 233 | X82: 50 | Y82: 4 | Z82: 0 | AA82: 1805 | AB82: Paragould Housing Authority | AD82: AR
A83: AR131 | B83: 881 | C83: 676.5 | D83: 475 | E83: 198 | F83: 40.5 | G83: 1.5 | H83: 0 | I83: 0 | J83: 20.5 | K83: 175.5 | L83: 475 | M83: 806 | N83: 3749.5 | O83: 0 | P83: 0 | Q83: 5 | R83: 38 | S83: 154 | T83: 357 | U83: 471 | V83: 443 | W83: 217 | X83: 46 | Y83: 4 | Z83: 0 | AA83: 1735 | AB83: Jonesboro | AC83: 40 | AD83: AR
A84: AR135 | B84: 795 | C84: 594 | D84: 394.5 | E84: 155.5 | F84: 24 | G84: 0 | H84: 0 | I84: 0 | J84: 19 | K84: 152 | L84: 405 | M84: 712.5 | N84: 3251.5 | O84: 0 | P84: 1 | Q84: 9 | R84: 56 | S84: 192 | T84: 399 | U84: 508 | V84: 468 | W84: 244 | X84: 63 | Y84: 9 | Z84: 1 | AA84: 1950 | AB84: Devalls Bluff Housing Authority | AC84: 42 | AD84: AR
A85: AR152 | B85: 671.333313 | C85: 493.6666565 | D85: 316.6666565 | E85: 116.6666641 | F85: 13.33333302 | G85: 0 | H85: 0 | I85: 0 | J85: 10.33333302 | K85: 104.6666641 | L85: 321.6666565 | M85: 600.333313 | N85: 2648.666748 | O85: 1 | P85: 2 | Q85: 18 | R85: 77 | S85: 241 | T85: 428 | U85: 530 | V85: 504 | W85: 312 | X85: 91 | Y85: 13 | Z85: 3 | AA85: 2220 | AB85: Lake Village Housing Authority | AC85: 44 | AD85: AR
A86: AR161 | B86: 827.5 | C86: 634.75 | D86: 443.75 | E86: 192.5 | F86: 43.75 | G86: 1.75 | H86: 0 | I86: 0 | J86: 21.25 | K86: 172.25 | L86: 453.5 | M86: 775.75 | N86: 3566.75 | O86: 0 | P86: 1 | Q86: 5 | R86: 35 | S86: 145 | T86: 342 | U86: 484 | V86: 462 | W86: 241 | X86: 49 | Y86: 6 | Z86: 0 | AA86: 1770 | AB86: Conway County Housing Authority | AC86: 40 | AD86: AR
A87: AR163 | B87: 925.5 | C87: 718 | D87: 533.125 | E87: 267.875 | F87: 82.625 | G87: 7.5 | H87: 0 | I87: 1.5 | J87: 47.5 | K87: 237.25 | L87: 531.625 | M87: 863.75 | N87: 4216.25 | O87: 0 | P87: 0 | Q87: 3 | R87: 18 | S87: 75 | T87: 232 | U87: 381 | V87: 373 | W87: 139 | X87: 19 | Y87: 1 | Z87: 0 | AA87: 1241 | AB87: Siloam Springs Housing Authority | AC87: 37 | AD87: AR
A88: AR166 | B88: 780 | C88: 586 | D88: 395 | E88: 157 | F88: 25 | G88: 1 | H88: 0 | I88: 0 | J88: 17 | K88: 145 | L88: 394 | M88: 696 | N88: 3196 | O88: 0 | P88: 1 | Q88: 10 | R88: 57 | S88: 205 | T88: 412 | U88: 515 | V88: 485 | W88: 276 | X88: 74 | Y88: 9 | Z88: 1 | AA88: 2045 | AB88: Stuttgart Housing Authority | AC88: 42 | AD88: AR
A89: AR170 | B89: 741 | C89: 553 | D89: 360 | E89: 136 | F89: 23 | G89: 1 | H89: 0 | I89: 0 | J89: 13 | K89: 122 | L89: 377 | M89: 680 | N89: 3006 | O89: 1 | P89: 1 | Q89: 17 | R89: 70 | S89: 207 | T89: 413 | U89: 541 | V89: 527 | W89: 297 | X89: 84 | Y89: 11 | Z89: 1 | AA89: 2170 | AB89: Jacksonville Housing Authority | AC89: 44 | AD89: AR
A90: AR175 | B90: 743.666687 | C90: 556.5 | D90: 366.1666565 | E90: 147.3333282 | F90: 24.66666603 | G90: 1 | H90: 0 | I90: 0 | J90: 16.16666603 | K90: 139.8333282 | L90: 389 | M90: 687.666687 | N90: 3072 | O90: 1 | P90: 1 | Q90: 12 | R90: 53 | S90: 188 | T90: 387 | U90: 513 | V90: 494 | W90: 275 | X90: 71 | Y90: 9 | Z90: 1 | AA90: 2005 | AB90: Benton Housing Authority | AC90: 42 | AD90: AR
A91: AR176 | B91: 916 | C91: 697 | D91: 488.6666565 | E91: 203.3333282 | F91: 42.66666794 | G91: 2 | H91: 0 | I91: 0.6666666865 | J91: 28 | K91: 193 | L91: 479.3333435 | M91: 829.333313 | N91: 3880 | O91: 0 | P91: 0 | Q91: 6 | R91: 46 | S91: 166 | T91: 381 | U91: 487 | V91: 453 | W91: 231 | X91: 51 | Y91: 5 | Z91: 0 | AA91: 1826 | AB91: Clay County Housing Agency | AC91: 40 | AD91: AR
A92: AR177 | B92: 902.875 | C92: 695.125 | D92: 488.125 | E92: 215.375 | F92: 46.125 | G92: 1.625 | H92: 0 | I92: 0 | J92: 25.75 | K92: 186.625 | L92: 485.125 | M92: 822.125 | N92: 3868.875 | O92: 0 | P92: 0 | Q92: 4 | R92: 31 | S92: 157 | T92: 373 | U92: 482 | V92: 446 | W92: 214 | X92: 46 | Y92: 3 | Z92: 0 | AA92: 1756 | AB92: Lawrence County | AC92: 41 | AD92: AR
A93: AR181 | B93: 901.7999878 | C93: 701.7999878 | D93: 522.7999878 | E93: 260.6000061 | F93: 81.19999695 | G93: 8 | H93: 0 | I93: 1 | J93: 47.79999924 | K93: 238.8000031 | L93: 515.7999878 | M93: 839.5999756 | N93: 4119.200195 | O93: 0 | P93: 0 | Q93: 4 | R93: 24 | S93: 85 | T93: 245 | U93: 391 | V93: 376 | W93: 158 | X93: 23 | Y93: 2 | Z93: 0 | AA93: 1308 | AB93: Fayetteville Housing Authority | AC93: 38 | AD93: AR
A94: AR194 | B94: 844.5 | C94: 638.25 | D94: 454.25 | E94: 204.75 | F94: 51 | G94: 2.5 | H94: 0 | I94: 0.75 | J94: 24.5 | K94: 183.5 | L94: 471.75 | M94: 792.5 | N94: 3668.25 | O94: 0 | P94: 1 | Q94: 11 | R94: 54 | S94: 178 | T94: 385 | U94: 536 | V94: 530 | W94: 283 | X94: 68 | Y94: 8 | Z94: 1 | AA94: 2055 | AB94: Crawford Co. Public Facilties | AC94: 42 | AD94: AR
A95: AR197 | B95: 870.5454712 | C95: 664.6363525 | D95: 467.2727356 | E95: 207.9090881 | F95: 50.36363602 | G95: 2.727272749 | H95: 0 | I95: 0.3636363745 | J95: 26.36363602 | K95: 186.9090881 | L95: 456.5454407 | M95: 792.5454712 | N95: 3726.181885 | O95: 0 | P95: 0 | Q95: 3 | R95: 20 | S95: 92 | T95: 249 | U95: 383 | V95: 367 | W95: 156 | X95: 25 | Y95: 2 | Z95: 0 | AA95: 1297 | AB95: White River Regional | AC95: 37 | AD95: AR
A96: AR210 | B96: 674 | C96: 485 | D96: 321 | E96: 132 | F96: 21 | G96: 1 | H96: 0 | I96: 0 | J96: 14 | K96: 115 | L96: 326 | M96: 613 | N96: 2702 | O96: 1 | P96: 4 | Q96: 23 | R96: 78 | S96: 221 | T96: 418 | U96: 527 | V96: 508 | W96: 318 | X96: 98 | Y96: 19 | Z96: 4 | AA96: 2219 | AB96: Drew County Public Facilities | AC96: 44 | AD96: AR
A97: AR211 | B97: 870.25 | C97: 664 | D97: 484.5 | E97: 225.75 | F97: 61.5 | G97: 5.5 | H97: 0.25 | I97: 1 | J97: 28.75 | K97: 199.5 | L97: 480.25 | M97: 811.25 | N97: 3832.5 | O97: 1 | P97: 1 | Q97: 11 | R97: 45 | S97: 174 | T97: 369 | U97: 513 | V97: 508 | W97: 276 | X97: 60 | Y97: 5 | Z97: 1 | AA97: 1964 | AB97: Pope County Public Facilities | AC97: 41 | AD97: AR
A98: AR213 | B98: 856.666687 | C98: 649.333313 | D98: 451.3333435 | E98: 180 | F98: 32 | G98: 1 | H98: 0 | I98: 0 | J98: 20.66666603 | K98: 161.6666718 | L98: 428.3333435 | M98: 768 | N98: 3549 | O98: 0 | P98: 1 | Q98: 11 | R98: 63 | S98: 214 | T98: 430 | U98: 525 | V98: 482 | W98: 265 | X98: 70 | Y98: 9 | Z98: 1 | AA98: 2071 | AB98: Mississippi County Pfb | AC98: 43 | AD98: AR
A99: AR214 | B99: 699.333313 | C99: 528.333313 | D99: 347.3333435 | E99: 142 | F99: 22 | G99: 0.6666666865 | H99: 0 | I99: 0 | J99: 14 | K99: 130.3333282 | L99: 359.6666565 | M99: 639.666687 | N99: 2883.333252 | O99: 2 | P99: 2 | Q99: 14 | R99: 55 | S99: 186 | T99: 371 | U99: 485 | V99: 476 | W99: 278 | X99: 78 | Y99: 13 | Z99: 3 | AA99: 1963 | AB99: Ashley County Housing Authority | AC99: 42 | AD99: AR
A100: AR215 | B100: 854.75 | C100: 645.25 | D100: 459.5 | E100: 208 | F100: 45.75 | G100: 2.5 | H100: 0 | I100: 0 | J100: 24.75 | K100: 178.75 | L100: 459.75 | M100: 782.5 | N100: 3661.5 | O100: 0 | P100: 0 | Q100: 5 | R100: 29 | S100: 135 | T100: 330 | U100: 462 | V100: 462 | W100: 240 | X100: 46 | Y100: 6 | Z100: 1 | AA100: 1716 | AB100: Johnson County Housing Agency | AC100: 40 | AD100: AR
A101: AR219 | B101: 794 | C101: 604 | D101: 409 | E101: 183 | F101: 34 | G101: 2 | H101: 0 | I101: 0 | J101: 18 | K101: 153 | L101: 421 | M101: 728 | N101: 3346 | O101: 0 | P101: 1 | Q101: 10 | R101: 42 | S101: 166 | T101: 369 | U101: 491 | V101: 479 | W101: 265 | X101: 62 | Y101: 7 | Z101: 1 | AA101: 1893 | AB101: Cabot Housing Agency | AC101: 40 | AD101: AR
A102: AR222 | B102: 674.666687 | C102: 500.3333435 | D102: 325 | E102: 126.6666641 | F102: 19.66666603 | G102: 0.3333333433 | H102: 0 | I102: 0 | J102: 13 | K102: 128.6666718 | L102: 358 | M102: 622.666687 | N102: 2769 | O102: 2 | P102: 4 | Q102: 22 | R102: 71 | S102: 212 | T102: 396 | U102: 516 | V102: 504 | W102: 300 | X102: 84 | Y102: 15 | Z102: 4 | AA102: 2130 | AB102: Union County Housing Agency (AAA) | AC102: 43 | AD102: AR
A103: AR223 | B103: 760 | C103: 570 | D103: 371 | E103: 138 | F103: 20 | G103: 0 | H103: 0 | I103: 0 | J103: 12 | K103: 118 | L103: 377 | M103: 681 | N103: 3047 | O103: 0 | P103: 0 | Q103: 12 | R103: 67 | S103: 221 | T103: 428 | U103: 542 | V103: 518 | W103: 301 | X103: 82 | Y103: 11 | Z103: 1 | AA103: 2183 | AB103: Phillips County Public Housing Agency | AC103: 41 | AD103: AR
A104: AR225 | B104: 787.333313 | C104: 590.333313 | D104: 395.3333435 | E104: 155.3333282 | F104: 25 | G104: 0.6666666865 | H104: 0 | I104: 0 | J104: 16 | K104: 138.3333282 | L104: 393 | M104: 704 | N104: 3205.333252 | O104: 0 | P104: 1 | Q104: 11 | R104: 61 | S104: 212 | T104: 416 | U104: 513 | V104: 484 | W104: 280 | X104: 78 | Y104: 11 | Z104: 1 | AA104: 2068 | AB104: Lee County Housing Authority | AC104: 43 | AD104: AR
A105: AR232 | B105: 864.75 | C105: 672.25 | D105: 464.5 | E105: 192.75 | F105: 37.5 | G105: 1 | H105: 0 | I105: 0 | J105: 18.25 | K105: 173.25 | L105: 448.75 | M105: 779 | N105: 3652 | O105: 0 | P105: 0 | Q105: 6 | R105: 42 | S105: 155 | T105: 345 | U105: 471 | V105: 454 | W105: 234 | X105: 56 | Y105: 5 | Z105: 0 | AA105: 1768 | AB105: Poinsett County Housing Agency | AD105: AR
A106: AR240 | B106: 829 | C106: 629 | D106: 444 | E106: 202 | F106: 45 | G106: 3 | H106: 0 | I106: 0 | J106: 31 | K106: 185 | L106: 477 | M106: 778 | N106: 3623 | O106: 0 | P106: 0 | Q106: 6 | R106: 36 | S106: 133 | T106: 309 | U106: 449 | V106: 433 | W106: 211 | X106: 43 | Y106: 4 | Z106: 0 | AA106: 1624 | AB106: Scott County Public Housing Agency | AC106: 39 | AD106: AR
A107: AR241 | B107: 869 | C107: 655 | D107: 470 | E107: 219.6666718 | F107: 54.33333206 | G107: 2.666666746 | H107: 0 | I107: 0.3333333433 | J107: 25.33333397 | K107: 182.6666718 | L107: 467.6666565 | M107: 787.666687 | N107: 3734.333252 | O107: 0 | P107: 0 | Q107: 6 | R107: 33 | S107: 124 | T107: 323 | U107: 474 | V107: 474 | W107: 235 | X107: 50 | Y107: 4 | Z107: 0 | AA107: 1723 | AB107: Franklin County Housing Agency | AC107: 41 | AD107: AR
A108: AR247 | B108: 934 | C108: 724 | D108: 509 | E108: 227 | F108: 52 | G108: 2 | H108: 0 | I108: 0 | J108: 29 | K108: 206 | L108: 516 | M108: 857 | N108: 4056 | O108: 0 | P108: 0 | Q108: 3 | R108: 24 | S108: 127 | T108: 328 | U108: 449 | V108: 417 | W108: 190 | X108: 32 | Y108: 2 | Z108: 0 | AA108: 1572 | AB108: Pocahontas Public Housing Agency (Brad) | AC108: 40 | AD108: AR
A109: AR250 | B109: 667.666687 | C109: 494 | D109: 324 | E109: 130 | F109: 22 | G109: 1 | H109: 0 | I109: 0 | J109: 11.33333302 | K109: 112.3333359 | L109: 338 | M109: 605 | N109: 2705.333252 | O109: 2 | P109: 3 | Q109: 18 | R109: 62 | S109: 192 | T109: 387 | U109: 510 | V109: 511 | W109: 300 | X109: 89 | Y109: 17 | Z109: 3 | AA109: 2094 | AB109: Lafayette County Housing Agency (AAA) | AC109: 43 | AD109: AR
A110: AR252 | B110: 745 | C110: 560 | D110: 367.5 | E110: 140 | F110: 21.5 | G110: 0.5 | H110: 0 | I110: 0 | J110: 12 | K110: 121.5 | L110: 379.5 | M110: 681.5 | N110: 3029 | O110: 1 | P110: 1 | Q110: 14 | R110: 56 | S110: 209 | T110: 425 | U110: 553 | V110: 542 | W110: 312 | X110: 81 | Y110: 10 | Z110: 2 | AA110: 2206 | AB110: Pulaski County Housing Agency | AD110: AR
A111: AR264 | B111: 818 | C111: 626 | D111: 424 | E111: 166 | F111: 24 | G111: 0 | H111: 0 | I111: 0 | J111: 12 | K111: 147 | L111: 429 | M111: 728 | N111: 3374 | O111: 0 | P111: 0 | Q111: 10 | R111: 54 | S111: 196 | T111: 403 | U111: 511 | V111: 482 | W111: 283 | X111: 73 | Y111: 9 | Z111: 1 | AA111: 2022 | AB111: Earle Section 8 Housing Authority | AC111: 43 | AD111: AR
A112: AR265 | B112: 775 | C112: 574.5 | D112: 380.5 | E112: 148 | F112: 25 | G112: 0.5 | H112: 0 | I112: 0 | J112: 14 | K112: 145.5 | L112: 413 | M112: 727 | N112: 3203 | O112: 0 | P112: 1 | Q112: 11 | R112: 54 | S112: 176 | T112: 373 | U112: 510 | V112: 504 | W112: 271 | X112: 64 | Y112: 8 | Z112: 0 | AA112: 1972 | AB112: Yell County Public Facilities Board | AC112: 42 | AD112: AR
A113: AR266 | B113: 713 | C113: 526 | D113: 347 | E113: 136 | F113: 17 | G113: 0 | H113: 0 | I113: 0 | J113: 15 | K113: 128 | L113: 348 | M113: 636 | N113: 2866 | O113: 1 | P113: 2 | Q113: 20 | R113: 86 | S113: 252 | T113: 444 | U113: 547 | V113: 519 | W113: 320 | X113: 103 | Y113: 18 | Z113: 4 | AA113: 2316 | AB113: Desha Co. Residential Housing Fac Board | AC113: 44 | AD113: AR
A114: AZ001 | B114: 284.3157959 | C114: 183 | D114: 92.73683929 | E114: 22.63157845 | F114: 1.263157845 | G114: 0 | H114: 0 | I114: 0 | J114: 0 | K114: 7.473684311 | L114: 117.5263138 | M114: 318.578949 | N114: 1027.526367 | O114: 2 | P114: 21 | Q114: 97 | R114: 259 | S114: 523 | T114: 765 | U114: 904 | V114: 873 | W114: 682 | X114: 371 | Y114: 69 | Z114: 1 | AA114: 4567 | AB114: Phoenix HD | AC114: 53 | AD114: AZ
A115: AZ003 | B115: 316 | C115: 205.3999939 | D115: 109.8000031 | E115: 26.79999924 | F115: 1.200000048 | G115: 0 | H115: 0 | I115: 0 | J115: 0 | K115: 9.600000381 | L115: 139.3999939 | M115: 358.6000061 | N115: 1166.800049 | O115: 1 | P115: 8 | Q115: 59 | R115: 196 | S115: 462 | T115: 694 | U115: 873 | V115: 839 | W115: 636 | X115: 299 | Y115: 42 | Z115: 1 | AA115: 4110 | AB115: Glendale HA | AC115: 49 | AD115: AZ
A116: AZ004 | B116: 381.2000122 | C116: 267.2999878 | D116: 172.8999939 | E116: 57.5 | F116: 5 | G116: 0 | H116: 0 | I116: 0 | J116: 0 | K116: 22.10000038 | L116: 179.1999969 | M116: 402 | N116: 1487.199951 | O116: 1 | P116: 4 | Q116: 31 | R116: 127 | S116: 357 | T116: 594 | U116: 711 | V116: 665 | W116: 522 | X116: 224 | Y116: 28 | Z116: 1 | AA116: 3265 | AB116: Tucson Hcd | AC116: 45 | AD116: AZ
A117: AZ005 | B117: 334.5 | C117: 234 | D117: 138.5 | E117: 33.5 | F117: 2.5 | G117: 0 | H117: 0 | I117: 0 | J117: 0 | K117: 14 | L117: 152.5 | M117: 381 | N117: 1290.5 | O117: 1 | P117: 4 | Q117: 38 | R117: 151 | S117: 387 | T117: 606 | U117: 776 | V117: 746 | W117: 566 | X117: 256 | Y117: 35 | Z117: 0 | AA117: 3566 | AB117: City of Mesa Housing Authority | AC117: 46 | AD117: AZ
A118: AZ006 | B118: 1147.333374 | C118: 974.666687 | D118: 922.666687 | E118: 696 | F118: 460.6666565 | G118: 207.3333282 | H118: 71.33333588 | I118: 108.6666641 | J118: 279.3333435 | K118: 614.666687 | L118: 892 | M118: 1153.333374 | N118: 7528 | O118: 0 | P118: 0 | Q118: 0 | R118: 0 | S118: 4 | T118: 31 | U118: 74 | V118: 31 | W118: 4 | X118: 0 | Y118: 0 | Z118: 0 | AA118: 144 | AB118: Flagstaff HA | AC118: 24 | AD118: AZ
A119: AZ008 | B119: 930.333313 | C119: 734.333313 | D119: 633.5 | E119: 408.8333435 | F119: 189 | G119: 33.5 | H119: 2.5 | I119: 6.166666508 | J119: 67.66666412 | K119: 332.5 | L119: 652.666687 | M119: 936 | N119: 4927 | O119: 0 | P119: 0 | Q119: 0 | R119: 4 | S119: 63 | T119: 241 | U119: 409 | V119: 341 | W119: 143 | X119: 7 | Y119: 0 | Z119: 0 | AA119: 1208 | AB119: Winslow HA | AC119: 33 | AD119: AZ
A120: AZ013 | B120: 266.7999878 | C120: 169.6000061 | D120: 83 | E120: 22.20000076 | F120: 1.799999952 | G120: 0 | H120: 0 | I120: 0 | J120: 0 | K120: 7 | L120: 108.8000031 | M120: 307.3999939 | N120: 966.5999756 | O120: 1 | P120: 6 | Q120: 55 | R120: 162 | S120: 380 | T120: 600 | U120: 812 | V120: 821 | W120: 633 | X120: 298 | Y120: 43 | Z120: 0 | AA120: 3811 | AB120: Yuma County HD | AC120: 48 | AD120: AZ
A121: AZ023 | B121: 531.5 | C121: 418 | D121: 338.5 | E121: 159 | F121: 33.5 | G121: 1 | H121: 0 | I121: 0 | J121: 2 | K121: 82 | L121: 314 | M121: 538.5 | N121: 2418 | O121: 0 | P121: 1 | Q121: 4 | R121: 29 | S121: 178 | T121: 403 | U121: 462 | V121: 381 | W121: 298 | X121: 78 | Y121: 6 | Z121: 0 | AA121: 1840 | AB121: Nogales | AC121: 40 | AD121: AZ
A122: AZ028 | B122: 354.75 | C122: 237.5 | D122: 137.75 | E122: 39.25 | F122: 2.75 | G122: 0 | H122: 0 | I122: 0 | J122: 0 | K122: 15.75 | L122: 168 | M122: 396.5 | N122: 1352.25 | O122: 1 | P122: 4 | Q122: 38 | R122: 151 | S122: 387 | T122: 606 | U122: 776 | V122: 746 | W122: 566 | X122: 256 | Y122: 35 | Z122: 0 | AA122: 3566 | AB122: Chandler | AC122: 46 | AD122: AZ
A123: AZ031 | B123: 335 | C123: 224 | D123: 131 | E123: 37 | F123: 3 | G123: 0 | H123: 0 | I123: 0 | J123: 0 | K123: 13 | L123: 151 | M123: 375 | N123: 1269 | O123: 1 | P123: 4 | Q123: 38 | R123: 151 | S123: 387 | T123: 606 | U123: 776 | V123: 746 | W123: 566 | X123: 256 | Y123: 35 | Z123: 0 | AA123: 3566 | AB123: Tempe | AC123: 46 | AD123: AZ
A124: AZ032 | B124: 332.3333435 | C124: 228.3333282 | D124: 132.5 | E124: 31.5 | F124: 1.666666627 | G124: 0 | H124: 0 | I124: 0 | J124: 0 | K124: 11.5 | L124: 143.6666718 | M124: 365.3333435 | N124: 1246.833374 | O124: 1 | P124: 4 | Q124: 38 | R124: 151 | S124: 387 | T124: 606 | U124: 776 | V124: 746 | W124: 566 | X124: 256 | Y124: 35 | Z124: 0 | AA124: 3566 | AB124: Scottsdale | AC124: 46 | AD124: AZ
A125: AZ034 | B125: 592.5999756 | C125: 449.3999939 | D125: 348.7999878 | E125: 163.1999969 | F125: 32.59999847 | G125: 1 | H125: 0 | I125: 0.200000003 | J125: 5.400000095 | K125: 103.5999985 | L125: 362.7999878 | M125: 599.4000244 | N125: 2659 | O125: 0 | P125: 0 | Q125: 0 | R125: 9 | S125: 85 | T125: 271 | U125: 301 | V125: 221 | W125: 131 | X125: 13 | Y125: 0 | Z125: 0 | AA125: 1031 | AB125: Cochise County | AC125: 38 | AD125: AZ
A126: AZ035 | B126: 239 | C126: 140 | D126: 65 | E126: 16 | F126: 1 | G126: 0 | H126: 0 | I126: 0 | J126: 0 | K126: 5 | L126: 92 | M126: 283 | N126: 841 | O126: 3 | P126: 15 | Q126: 90 | R126: 217 | S126: 443 | T126: 663 | U126: 852 | V126: 842 | W126: 636 | X126: 312 | Y126: 65 | Z126: 1 | AA126: 4139 | AB126: Yuma City | AC126: 49 | AD126: AZ
A127: AZ037 | B127: 581 | C127: 431 | D127: 325 | E127: 140 | F127: 21 | G127: 0 | H127: 0 | I127: 0 | J127: 2 | K127: 81 | L127: 352 | M127: 589 | N127: 2522 | O127: 0 | P127: 0 | Q127: 1 | R127: 29 | S127: 171 | T127: 395 | U127: 465 | V127: 409 | W127: 281 | X127: 61 | Y127: 1 | Z127: 0 | AA127: 1813 | AB127: Douglas | AC127: 39 | AD127: AZ
A128: AZ038 | B128: 314 | C128: 197 | D128: 102 | E128: 25 | F128: 1 | G128: 0 | H128: 0 | I128: 0 | J128: 0 | K128: 9 | L128: 134 | M128: 354 | N128: 1136 | O128: 1 | P128: 8 | Q128: 59 | R128: 196 | S128: 462 | T128: 694 | U128: 873 | V128: 839 | W128: 636 | X128: 299 | Y128: 42 | Z128: 1 | AA128: 4110 | AB128: Peoria | AD128: AZ
A129: AZ041 | B129: 933 | C129: 791 | D129: 744 | E129: 525 | F129: 276 | G129: 67 | H129: 8 | I129: 19 | J129: 121 | K129: 416 | L129: 697 | M129: 934 | N129: 5531 | O129: 0 | P129: 0 | Q129: 0 | R129: 0 | S129: 8 | T129: 68 | U129: 138 | V129: 86 | W129: 22 | X129: 0 | Y129: 0 | Z129: 0 | AA129: 322 | AB129: Williams | AC129: 31 | AD129: AZ
A130: AZ043 | B130: 388 | C130: 249.1666718 | D130: 145.3333282 | E130: 51 | F130: 9.5 | G130: 0.5 | H130: 0 | I130: 0 | J130: 1 | K130: 28.83333397 | L130: 176.8333282 | M130: 419 | N130: 1469.166626 | O130: 0 | P130: 0 | Q130: 3 | R130: 28 | S130: 167 | T130: 385 | U130: 576 | V130: 542 | W130: 325 | X130: 66 | Y130: 1 | Z130: 0 | AA130: 2093 | AB130: Mohave County | AC130: 40 | AD130: AZ
A131: AZ045 | B131: 604 | C131: 472 | D131: 384 | E131: 198.3333282 | F131: 63.33333206 | G131: 7.333333492 | H131: 0 | I131: 0.3333333433 | J131: 11.66666698 | K131: 119.6666641 | L131: 368 | M131: 621 | N131: 2849.666748 | O131: 0 | P131: 0 | Q131: 11 | R131: 72 | S131: 259 | T131: 506 | U131: 635 | V131: 578 | W131: 422 | X131: 149 | Y131: 14 | Z131: 0 | AA131: 2646 | AB131: Gila County | AC131: 44 | AD131: AZ
A132: AZ880 | B132: 273.75 | C132: 175.4166718 | D132: 87.83333588 | E132: 21.66666603 | F132: 1.25 | G132: 0 | H132: 0 | I132: 0 | J132: 0 | K132: 6.416666508 | L132: 111.25 | M132: 308.6666565 | N132: 986.25 | O132: 2 | P132: 21 | Q132: 97 | R132: 259 | S132: 523 | T132: 765 | U132: 904 | V132: 873 | W132: 682 | X132: 371 | Y132: 69 | Z132: 1 | AA132: 4567 | AB132: Arizona Behavioral Health Corporation | AC132: 53 | AD132: AZ
A133: AZ901 | B133: 769.875 | C133: 612.75 | D133: 523.875 | E133: 312.75 | F133: 118.75 | G133: 18.25 | H133: 0.5 | I133: 1.25 | J133: 33.5 | K133: 229.875 | L133: 533.125 | M133: 792.375 | N133: 3946.875 | O133: 2 | P133: 21 | Q133: 97 | R133: 259 | S133: 523 | T133: 765 | U133: 904 | V133: 873 | W133: 682 | X133: 371 | Y133: 69 | Z133: 1 | AA133: 4567 | AB133: Arizona Dept of Hsg | AC133: 53 | AD133: AZ
A134: CA001 | B134: 427.7999878 | C134: 322.1333313 | D134: 320.7333374 | E134: 285.7333374 | F134: 252.3999939 | G134: 192.4666595 | H134: 171 | I134: 136.0666656 | J134: 119.6666641 | K134: 153.9333344 | L134: 263.5333252 | M134: 418 | N134: 3063.466553 | O134: 0 | P134: 0 | Q134: 1 | R134: 10 | S134: 17 | T134: 33 | U134: 37 | V134: 48 | W134: 68 | X134: 43 | Y134: 3 | Z134: 0 | AA134: 260 | AB134: San Francisco HA | AC134: 44 | AD134: CA
A135: CA002 | B135: 326.7272644 | C135: 255.4545441 | D135: 210.8181763 | E135: 130 | F135: 48.54545593 | G135: 9.727272987 | H135: 0.4545454681 | I135: 0.1818181872 | J135: 4.545454502 | K135: 45.45454407 | L135: 180.7272797 | M135: 336.2727356 | N135: 1548.909058 | O135: 13 | P135: 18 | Q135: 28 | R135: 71 | S135: 122 | T135: 210 | U135: 356 | V135: 383 | W135: 313 | X135: 171 | Y135: 46 | Z135: 6 | AA135: 1737 | AB135: Los Angeles County (HACOLA) | AC135: 46 | AD135: CA
A136: CA003 | B136: 446.1538391 | C136: 321.4615479 | D136: 292.2307739 | E136: 219.8461609 | F136: 160.4615326 | G136: 91.92308044 | H136: 69.15384674 | I136: 45.92307663 | J136: 48.92307663 | K136: 111.8461533 | L136: 269.6923218 | M136: 442.3076782 | N136: 2519.923096 | O136: 0 | P136: 0 | Q136: 2 | R136: 8 | S136: 17 | T136: 35 | U136: 35 | V136: 48 | W136: 62 | X136: 33 | Y136: 2 | Z136: 0 | AA136: 242 | AB136: Oakland HA | AC136: 43 | AD136: CA
A137: CA004 | B137: 252.3999939 | C137: 204.5333405 | D137: 178.2666626 | E137: 118.6666641 | F137: 51.86666489 | G137: 11.46666622 | H137: 0.8000000119 | I137: 0.5333333611 | J137: 3.333333254 | K137: 31.06666756 | L137: 133.1999969 | M137: 261.9333191 | N137: 1248.06665 | O137: 9 | P137: 14 | Q137: 20 | R137: 44 | S137: 67 | T137: 134 | U137: 259 | V137: 287 | W137: 244 | X137: 129 | Y137: 33 | Z137: 4 | AA137: 1244 | AB137: Los Angeles City (HACLA) | AC137: 47 | AD137: CA
A138: CA007 | B138: 554.3499756 | C138: 366.1499939 | D138: 281.3999939 | E138: 170.0500031 | F138: 56.34999847 | G138: 6.599999905 | H138: 0.150000006 | I138: 0.9499999881 | J138: 6.599999905 | K138: 75.15000153 | L138: 326.1499939 | M138: 559.7000122 | N138: 2403.600098 | O138: 0 | P138: 0 | Q138: 4 | R138: 31 | S138: 125 | T138: 251 | U138: 375 | V138: 352 | W138: 250 | X138: 79 | Y138: 1 | Z138: 0 | AA138: 1468 | AB138: Sacramento County | AD138: CA
A139: CA008 | B139: 570.125 | C139: 399.5 | D139: 315.75 | E139: 188.625 | F139: 70.5 | G139: 14.375 | H139: 1.25 | I139: 1.625 | J139: 13.5 | K139: 84.75 | L139: 346.75 | M139: 588.875 | N139: 2595.625 | O139: 0 | P139: 0 | Q139: 6 | R139: 41 | S139: 154 | T139: 343 | U139: 522 | V139: 494 | W139: 327 | X139: 104 | Y139: 5 | Z139: 0 | AA139: 1996 | AB139: Kern County | AC139: 42 | AD139: CA
A140: CA009 | B140: 323.1666565 | C140: 263.5 | D140: 211.3333282 | E140: 122.3333359 | F140: 40.33333206 | G140: 6 | H140: 0 | I140: 0 | J140: 3.166666746 | K140: 41.33333206 | L140: 173.6666718 | M140: 334.1666565 | N140: 1519 | O140: 3 | P140: 3 | Q140: 12 | R140: 41 | S140: 107 | T140: 223 | U140: 395 | V140: 439 | W140: 328 | X140: 132 | Y140: 22 | Z140: 2 | AA140: 1707 | AB140: Upland Housing Authority | AC140: 44 | AD140: CA
A141: CA010 | B141: 459 | C141: 331 | D141: 290 | E141: 222 | F141: 156 | G141: 86 | H141: 79 | I141: 60 | J141: 48 | K141: 101 | L141: 269 | M141: 445 | N141: 2546 | O141: 0 | P141: 0 | Q141: 2 | R141: 8 | S141: 15 | T141: 29 | U141: 24 | V141: 29 | W141: 53 | X141: 30 | Y141: 2 | Z141: 0 | AA141: 192 | AB141: Richmond Housing Authority | AC141: 42 | AD141: CA
A142: CA011 | B142: 535.6428833 | C142: 384.5 | D142: 323.2857056 | E142: 223.4285736 | F142: 117.8571396 | G142: 42.57143021 | H142: 22.1428566 | I142: 17.5 | J142: 25.0714283 | K142: 102.5714264 | L142: 324.5714417 | M142: 531.7142944 | N142: 2650.857178 | O142: 0 | P142: 0 | Q142: 0 | R142: 8 | S142: 43 | T142: 112 | U142: 160 | V142: 149 | W142: 96 | X142: 20 | Y142: 0 | Z142: 0 | AA142: 588 | AB142: Contra Costa County | AC142: 37 | AD142: CA
A143: CA014 | B143: 465.6428528 | C143: 350.9285583 | D143: 324.0714417 | E143: 253 | F143: 177 | G143: 99.5 | H143: 65 | I143: 51.92856979 | J143: 59.5 | K143: 135 | L143: 299.2857056 | M143: 461.1428528 | N143: 2742 | O143: 0 | P143: 0 | Q143: 1 | R143: 8 | S143: 31 | T143: 84 | U143: 134 | V143: 119 | W143: 82 | X143: 25 | Y143: 1 | Z143: 0 | AA143: 485 | AB143: San Mateo County | AC143: 40 | AD143: CA
A144: CA019 | B144: 425.4705811 | C144: 341.6470642 | D144: 275.5294189 | E144: 161.4117584 | F144: 60.94117737 | G144: 13.64705849 | H144: 1.470588207 | I144: 1.117647052 | J144: 11.76470566 | K144: 76.11764526 | L144: 260.0588379 | M144: 451.7647095 | N144: 2080.941162 | O144: 2 | P144: 5 | Q144: 15 | R144: 56 | S144: 150 | T144: 284 | U144: 462 | V144: 488 | W144: 356 | X144: 151 | Y144: 20 | Z144: 1 | AA144: 1990 | AB144: San Bernardino County | AC144: 43 | AD144: CA
A145: CA021 | B145: 391.1428528 | C145: 317.5714417 | D145: 305.1428528 | E145: 245.4285736 | F145: 180 | G145: 103.1428604 | H145: 49.57143021 | I145: 38.42856979 | J145: 56 | K145: 117.5714264 | L145: 250.7142792 | M145: 398.8571472 | N145: 2453.571533 | O145: 0 | P145: 1 | Q145: 2 | R145: 6 | S145: 5 | T145: 9 | U145: 23 | V145: 27 | W145: 31 | X145: 21 | Y145: 5 | Z145: 0 | AA145: 130 | AB145: Santa Barbara County | AC145: 41 | AD145: CA
A146: CA022 | B146: 334 | C146: 198 | D146: 93 | E146: 22 | F146: 1 | G146: 0 | H146: 0 | I146: 0 | J146: 0 | K146: 9 | L146: 139 | M146: 375 | N146: 1171 | O146: 1 | P146: 9 | Q146: 73 | R146: 229 | S146: 517 | T146: 771 | U146: 978 | V146: 925 | W146: 674 | X146: 311 | Y146: 45 | Z146: 0 | AA146: 4533 | AB146: Needles | AC146: 52 | AD146: CA
A147: CA023 | B147: 586.333313 | C147: 389.3333435 | D147: 296.5 | E147: 166 | F147: 44.16666794 | G147: 3.833333254 | H147: 0 | I147: 0.1666666716 | J147: 6 | K147: 80.5 | L147: 342.8333435 | M147: 593.666687 | N147: 2509.333252 | O147: 0 | P147: 0 | Q147: 0 | R147: 19 | S147: 111 | T147: 263 | U147: 397 | V147: 349 | W147: 217 | X147: 51 | Y147: 1 | Z147: 0 | AA147: 1408 | AB147: Merced | AC147: 40 | AD147: CA
A148: CA024 | B148: 567.2307739 | C148: 370.8461609 | D148: 280.8461609 | E148: 162.615387 | F148: 56.38461685 | G148: 8.230769157 | H148: 0.9230769277 | I148: 0.769230783 | J148: 9.384614944 | K148: 82.15384674 | L148: 334.0769348 | M148: 567 | N148: 2440.461426 | O148: 0 | P148: 0 | Q148: 4 | R148: 28 | S148: 124 | T148: 240 | U148: 352 | V148: 326 | W148: 238 | X148: 75 | Y148: 1 | Z148: 0 | AA148: 1388 | AB148: San Joaquin | AC148: 40 | AD148: CA
A149: CA026 | B149: 540.7999878 | C149: 341.3999939 | D149: 243.1999969 | E149: 134 | F149: 36 | G149: 3.200000048 | H149: 0 | I149: 0 | J149: 3.400000095 | K149: 62.20000076 | L149: 304 | M149: 543.7999878 | N149: 2212 | O149: 0 | P149: 0 | Q149: 5 | R149: 39 | S149: 155 | T149: 299 | U149: 437 | V149: 401 | W149: 276 | X149: 84 | Y149: 3 | Z149: 0 | AA149: 1699 | AB149: Stanislaus | AC149: 43 | AD149: CA
A150: CA027 | B150: 320.5714417 | C150: 253.0476227 | D150: 194.2380981 | E150: 106.5238113 | F150: 32.76190567 | G150: 4.476190567 | H150: 0 | I150: 0 | J150: 2.857142925 | K150: 32.23809433 | L150: 170.1428528 | M150: 342.0952454 | N150: 1458.952393 | O150: 3 | P150: 5 | Q150: 15 | R150: 55 | S150: 143 | T150: 271 | U150: 449 | V150: 474 | W150: 357 | X150: 146 | Y150: 22 | Z150: 1 | AA150: 1941 | AB150: Riverside County | AC150: 44 | AD150: CA
A151: CA028 | B151: 573.666687 | C151: 372.8888855 | D151: 267.222229 | E151: 139.6666718 | F151: 32.44444275 | G151: 2.333333254 | H151: 0 | I151: 0 | J151: 2.444444418 | K151: 64.8888855 | L151: 326.1111145 | M151: 573.333313 | N151: 2355 | O151: 0 | P151: 0 | Q151: 6 | R151: 41 | S151: 172 | T151: 342 | U151: 507 | V151: 494 | W151: 328 | X151: 100 | Y151: 3 | Z151: 0 | AA151: 1993 | AB151: Fresno County Housing Authority | AC151: 43 | AD151: CA
A152: CA030 | B152: 557.875 | C152: 365 | D152: 255.375 | E152: 142.25 | F152: 37.875 | G152: 3 | H152: 0 | I152: 0 | J152: 4.125 | K152: 67.875 | L152: 330.375 | M152: 573.25 | N152: 2337 | O152: 0 | P152: 0 | Q152: 4 | R152: 36 | S152: 152 | T152: 314 | U152: 477 | V152: 431 | W152: 274 | X152: 79 | Y152: 2 | Z152: 0 | AA152: 1769 | AB152: Tulare County HA | AC152: 43 | AD152: CA
A153: CA031 | B153: 323 | C153: 280 | D153: 287.5 | E153: 248 | F153: 169 | G153: 85 | H153: 29.5 | I153: 25.5 | J153: 38 | K153: 102 | L153: 214 | M153: 326 | N153: 2127.5 | O153: 5 | P153: 8 | Q153: 5 | R153: 8 | S153: 7 | T153: 24 | U153: 67 | V153: 78 | W153: 65 | X153: 36 | Y153: 14 | Z153: 2 | AA153: 319 | AB153: Oxnard Housing Authority | AC153: 44 | AD153: CA
A154: CA032 | B154: 327 | C154: 293 | D154: 297 | E154: 252 | F154: 185 | G154: 99 | H154: 37 | I154: 31 | J154: 42 | K154: 104 | L154: 215 | M154: 339 | N154: 2221 | O154: 6 | P154: 4 | Q154: 1 | R154: 2 | S154: 2 | T154: 7 | U154: 34 | V154: 43 | W154: 41 | X154: 23 | Y154: 11 | Z154: 3 | AA154: 177 | AB154: Port Hueneme Housing Authority | AC154: 42 | AD154: CA
A155: CA033 | B155: 452.6666565 | C155: 356.9166565 | D155: 341.3333435 | E155: 276.4166565 | F155: 194.6666718 | G155: 113.3333359 | H155: 76.08333588 | I155: 57 | J155: 68.58333588 | K155: 152.8333282 | L155: 308.5 | M155: 459.25 | N155: 2857.583252 | O155: 0 | P155: 0 | Q155: 1 | R155: 4 | S155: 6 | T155: 8 | U155: 10 | V155: 16 | W155: 23 | X155: 16 | Y155: 2 | Z155: 0 | AA155: 86 | AB155: Monterey | AC155: 39 | AD155: CA
A156: CA035 | B156: 350.3333435 | C156: 290.3333435 | D156: 273 | E156: 196.6666718 | F156: 122.3333359 | G156: 65 | H156: 23.33333397 | I156: 25.33333397 | J156: 33.66666794 | K156: 89.66666412 | L156: 217.3333282 | M156: 345 | N156: 2032 | O156: 0 | P156: 0 | Q156: 0 | R156: 0 | S156: 1 | T156: 0 | U156: 4 | V156: 13 | W156: 13 | X156: 2 | Y156: 0 | Z156: 0 | AA156: 33 | AB156: San Buenaventura City | AC156: 41 | AD156: CA
A157: CA039 | B157: 252 | C157: 148 | D157: 68 | E157: 18 | F157: 1 | G157: 0 | H157: 0 | I157: 0 | J157: 0 | K157: 4 | L157: 92 | M157: 280 | N157: 863 | O157: 2 | P157: 14 | Q157: 83 | R157: 197 | S157: 431 | T157: 642 | U157: 845 | V157: 843 | W157: 657 | X157: 345 | Y157: 67 | Z157: 1 | AA157: 4127 | AB157: Calexico City | AC157: 50 | AD157: CA
A158: CA041 | B158: 597 | C158: 439.5 | D158: 378 | E158: 273 | F158: 157.5 | G158: 50 | H158: 24 | I158: 20.5 | J158: 49 | K158: 176.5 | L158: 402.5 | M158: 599 | N158: 3166.5 | O158: 0 | P158: 0 | Q158: 0 | R158: 8 | S158: 43 | T158: 112 | U158: 160 | V158: 149 | W158: 96 | X158: 20 | Y158: 0 | Z158: 0 | AA158: 588 | AB158: Benicia | AC158: 37 | AD158: CA
A159: CA043 | B159: 613.1428833 | C159: 459.7142944 | D159: 388.5714417 | E159: 255.8571472 | F159: 110 | G159: 24.5714283 | H159: 1.857142806 | I159: 1.571428537 | J159: 24.5714283 | K159: 138.5714264 | L159: 411.5714417 | M159: 617 | N159: 3047 | O159: 0 | P159: 0 | Q159: 2 | R159: 19 | S159: 119 | T159: 243 | U159: 383 | V159: 341 | W159: 226 | X159: 54 | Y159: 1 | Z159: 0 | AA159: 1388 | AB159: Butte | AC159: 39 | AD159: CA
A160: CA044 | B160: 578.7999878 | C160: 394.6000061 | D160: 306.2000122 | E160: 181.1999969 | F160: 59 | G160: 6.400000095 | H160: 0.400000006 | I160: 0.6000000238 | J160: 6.800000191 | K160: 82 | L160: 343.7999878 | M160: 580.7999878 | N160: 2540.600098 | O160: 0 | P160: 0 | Q160: 4 | R160: 32 | S160: 137 | T160: 278 | U160: 394 | V160: 364 | W160: 259 | X160: 83 | Y160: 2 | Z160: 0 | AA160: 1553 | AB160: Yolo County Housing | AC160: 42 | AD160: CA
A161: CA048 | B161: 582.333313 | C161: 398.3333435 | D161: 316 | E161: 182.3333282 | F161: 49 | G161: 4 | H161: 0 | I161: 0 | J161: 7.333333492 | K161: 86.33333588 | L161: 361 | M161: 584.666687 | N161: 2571.333252 | O161: 0 | P161: 0 | Q161: 1 | R161: 17 | S161: 107 | T161: 261 | U161: 381 | V161: 339 | W161: 199 | X161: 51 | Y161: 1 | Z161: 0 | AA161: 1357 | AB161: Sutter County Housing Authority | AC161: 40 | AD161: CA
A162: CA052 | B162: 526 | C162: 380.5 | D162: 336 | E162: 245.5 | F162: 154.5 | G162: 62 | H162: 20.5 | I162: 17 | J162: 34.5 | K162: 125.5 | L162: 331.5 | M162: 525 | N162: 2758.5 | O162: 0 | P162: 0 | Q162: 1 | R162: 7 | S162: 26 | T162: 60 | U162: 96 | V162: 96 | W162: 81 | X162: 27 | Y162: 1 | Z162: 0 | AA162: 395 | AB162: Marin Housing | AC162: 41 | AD162: CA
A163: CA053 | B163: 607.333313 | C163: 403 | D163: 289.3333435 | E163: 158.6666718 | F163: 41 | G163: 4 | H163: 0 | I163: 0 | J163: 6.666666508 | K163: 88.66666412 | L163: 369 | M163: 622.666687 | N163: 2590.333252 | O163: 0 | P163: 0 | Q163: 4 | R163: 38 | S163: 165 | T163: 321 | U163: 482 | V163: 434 | W163: 273 | X163: 73 | Y163: 2 | Z163: 0 | AA163: 1792 | AB163: Kings County Housing Auth | AC163: 42 | AD163: CA
A164: CA056 | B164: 491.3529358 | C164: 366.1176453 | D164: 325.8235168 | E164: 240.7647095 | F164: 126.4705887 | G164: 38 | H164: 6.470588207 | I164: 5.588235378 | J164: 24.47058868 | K164: 112.0588226 | L164: 318.2941284 | M164: 489.4117737 | N164: 2544.823486 | O164: 0 | P164: 0 | Q164: 2 | R164: 15 | S164: 46 | T164: 101 | U164: 159 | V164: 160 | W164: 116 | X164: 37 | Y164: 1 | Z164: 0 | AA164: 637 | AB164: San Jose City Housing Authority | AC164: 42 | AD164: CA
A165: CA058 | B165: 459 | C165: 339 | D165: 314 | E165: 258 | F165: 182 | G165: 103 | H165: 73 | I165: 57 | J165: 68 | K165: 120 | L165: 281 | M165: 446 | N165: 2700 | O165: 0 | P165: 0 | Q165: 2 | R165: 8 | S165: 13 | T165: 26 | U165: 25 | V165: 29 | W165: 41 | X165: 27 | Y165: 2 | Z165: 0 | AA165: 173 | AB165: Berkeley | AC165: 40 | AD165: CA
A166: CA059 | B166: 480.722229 | C166: 357.277771 | D166: 316.6666565 | E166: 231.5555573 | F166: 120.7777786 | G166: 35.66666794 | H166: 6.444444656 | I166: 5.611111164 | J166: 22.77777863 | K166: 104.5555573 | L166: 307.055542 | M166: 478.1111145 | N166: 2467.222168 | O166: 0 | P166: 0 | Q166: 4 | R166: 15 | S166: 51 | T166: 115 | U166: 184 | V166: 177 | W166: 137 | X166: 45 | Y166: 2 | Z166: 0 | AA166: 730 | AB166: Santa Clara | AC166: 42 | AD166: CA
A167: CA060 | B167: 533 | C167: 367 | D167: 299 | E167: 204 | F167: 88 | G167: 15 | H167: 3 | I167: 2 | J167: 10 | K167: 83 | L167: 330 | M167: 536 | N167: 2470 | O167: 0 | P167: 0 | Q167: 2 | R167: 12 | S167: 57 | T167: 142 | U167: 230 | V167: 230 | W167: 163 | X167: 49 | Y167: 1 | Z167: 0 | AA167: 886 | AB167: Pittsburg | AC167: 41 | AD167: CA
A168: CA061 | B168: 560 | C168: 489 | D168: 516 | E168: 453 | F168: 377 | G168: 290 | H168: 222 | I168: 208 | J168: 246 | K168: 353 | L168: 471 | M168: 578 | N168: 4763 | O168: 0 | P168: 0 | Q168: 0 | R168: 0 | S168: 0 | T168: 0 | U168: 0 | V168: 0 | W168: 2 | X168: 1 | Y168: 0 | Z168: 0 | AA168: 3 | AB168: Crescent City | AC168: 37 | AD168: CA
A169: CA062 | B169: 457.5 | C169: 333 | D169: 303 | E169: 223.5 | F169: 167 | G169: 95 | H169: 73 | I169: 49 | J169: 52 | K169: 123 | L169: 284.5 | M169: 457.5 | N169: 2618 | O169: 0 | P169: 0 | Q169: 2 | R169: 8 | S169: 17 | T169: 35 | U169: 35 | V169: 48 | W169: 62 | X169: 33 | Y169: 2 | Z169: 0 | AA169: 242 | AB169: Alameda City | AC169: 43 | AD169: CA
A170: CA063 | B170: 265.2666626 | C170: 221.3999939 | D170: 203.1999969 | E170: 132.2666626 | F170: 63.59999847 | G170: 18 | H170: 1.066666722 | I170: 0.1333333403 | J170: 3 | K170: 30.20000076 | L170: 144.3999939 | M170: 275.2666626 | N170: 1357.800049 | O170: 2 | P170: 3 | Q170: 5 | R170: 14 | S170: 25 | T170: 60 | U170: 156 | V170: 203 | W170: 168 | X170: 71 | Y170: 13 | Z170: 0 | AA170: 720 | AB170: San Diego Housing Commission | AC170: 48 | AD170: CA
A171: CA064 | B171: 391.6363525 | C171: 318.2727356 | D171: 310.4545593 | E171: 258 | F171: 207.7272797 | G171: 134.7272797 | H171: 91.72727203 | I171: 74.36363983 | J171: 85.1818161 | K171: 139.2727203 | L171: 250.9090881 | M171: 399.2727356 | N171: 2661.54541 | O171: 0 | P171: 1 | Q171: 2 | R171: 7 | S171: 14 | T171: 22 | U171: 47 | V171: 74 | W171: 76 | X171: 37 | Y171: 8 | Z171: 0 | AA171: 288 | AB171: San Luis Obispo | AC171: 39 | AD171: CA
A172: CA065 | B172: 561 | C172: 378 | D172: 300 | E172: 195 | F172: 80 | G172: 14 | H172: 2 | I172: 2 | J172: 10 | K172: 81 | L172: 314 | M172: 556 | N172: 2493 | O172: 0 | P172: 0 | Q172: 2 | R172: 18 | S172: 77 | T172: 173 | U172: 268 | V172: 253 | W172: 189 | X172: 60 | Y172: 2 | Z172: 0 | AA172: 1042 | AB172: Fairfield | AC172: 41 | AD172: CA
A173: CA066 | B173: 561 | C173: 378 | D173: 300 | E173: 195 | F173: 80 | G173: 14 | H173: 2 | I173: 2 | J173: 10 | K173: 81 | L173: 314 | M173: 556 | N173: 2493 | O173: 0 | P173: 0 | Q173: 2 | R173: 18 | S173: 77 | T173: 173 | U173: 268 | V173: 253 | W173: 189 | X173: 60 | Y173: 2 | Z173: 0 | AA173: 1042 | AB173: Suisun City Housing Authority | AC173: 41 | AD173: CA
A174: CA067 | B174: 483.7142944 | C174: 361.1428528 | D174: 317.6428528 | E174: 239 | F174: 160.3571472 | G174: 76.35713959 | H174: 36 | I174: 21.0714283 | J174: 36.1428566 | K174: 116.2142868 | L174: 303.3571472 | M174: 480.0714417 | N174: 2631.071533 | O174: 0 | P174: 0 | Q174: 3 | R174: 9 | S174: 19 | T174: 39 | U174: 51 | V174: 69 | W174: 75 | X174: 27 | Y174: 1 | Z174: 0 | AA174: 293 | AB174: Alameda County Hsg Auth | AC174: 42 | AD174: CA
A175: CA068 | B175: 259 | C175: 212 | D175: 179 | E175: 106 | F175: 37 | G175: 6 | H175: 0 | I175: 0 | J175: 1 | K175: 20 | L175: 128 | M175: 271 | N175: 1219 | O175: 3 | P175: 5 | Q175: 10 | R175: 29 | S175: 56 | T175: 121 | U175: 254 | V175: 290 | W175: 231 | X175: 105 | Y175: 21 | Z175: 1 | AA175: 1126 | AB175: Long Beach | AC175: 46 | AD175: CA
A176: CA069 | B176: 601 | C176: 406 | D176: 336 | E176: 186 | F176: 48 | G176: 3 | H176: 0 | I176: 0 | J176: 7 | K176: 90 | L176: 369 | M176: 609 | N176: 2655 | O176: 0 | P176: 0 | Q176: 1 | R176: 24 | S176: 119 | T176: 280 | U176: 426 | V176: 374 | W176: 238 | X176: 59 | Y176: 2 | Z176: 0 | AA176: 1523 | AB176: Madera | AC176: 40 | AD176: CA
A177: CA070 | B177: 891.2857056 | C177: 711.5714111 | D177: 636.2857056 | E177: 476 | F177: 282.4285583 | G177: 118 | H177: 31.8571434 | I177: 39.2857132 | J177: 131 | K177: 358.1428528 | L177: 657.7142944 | M177: 895.2857056 | N177: 5228.856934 | O177: 0 | P177: 0 | Q177: 0 | R177: 0 | S177: 11 | T177: 45 | U177: 137 | V177: 101 | W177: 30 | X177: 2 | Y177: 0 | Z177: 0 | AA177: 326 | AB177: Plumas | AC177: 30 | AD177: CA
A178: CA071 | B178: 242.3333282 | C178: 194 | D178: 167 | E178: 111.3333359 | F178: 44.33333206 | G178: 9.333333015 | H178: 0.6666666865 | I178: 0 | J178: 1.666666627 | K178: 26 | L178: 116 | M178: 248.3333282 | N178: 1161 | O178: 7 | P178: 7 | Q178: 14 | R178: 21 | S178: 34 | T178: 69 | U178: 164 | V178: 200 | W178: 164 | X178: 95 | Y178: 28 | Z178: 2 | AA178: 805 | AB178: Compton | AC178: 47 | AD178: CA
A179: CA072 | B179: 428.25 | C179: 335 | D179: 318.5 | E179: 240.625 | F179: 163.75 | G179: 82.25 | H179: 48.75 | I179: 38.375 | J179: 56.625 | K179: 139.125 | L179: 293.125 | M179: 441 | N179: 2585.375 | O179: 0 | P179: 0 | Q179: 1 | R179: 6 | S179: 25 | T179: 55 | U179: 99 | V179: 104 | W179: 80 | X179: 24 | Y179: 1 | Z179: 0 | AA179: 395 | AB179: Santa Cruz County Hsg Auth | AD179: CA
A180: CA073 | B180: 572.25 | C180: 435 | D180: 382.5 | E180: 279.5 | F180: 157.5 | G180: 46.25 | H180: 21.25 | I180: 17.5 | J180: 42.25 | K180: 162.5 | L180: 387.75 | M180: 581.5 | N180: 3085.75 | O180: 0 | P180: 0 | Q180: 1 | R180: 2 | S180: 12 | T180: 42 | U180: 52 | V180: 57 | W180: 50 | X180: 7 | Y180: 0 | Z180: 0 | AA180: 223 | AB180: Napa Housing Authority | AC180: 37 | AD180: CA
A181: CA074 | B181: 665 | C181: 622 | D181: 636 | E181: 519 | F181: 336 | G181: 141 | H181: 29 | I181: 29 | J181: 96 | K181: 256 | L181: 515 | M181: 683 | N181: 4527 | O181: 0 | P181: 0 | Q181: 0 | R181: 4 | S181: 29 | T181: 86 | U181: 221 | V181: 207 | W181: 136 | X181: 44 | Y181: 3 | Z181: 0 | AA181: 730 | AB181: Livermore | AC181: 40 | AD181: CA
A182: CA075 | B182: 309 | C182: 262 | D182: 239 | E182: 165 | F182: 98 | G182: 40 | H182: 6 | I182: 5 | J182: 15 | K182: 65 | L182: 190 | M182: 309 | N182: 1703 | O182: 5 | P182: 6 | Q182: 5 | R182: 13 | S182: 22 | T182: 44 | U182: 124 | V182: 141 | W182: 109 | X182: 44 | Y182: 13 | Z182: 4 | AA182: 530 | AB182: Santa Paula | AC182: 40 | AD182: CA
A183: CA076 | B183: 357.6000061 | C183: 283.7999878 | D183: 266.7999878 | E183: 198.3999939 | F183: 138.1999969 | G183: 74 | H183: 19.79999924 | I183: 17.60000038 | J183: 33.20000076 | K183: 96.40000153 | L183: 225 | M183: 359.2000122 | N183: 2070 | O183: 1 | P183: 3 | Q183: 5 | R183: 16 | S183: 17 | T183: 31 | U183: 88 | V183: 107 | W183: 87 | X183: 43 | Y183: 9 | Z183: 1 | AA183: 408 | AB183: Santa Barbara City | AC183: 45 | AD183: CA
A184: CA077 | B184: 325 | C184: 273 | D184: 266.6666565 | E184: 186 | F184: 103.6666641 | G184: 31 | H184: 3 | I184: 0.6666666865 | J184: 6 | K184: 59.66666794 | L184: 198.6666718 | M184: 332 | N184: 1785.333374 | O184: 4 | P184: 2 | Q184: 3 | R184: 4 | S184: 9 | T184: 29 | U184: 104 | V184: 151 | W184: 113 | X184: 51 | Y184: 15 | Z184: 1 | AA184: 486 | AB184: Carlsbad Housing Agency | AC184: 46 | AD184: CA
A185: CA079 | B185: 231 | C185: 182 | D185: 142 | E185: 83 | F185: 30 | G185: 5 | H185: 0 | I185: 0 | J185: 1 | K185: 15 | L185: 113 | M185: 251 | N185: 1053 | O185: 10 | P185: 16 | Q185: 28 | R185: 67 | S185: 119 | T185: 214 | U185: 366 | V185: 403 | W185: 340 | X185: 174 | Y185: 42 | Z185: 3 | AA185: 1782 | AB185: Pasadena | AC185: 46 | AD185: CA
A186: CA082 | B186: 248 | C186: 205 | D186: 191 | E186: 136 | F186: 67 | G186: 18 | H186: 1.5 | I186: 1 | J186: 3.5 | K186: 32 | L186: 124 | M186: 248.5 | N186: 1275.5 | O186: 4 | P186: 5 | Q186: 6 | R186: 11 | S186: 14 | T186: 42 | U186: 119 | V186: 145 | W186: 122 | X186: 63 | Y186: 19 | Z186: 1 | AA186: 551 | AB186: Inglewood | AC186: 47 | AD186: CA
A187: CA084 | B187: 613.666687 | C187: 499 | D187: 488.6666565 | E187: 408 | F187: 294.6666565 | G187: 176.6666718 | H187: 111.3333359 | I187: 113 | J187: 148.3333282 | K187: 280.3333435 | L187: 481 | M187: 635.333313 | N187: 4250 | O187: 0 | P187: 0 | Q187: 1 | R187: 8 | S187: 44 | T187: 120 | U187: 262 | V187: 231 | W187: 137 | X187: 32 | Y187: 0 | Z187: 0 | AA187: 835 | AB187: Mendocino County | AC187: 38 | AD187: CA
A188: CA085 | B188: 524.8181763 | C188: 383.7272644 | D188: 338.0909119 | E188: 242.6363678 | F188: 135.7272797 | G188: 44 | H188: 15.27272701 | I188: 13.18181801 | J188: 27.63636398 | K188: 119.0909119 | L188: 337.9090881 | M188: 533.9091187 | N188: 2716 | O188: 0 | P188: 0 | Q188: 1 | R188: 4 | S188: 20 | T188: 69 | U188: 96 | V188: 87 | W188: 76 | X188: 19 | Y188: 0 | Z188: 0 | AA188: 372 | AB188: Sonoma | AC188: 37 | AD188: CA
A189: CA092 | B189: 324.1000061 | C189: 289.8999939 | D189: 249.1999969 | E189: 182.3000031 | F189: 98.69999695 | G189: 27.29999924 | H189: 3.400000095 | I189: 3.099999905 | J189: 13 | K189: 73.40000153 | L189: 196.1999969 | M189: 336.6000061 | N189: 1797.199951 | O189: 4 | P189: 1 | Q189: 8 | R189: 14 | S189: 37 | T189: 104 | U189: 219 | V189: 197 | W189: 172 | X189: 78 | Y189: 20 | Z189: 2 | AA189: 856 | AB189: Ventura County | AC189: 43 | AD189: CA
A190: CA093 | B190: 220.8333282 | C190: 182.3333282 | D190: 151 | E190: 94.16666412 | F190: 33.83333206 | G190: 6.166666508 | H190: 0 | I190: 0 | J190: 1 | K190: 14.33333302 | L190: 103.5 | M190: 238.1666718 | N190: 1045.333374 | O190: 10 | P190: 11 | Q190: 17 | R190: 38 | S190: 67 | T190: 127 | U190: 253 | V190: 288 | W190: 242 | X190: 128 | Y190: 31 | Z190: 4 | AA190: 1216 | AB190: Santa Ana Housing Authority | AC190: 46 | AD190: CA
A191: CA094 | B191: 247.0909119 | C191: 197.0909119 | D191: 163.8181763 | E191: 102.1818161 | F191: 32.63636398 | G191: 5 | H191: 0 | I191: 0 | J191: 1 | K191: 19.90909004 | L191: 119.0909119 | M191: 259.5454407 | N191: 1147.363647 | O191: 10 | P191: 11 | Q191: 17 | R191: 38 | S191: 67 | T191: 127 | U191: 253 | V191: 288 | W191: 242 | X191: 128 | Y191: 31 | Z191: 4 | AA191: 1216 | AB191: Orange County | AC191: 46 | AD191: CA
A192: CA102 | B192: 223.6666718 | C192: 180.8333282 | D192: 149.1666718 | E192: 91.16666412 | F192: 32.5 | G192: 5.333333492 | H192: 0 | I192: 0 | J192: 1 | K192: 13.83333302 | L192: 105.8333359 | M192: 237.6666718 | N192: 1041 | O192: 10 | P192: 11 | Q192: 17 | R192: 38 | S192: 67 | T192: 127 | U192: 253 | V192: 288 | W192: 242 | X192: 128 | Y192: 31 | Z192: 4 | AA192: 1216 | AB192: Garden Grove | AC192: 46 | AD192: CA
A193: CA103 | B193: 255 | C193: 209.5 | D193: 189 | E193: 133 | F193: 62.5 | G193: 17 | H193: 2.5 | I193: 1 | J193: 3.5 | K193: 36 | L193: 135 | M193: 262 | N193: 1306 | O193: 7 | P193: 7 | Q193: 14 | R193: 21 | S193: 34 | T193: 69 | U193: 164 | V193: 200 | W193: 164 | X193: 95 | Y193: 28 | Z193: 2 | AA193: 805 | AB193: Redondo Beach | AC193: 47 | AD193: CA
A194: CA104 | B194: 236.3333282 | C194: 186.5 | D194: 151.8333282 | E194: 89.83333588 | F194: 27.83333397 | G194: 3 | H194: 0 | I194: 0 | J194: 0.6666666865 | K194: 17.5 | L194: 115.1666641 | M194: 244.6666718 | N194: 1073.333374 | O194: 18 | P194: 16 | Q194: 28 | R194: 55 | S194: 112 | T194: 187 | U194: 329 | V194: 366 | W194: 299 | X194: 166 | Y194: 53 | Z194: 10 | AA194: 1639 | AB194: Anaheim Housing Authority | AC194: 47 | AD194: CA
A195: CA105 | B195: 316 | C195: 258 | D195: 218 | E195: 138 | F195: 59 | G195: 13 | H195: 0 | I195: 0 | J195: 6 | K195: 43 | L195: 179 | M195: 339 | N195: 1569 | O195: 2 | P195: 4 | Q195: 10 | R195: 35 | S195: 73 | T195: 148 | U195: 292 | V195: 318 | W195: 249 | X195: 100 | Y195: 14 | Z195: 1 | AA195: 1246 | AB195: Burbank | AC195: 43 | AD195: CA
A196: CA106 | B196: 591 | C196: 446 | D196: 367 | E196: 231 | F196: 84.33333588 | G196: 13.33333302 | H196: 0.6666666865 | I196: 0.6666666865 | J196: 10.66666698 | K196: 106.6666641 | L196: 387.3333435 | M196: 595.666687 | N196: 2834.333252 | O196: 0 | P196: 0 | Q196: 4 | R196: 24 | S196: 129 | T196: 293 | U196: 501 | V196: 472 | W196: 304 | X196: 91 | Y196: 2 | Z196: 0 | AA196: 1820 | AB196: Redding Housing Authority | AD196: CA
A197: CA107 | B197: 582.333313 | C197: 398.3333435 | D197: 316 | E197: 182.3333282 | F197: 49 | G197: 4 | H197: 0 | I197: 0 | J197: 7.333333492 | K197: 86.33333588 | L197: 361 | M197: 584.666687 | N197: 2571.333252 | O197: 0 | P197: 0 | Q197: 5 | R197: 41 | S197: 165 | T197: 325 | U197: 476 | V197: 429 | W197: 291 | X197: 88 | Y197: 2 | Z197: 0 | AA197: 1822 | AB197: Yuba County Housing Authority | AC197: 43 | AD197: CA
A198: CA108 | B198: 267.6470642 | C198: 221.8823547 | D198: 191.8235321 | E198: 114.0588226 | F198: 49 | G198: 10.47058868 | H198: 0.6470588446 | I198: 0.4117647111 | J198: 3 | K198: 26.05882263 | L198: 140.5294189 | M198: 281.8823547 | N198: 1307.411743 | O198: 2 | P198: 2 | Q198: 5 | R198: 15 | S198: 27 | T198: 67 | U198: 193 | V198: 247 | W198: 190 | X198: 79 | Y198: 15 | Z198: 1 | AA198: 843 | AB198: San Diego County | AC198: 45 | AD198: CA
A199: CA110 | B199: 268 | C199: 219 | D199: 196 | E199: 126 | F199: 57 | G199: 12 | H199: 1 | I199: 2 | J199: 5 | K199: 40 | L199: 162 | M199: 281 | N199: 1369 | O199: 3 | P199: 3 | Q199: 7 | R199: 23 | S199: 30 | T199: 78 | U199: 165 | V199: 180 | W199: 146 | X199: 65 | Y199: 12 | Z199: 1 | AA199: 713 | AB199: Culver City | AC199: 46 | AD199: CA
A200: CA111 | B200: 253 | C200: 226.5 | D200: 223 | E200: 185.5 | F200: 116 | G200: 42.5 | H200: 10.5 | I200: 9 | J200: 14 | K200: 50 | L200: 147.5 | M200: 260.5 | N200: 1538 | O200: 9 | P200: 5 | Q200: 6 | R200: 3 | S200: 11 | T200: 31 | U200: 121 | V200: 138 | W200: 107 | X200: 50 | Y200: 17 | Z200: 2 | AA200: 500 | AB200: Santa Monica Housing Authority | AC200: 46 | AD200: CA
... 2050 more rows

Sheet Water Consumption Model (hidden)
A1: State | B1: Constant | C1: Monthly Min Temp
A2: AK | B2: 26055.19 | C2: 0
A3: AL | B3: 28015.49 | C3: 0
A4: AR | B4: 32157.81 | C4: 0
A5: AZ | B5: 49238 | C5: 0
A6: CA | B6: 61579.05 | C6: 0
A7: CO | B7: 53862.18 | C7: 0
A8: CT | B8: 27375.62 | C8: 0
A9: DC | B9: 51885.84 | C9: 0
A10: DE | B10: 23138.29 | C10: 0
A11: FL | B11: 35188.77 | C11: 0
A12: GA | B12: 34740.72 | C12: 0
A13: HI | B13: 61335.66 | C13: 0
A14: IA | B14: 23624.09 | C14: 0
A15: ID | B15: 79946.11 | C15: 0
A16: IL | B16: 32857.52 | C16: 0
A17: IN | B17: 27735.15 | C17: 0
A18: KS | B18: 36114.73 | C18: 0
A19: KY | B19: 24173.67 | C19: 0
A20: LA | B20: 41936.99 | C20: 0
A21: MA | B21: 31219.35 | C21: 0
A22: MD | B22: 35314.13 | C22: 0
A23: ME | B23: 19986.1 | C23: 0
A24: MI | B24: 29400.69 | C24: 0
A25: MN | B25: 23779.29 | C25: 0
A26: MO | B26: 29887.45 | C26: 0
A27: MS | B27: 44317.05 | C27: 0
A28: MT | B28: 38517.92 | C28: 0
A29: NC | B29: 24640.2 | C29: 0
A30: ND | B30: 33487.43 | C30: 0
A31: NE | B31: 59081.52 | C31: 0
A32: NH | B32: 27376.63 | C32: 0
A33: NJ | B33: 26326.47 | C33: 0
A34: NM | B34: 42116.69 | C34: 0
A35: NV | B35: 84748.28 | C35: 0
A36: NY | B36: 34269.57 | C36: 0
A37: OH | B37: 25520.58 | C37: 0
A38: OK | B38: 30796.47 | C38: 0
A39: OR | B39: 60370.23 | C39: 0
A40: PA | B40: 20072.83 | C40: 0
A41: PR | B41: 30183.33 | C41: 0
A42: RQ | B42: 30183.33 | C42: 0
A43: RI | B43: 28693.22 | C43: 0
A44: SC | B44: 36495.86 | C44: 0
A45: SD | B45: 39085.94 | C45: 0
A46: TN | B46: 30563.16 | C46: 0
A47: TX | B47: 52056.61 | C47: 0
A48: UT | B48: 90489.61 | C48: 0
A49: VA | B49: 27396.81 | C49: 0
A50: VI | B50: 29596.56 | C50: 0
A51: VT | B51: 23443.43 | C51: 0
A52: WA | B52: 39638.42 | C52: 0
A53: WI | B53: 18419.28 | C53: 0
A54: WV | B54: 37081.36 | C54: 0
A55: WY | B55: 65038.34 | C55: 0

Sheet Tariffs
D1: Previous | F1: Current | N1: Change in Tariff
B2: Date Entered | D2: 2015-07-31 | F2: 2015-09-01
A4: Standard Electric Utility Tariff | N4: =F354 -> 
N5: =IF(N4>=0.1,"Need to Update Allowances","") -> 
B6: Utility Name
B8: Rate Name
B10: Rate Effective Date
B12: First Month of Summer | H12: Select January if rate is not seasonal
D13: 1 | F13: 1
B15: Last Month of Summer | H15: Select December if rate is not seasonal
D16: 12 | F16: 12
J17: Floor | L17: Ceiling
B18: Monthly Charge | H18: $/month | I18: FALSE | K18: FALSE | M18: $/month
B20: Summer
B21: Size of First Block | H21: kWh | I21: TRUE
B22: Size of Second Block | H22: kWh | I22: FALSE
B23: Size of Third Block | H23: kWh | I23: FALSE
B24: Size of Fourth Block | H24: kWh | I24: FALSE
B26: Cost of First Block | H26: $/kWh | I26: TRUE
B27: Cost of Second Block | H27: $/kWh | I27: FALSE
B28: Cost of Third Block | H28: $/kWh | I28: FALSE
B29: Cost of Fourth Block | H29: $/kWh | I29: FALSE
B31: Winter
B32: Size of First Block | H32: kWh | I32: TRUE
B33: Size of Second Block | H33: kWh | I33: FALSE
B34: Size of Third Block | H34: kWh | I34: FALSE
B35: Size of Fourth Block | H35: kWh | I35: FALSE
B37: Cost of First Block | H37: $/kWh | I37: FALSE
B38: Cost of Second Block | H38: $/kWh | I38: FALSE
B39: Cost of Third Block | H39: $/kWh | I39: FALSE | P39: =IF(AND(D39<>0,F39<>0),(F39-D39)/D39,"") -> 
B40: Cost of Fourth Block | H40: $/kWh | I40: FALSE | P40: =IF(AND(D40<>0,F40<>0),(F40-D40)/D40,"") -> 
B42: Extra Charges | H42: $/kWh
B44: Taxes | H44: %
A47: Special Electric Heating/All Electric Tariff
A48: When electric utilities have special discounted tariffs for customers that heat with electricity or
A49: use only electricity and no other energy source in their homes.
N50: =IF(N47>=0.1,"Need to Update Allowances","") -> 
B51: Use Electric Heat Tariff | F51: FALSE
B53: Utility Name
B55: Rate Name
B57: Rate Effective Date
B59: First Month of Summer
D60: 1 | F60: 1
B62: Last Month of Summer
D63: 12 | F63: 12
J64: Floor | L64: Ceiling
B65: Monthly Charge | H65: $/month | I65: FALSE | K65: FALSE | M65: $/month
B67: Summer
B68: Size of First Block | H68: kWh
B69: Size of Second Block | H69: kWh
B70: Size of Third Block | H70: kWh
B71: Size of Fourth Block | H71: kWh
B73: Cost of First Block | H73: $/kWh
B74: Cost of Second Block | H74: $/kWh
B75: Cost of Third Block | H75: $/kWh
B76: Cost of Fourth Block | H76: $/kWh
B78: Winter
B79: Size of First Block | H79: kWh
B80: Size of Second Block | H80: kWh
B81: Size of Third Block | H81: kWh
B82: Size of Fourth Block | H82: kWh
B84: Cost of First Block | H84: $/kWh
B85: Cost of Second Block | H85: $/kWh
B86: Cost of Third Block | H86: $/kWh
B87: Cost of Fourth Block | H87: $/kWh
B89: Extra Charges | H89: $/kWh
B91: Taxes | H91: %
A93: Standard Natural Gas Utility Tariff | N93: =F412 -> 
N94: =IF(N93>=0.1,"Need to Update Allowances","") -> 
B95: Utility Name
B97: Rate Name
B99: Rate Effective Date
B101: Measurement Units
F102: 1
B104: First Month of Summer
D105: 1 | F105: 1
B107: Last Month of Summer
D108: 12 | F108: 12
J109: Floor | L109: Ceiling
B110: Monthly Charge | H110: $/month | I110: FALSE | K110: FALSE | M110: $/month
B112: Summer
B113: Size of First Block | H113: =INDEX(B288:B291,Tariffs!F102) -> Therms
B114: Size of Second Block | H114: =H113 -> Therms
B115: Size of Third Block | H115: =H114 -> Therms
B116: Size of Fourth Block | H116: =H115 -> Therms
B118: Cost of First Block | H118: ="$/"&H116 -> $/Therms
B119: Cost of Second Block | H119: =H118 -> $/Therms
B120: Cost of Third Block | H120: =H119 -> $/Therms
B121: Cost of Fourth Block | H121: =H120 -> $/Therms
B123: Winter
B124: Size of First Block | H124: =H116 -> Therms
B125: Size of Second Block | H125: =H124 -> Therms
B126: Size of Third Block | H126: =H125 -> Therms
B127: Size of Fourth Block | H127: =H126 -> Therms
B129: Cost of First Block | H129: =H118 -> $/Therms
B130: Cost of Second Block | H130: =H118 -> $/Therms
B131: Cost of Third Block | H131: =H118 -> $/Therms
B132: Cost of Fourth Block | H132: =H118 -> $/Therms
B134: Extra Charges | H134: =H118 -> $/Therms
B136: Taxes | H136: %
A138: Fuel Oil Delivery Contract
B140: Supplier Name
B142: Effective Date
J143: Floor | L143: Ceiling
B144: Monthly Charge | H144: $/month | I144: FALSE | K144: FALSE | M144: $/month
B146: Size of First Block | H146: Gallons
B147: Size of Second Block | H147: Gallons
B148: Size of Third Block | H148: Gallons
B149: Size of Fourth Block | H149: Gallons
B151: Cost of First Block | H151: $/Gallon
B152: Cost of Second Block | H152: $/Gallon
B153: Cost of Third Block | H153: $/Gallon
B154: Cost of Fourth Block | H154: $/Gallon
B156: Extra Charges | H156: $/Gallon
B158: Taxes | H158: %
A160: Liquified Petroleum Gas (LPG) Delivery Contract
B162: Supplier Name
B164: Effective Date
J165: Floor | L165: Ceiling
B166: Monthly Charge | H166: $/month | I166: FALSE | K166: FALSE | M166: $/month
B168: Size of First Block | H168: lbs
B169: Size of Second Block | H169: lbs
B170: Size of Third Block | H170: lbs
B171: Size of Fourth Block | H171: lbs
B173: Cost of First Block | H173: $/lb
B174: Cost of Second Block | H174: $/lb
B175: Cost of Third Block | H175: $/lb
B176: Cost of Fourth Block | H176: $/lb
B178: Extra Charges | H178: $/lb
B180: Taxes | H180: %
A182: Water Supply Tariff
B184: Supplier Name
B186: Effective Date
B188: Measurement Units
F189: 1 | J189: Floor | L189: Ceiling
B190: Monthly Charge | H190: $/month | I190: FALSE | K190: FALSE | M190: $/month
B192: Size of First Block | H192: =INDEX(B294:B295,Tariffs!$F$189) -> Cubic Feet
B193: Size of Second Block | H193: =H192 -> Cubic Feet
B194: Size of Third Block | H194: =H193 -> Cubic Feet
B195: Size of Fourth Block | H195: =H194 -> Cubic Feet
B197: Cost of First Block | H197: ="$/"&INDEX(B294:B295,Tariffs!$F$189) -> $/Cubic Feet
B198: Cost of Second Block | H198: =H197 -> $/Cubic Feet
B199: Cost of Third Block | H199: =H198 -> $/Cubic Feet
B200: Cost of Fourth Block | H200: =H199 -> $/Cubic Feet
B202: Extra Charges | H202: =H200 -> $/Cubic Feet
B204: Taxes | H204: %
A206: Sewer Tariff
B208: Sewer Charge Included in Water Tariff | F208: FALSE
B210: Sewer Service Name
B212: Effective Date
B214: Measurement Units
F215: 1 | J215: Floor | L215: Ceiling
B216: Monthly Charge | H216: $/month | I216: FALSE | K216: FALSE | M216: $/month
B218: Size of First Block | H218: =INDEX(B294:B295,Tariffs!$F$215) -> Cubic Feet
B219: Size of Second Block | H219: =H218 -> Cubic Feet
B220: Size of Third Block | H220: =H218 -> Cubic Feet
B221: Size of Fourth Block | H221: =H218 -> Cubic Feet
B223: Cost of First Block | H223: ="$/"&INDEX(B294:B295,Tariffs!$F$215) -> $/Cubic Feet
B224: Cost of Second Block | H224: =H223 -> $/Cubic Feet
B225: Cost of Third Block | H225: =H223 -> $/Cubic Feet
B226: Cost of Fourth Block | H226: =H223 -> $/Cubic Feet
B228: Extra Charges | H228: =H223 -> $/Cubic Feet
B230: Taxes | H230: %
A232: Trash Collection Fees
B234: Studio
B235: 1 Bedroom
B236: 2 Bedroom
B237: 3 Bedroom
B238: 4 Bedroom
B239: 5 Bedroom
A241: Range/Microwave Fees
B243: Studio
B244: 1 Bedroom
B245: 2 Bedroom
B246: 3 Bedroom
B247: 4 Bedroom
B248: 5 Bedroom
A250: Refrigerator Fees
B252: Studio
B253: 1 Bedroom
B254: 2 Bedroom
B255: 3 Bedroom
B256: 4 Bedroom
B257: 5 Bedroom
A259: Other Fees
B261: Studio
B262: 1 Bedroom
B263: 2 Bedroom
B264: 3 Bedroom
B265: 4 Bedroom
B266: 5 Bedroom
P268: Show
A269: NO INPUT NEEDED BELOW THIS POINT | P269: Hidden
P270: Hidden
A271: DISPLAYING LISTS - NO INPUT IS NEEDED | P271: Hidden
P272: Hidden
A273: Month Names for Rate Pull Down Lists | P273: Hidden
B274: January | P274: Hidden
B275: February | P275: Hidden
B276: March | P276: Hidden
... 137 more rows

Sheet Building Characteristics
A2: Building Characteristics
B4: Unit Type | H4: 1
B6: Schedule Type | H6: 2
B8: Electric Tariff | H8: 1
B10: Green Discount* | H10: 1
B11: *Choose LEED or ENERGY STAR if the building meets that certification.
B12: Choose Significant Green Retrofit if the building had energy saving rehabilitation to any of the following systems in the last 5 years:
B13: (1) heating, (2) cooling, (3) lighting, (4) DHW systems, (5) appliances, (6) building envelope, (7) water measures, and/or (8) on-site generation.
B14: Print the form shown below for the selected unit type
B15: Create copies of this worksheet for other unit types
B16: All computations are performed on this worksheet and are located right of column J and below row 70
B18: Allowances for | E18: U.S. Department of Housing
B19: Tenant-Furnished Utilities | E19: and Urban Development
B20: and Other Services | E20: Office of Public and Indian Housing
B23: Locality | D23: Green Discount | F23: Unit Type | I23: Date (mm/dd/yyyy)
B24: =Location!D4 -> Birmingham | D24: =INDEX(U82:U86,H10) -> None | F24: =INDEX(L173:L177,H4) &IF(H8=2,"-All Elec","") -> Single Family House | I24: =FormDate -> July 31,2015
B25: Utility or Service | D25: Monthly Dollar Allowances
D26: 0 BR | E26: 1 BR | F26: 2 BR | G26: 3 BR | H26: 4 BR | I26: 5 BR
B27: Space Heating | C27: a. Natural Gas | D27: =N938 -> 0 | E27: =O938 -> 0 | F27: 0 | G27: 0 | H27: 0 | I27: 0
C28: b. Bottled Gas | D28: =N943 -> 0 | E28: 0 | F28: 0 | G28: 0 | H28: 0 | I28: 0
C29: c. Electric Resistance | D29: =N931 -> 0 | E29: 0 | F29: =P931 -> 0 | G29: 0 | H29: 0 | I29: 0
C30: d. Electric Heat Pump | D30: =N932 -> 0 | E30: 0 | F30: 0 | G30: 0 | H30: 0 | I30: 0
C31: e. Oil / Coal / Other | D31: =N947 -> 0 | E31: 0 | F31: 0 | G31: 0 | H31: 0 | I31: 0
B32: Cooking | C32: a. Natural Gas | D32: =N936 -> 0 | E32: 0 | F32: 0 | G32: 0 | H32: 0 | I32: 0
C33: b. Bottled Gas | D33: =N941 -> 0 | E33: 0 | F33: 0 | G33: 0 | H33: 0 | I33: 0 | L33: =IF(AND(SUM(N52:N62)=0,Q41>0),Q41) -> FALSE
C34: c. Electric | D34: =N929 -> 0 | E34: 0 | F34: 0 | G34: 0 | H34: 0 | I34: 0
C35: d. Other | D35: 0 | E35: 0 | F35: 0 | G35: 0 | H35: 0 | I35: 0
B36: Other Electric | D36: =N928 -> 0 | E36: 0 | F36: 0 | G36: 0 | H36: 0 | I36: 0 | L36: Computations - Do Not Modify
B37: Air Conditioning | D37: =N933 -> 0 | E37: 0 | F37: 0 | G37: 0 | H37: 0 | I37: 0
B38: Water Heating | C38: a. Natural Gas | D38: =N937 -> 0 | E38: 0 | F38: 0 | G38: 0 | H38: 0 | I38: 0 | L38: Monthly Adjustments/Boundaries to be Applied in HUD-52667 form
C39: b. Bottled Gas | D39: =N942 -> 0 | E39: 0 | F39: 0 | G39: 0 | H39: 0 | I39: 0
C40: c. Electric | D40: =N930 -> 0 | E40: 0 | F40: 0 | G40: 0 | H40: 0 | I40: 0 | M40: Total By Category | N40: Monthly Charge Included? | O40: Monthly Adj. | P40: Value with Boundary | Q40: Monthly Adjustment
C41: d. Oil / Coal / Other | D41: =N946 -> 0 | E41: 0 | F41: 0 | G41: 0 | H41: 0 | I41: 0 | L41: Electric | M41: =D54+SUMIF(C53,"Electric",D53)+SUMIF(C56,"Electric",D56)+SUMIF(C52, "Electric Resistance", D52)+SUMIF(C52, "Electric Heat Pump", D52)+SUMIF(C55,"Electric",D55) -> 0 | N41: 0 | O41: =IF(N41=0,M41+$N$372,$M41) -> 0 | P41: =IF(M368,IF(AND(ISNUMBER(Tariffs!J65),Tariffs!J65<>0,Tariffs!I65,OR(Tariffs!J65>O41, NOT(ISNUMBER(Tariffs!J65)))),MAX(Tariffs!J65,O41),IF(AND(ISNUMBER(Tariffs!L65),Tariffs!L65<>0,Tariffs!K65,OR(Tariffs!L65<O41,NOT(ISNUMBER(Tariffs!L65)))),MIN(Tariffs!L65,O41),IF(AND(ISNUMBER(O41),O41<>0),O41,0))), IF(AND(ISNUMBER(Tariffs!J18),Tariffs!J18<>0,Tariffs!I18,OR(Tariffs!J18>O41, NOT(ISNUMBER(Tariffs!J18)))),MAX(Tariffs!J18,O41),IF(AND(ISNUMBER(Tariffs!L18),Tariffs!L18<>0,Tariffs!K18,OR(Tariffs!L18<O41,NOT(ISNUMBER(Tariffs!L18)))),MIN(Tariffs!L18,O41),IF(AND(ISNUMBER(O41),O41<>0),O41,0)))) -> 0 | Q41: =P41-M41 -> 0
B42: Water | D42: =N949 -> 0 | E42: 0 | F42: 0 | G42: 0 | H42: 0 | I42: 0 | L42: Natural Gas | M42: =SUMIF(C53,"Natural Gas",D53)+SUMIF(C56,"Natural Gas",D56)+SUMIF(C52,"Natural Gas",D52) -> 0 | N42: 0 | O42: =IF(N42=0,M42+$O$372,$M42) -> 0 | P42: =IF(AND(ISNUMBER(Tariffs!J110),Tariffs!J110<>0,Tariffs!I110,OR(Tariffs!J110>O42, NOT(ISNUMBER(Tariffs!J110)))),MAX(Tariffs!J110,O42),IF(AND(ISNUMBER(Tariffs!L110),Tariffs!L110<>0,Tariffs!K110,OR(Tariffs!L110<O42,NOT(ISNUMBER(Tariffs!L110)))),MIN(Tariffs!L110,O42),IF(AND(ISNUMBER(O42),O42<>0),O42,0))) -> 0 | Q42: 0
B43: Sewer | D43: 0 | E43: 0 | F43: 0 | G43: 0 | H43: 0 | I43: 0 | L43: Fuel Oil | M43: =SUMIF(C56,"Fuel Oil",D56)+SUMIF(C52,"Fuel Oil",D52) -> 0 | N43: 0 | O43: =IF(N43=0,M43+$P$372,$M43) -> 0 | P43: =IF(AND(ISNUMBER(Tariffs!J144),Tariffs!J144<>0,Tariffs!I144,OR(Tariffs!J144>O43, NOT(ISNUMBER(Tariffs!J144)))),MAX(Tariffs!J144,O43),IF(AND(ISNUMBER(Tariffs!L144),Tariffs!L144<>0,Tariffs!K144,OR(Tariffs!L144<O43,NOT(ISNUMBER(Tariffs!L144)))),MIN(Tariffs!L144,O43),IF(AND(ISNUMBER(O43),O43<>0),O43,0))) -> 0 | Q43: 0
B44: Trash Collection | D44: =N966 -> 0 | E44: 0 | F44: 0 | G44: 0 | H44: 0 | I44: 0 | L44: LPG | M44: =SUMIF(C53,"Bottled Gas",D53)+SUMIF(C56,"Bottled Gas",D56)+SUMIF(C52,"Bottled Gas",D52) -> 0 | N44: 0 | O44: =IF(N44=0,M44+$Q$372,$M44) -> 0 | P44: =IF(AND(ISNUMBER(Tariffs!J166),Tariffs!J166<>0,Tariffs!I166,OR(Tariffs!J166>O44, NOT(ISNUMBER(Tariffs!J166)))),MAX(Tariffs!J166,O44),IF(AND(ISNUMBER(Tariffs!L166),Tariffs!L166<>0,Tariffs!K166,OR(Tariffs!L166<O44,NOT(ISNUMBER(Tariffs!L166)))),MIN(Tariffs!L166,O44),IF(AND(ISNUMBER(O44),O44<>0),O44,0))) -> 0 | Q44: 0
B45: Range/Microwave | D45: 0 | E45: 0 | F45: 0 | G45: 0 | H45: 0 | I45: 0 | L45: Water | M45: =D57 -> 0 | N45: =IF(C57="Tenant pays",1,0) -> 0 | O45: =IF(N45=0,M45+$R$372,$M45) -> 0 | P45: =IF(AND(ISNUMBER(Tariffs!J190),Tariffs!J190<>0,Tariffs!I190,OR(Tariffs!J190>O45, NOT(ISNUMBER(Tariffs!J190)))),MAX(Tariffs!J190,O45),IF(AND(ISNUMBER(Tariffs!L190),Tariffs!L190<>0,Tariffs!K190,OR(Tariffs!L190<O45,NOT(ISNUMBER(Tariffs!L190)))),MIN(Tariffs!L190,O45),IF(AND(ISNUMBER(O45),O45<>0),O45,0))) -> 0 | Q45: 0
B46: Refrigerator | D46: 0 | E46: 0 | F46: 0 | G46: 0 | H46: 0 | I46: 0 | L46: Sewer | M46: =D58 -> 0 | N46: =IF(C58="Tenant pays",1,0) -> 0 | O46: =IF(N46=0,M46+$S$372,$M46) -> 0 | P46: =IF(AND(ISNUMBER(Tariffs!J216),Tariffs!J216<>0,Tariffs!I216,OR(Tariffs!J216>O46, NOT(ISNUMBER(Tariffs!J216)))),MAX(Tariffs!J216,O46),IF(AND(ISNUMBER(Tariffs!L216),Tariffs!L216<>0,Tariffs!K216,OR(Tariffs!L216<O46,NOT(ISNUMBER(Tariffs!L216)))),MIN(Tariffs!L216,O46),IF(AND(ISNUMBER(O46),O46<>0),O46,0))) -> 0 | Q46: 0
B47: Other - specify | D47: 0 | E47: 0 | F47: 0 | G47: 0 | H47: 0 | I47: 0
B48: Projected Family Allowances To be used to compute specific family allowances.
B49: Unit size: | C49: =INDEX(unit_sizes,$C$87) -> 0 BR
B51: Utility or Service | C51: Fuel Source | D51: Monthly Allowance Example | M51: fuel source | N51: Electric | O51: Natural Gas | P51: Fuel Oil | Q51: LPG | R51: Water | S51: Sewer
B52: Space Heating | C52: =INDEX(source_heating,C90) -> Not Applicable | D52: =SUM(IF(($N$926:$S$926=$C$49)*($I$929:$I$951=$C$52)*($L$928:$L$950=$B$52),$N$928:$S$950)) -> 0 | L52: Space Heating | N52: =IF(OR(C52="Electric Resistance",C52="Electric Heat Pump"),1,0) -> 0 | O52: =IF(C52="Natural Gas",1,0) -> 0 | P52: =IF(C52="Fuel Oil",1,0) -> 0 | Q52: =IF(C52="Bottled Gas",1,0) -> 0 | R52: 0 | S52: 0
B53: Cooking | C53: =INDEX(source_cooking,C91) -> Not Applicable | D53: =SUM(IF(($N$926:$S$926=$C$49)*($I$929:$I$951=$C53)*($L$928:$L$950=$B53),$N$928:$S$950)) -> 0 | L53: Cooking | N53: =N52*2+IF(C53="Electric",1,0) -> 0 | O53: =O52*2+IF(C53="Natural Gas",1,0) -> 0 | P53: =P52*2+0 -> 0 | Q53: =Q52*2+IF(C53="Bottled Gas",1,0) -> 0 | R53: 0 | S53: 0
B54: Other Electric | C54: =INDEX(source_ac,C92) -> Not Applicable | D54: =SUM(IF(($N$926:$S$926=$C$49)*($I$929:$I$951=$C54)*($L$928:$L$950=$B54),$N$928:$S$950)) -> 0 | L54: Other Electric | N54: =N53*2+IF(C54="Electric",1,0) -> 0 | O54: =O53*2+0 -> 0 | P54: =P53*2+0 -> 0 | Q54: =Q53*2+0 -> 0 | R54: 0 | S54: 0
B55: Air Conditioning | C55: =INDEX(source_ac,C93) -> Not Applicable | D55: =SUM(IF(($N$926:$S$926=$C$49)*($I$929:$I$951=$C55)*($L$928:$L$950=$B55),$N$928:$S$950)) -> 0 | L55: Air Conditioning | N55: =N54*2+IF(C55="Electric",1,0) -> 0 | O55: =O54*2+0 -> 0 | P55: =P54*2+0 -> 0 | Q55: =Q54*2+0 -> 0 | R55: 0 | S55: 0
B56: Water Heating | C56: =INDEX(source_water,C94) -> Not Applicable | D56: =SUM(IF(($N$926:$S$926=$C$49)*($I$929:$I$951=$C56)*($L$928:$L$950=$B56),$N$928:$S$950)) -> 0 | L56: Water Heating | N56: =N55*2+IF(OR(C56="Electric Resistance",C56="Electric Heat Pump"),1,0) -> 0 | O56: =O55*2+IF(C56="Natural Gas",1,0) -> 0 | P56: =P55*2+IF(C56="Fuel Oil",1,0) -> 0 | Q56: =Q55*2+IF(C56="Bottled Gas",1,0) -> 0 | R56: 0 | S56: 0
B57: Water | C57: =INDEX(source_other,C95) -> Not Applicable | D57: =SUM(IF(($N$926:$S$926=$C$49)*($I$929:$I$951=$C57)*($L$928:$L$950=$B57),$N$928:$S$950)) -> 0 | L57: Water | N57: 0 | O57: 0 | P57: 0 | Q57: 0 | R57: =IF(C57="Tenant pays",1,0) -> 0 | S57: 0
B58: Sewer | C58: Not Applicable | D58: =SUM(IF(($N$926:$S$926=$C$49)*($I$929:$I$951=$C58)*($L$928:$L$950=$B58),$N$928:$S$950)) -> 0 | L58: Sewer | N58: 0 | O58: 0 | P58: 0 | Q58: 0 | R58: 0 | S58: =IF(C58="Tenant pays",1,10) -> 10
B59: Trash Collection | C59: Not Applicable | D59: =SUM(IF(($N$963:$S$963=$C$49)*($I$965:$I$970=$C59)*($L$964:$L$969=$B59),$N$964:$S$969)) -> 0 | L59: Trash Collection | N59: 0 | O59: 0 | P59: 0 | Q59: 0 | R59: 0 | S59: 0
B60: Range/Microwave | C60: Not Applicable | D60: =SUM(IF(($N$963:$S$963=$C$49)*($I$965:$I$970=$C60)*($L$964:$L$969=$B60),$N$964:$S$969)) -> 0 | L60: Range/Microwave | N60: 0 | O60: 0 | P60: 0 | Q60: 0 | R60: 0 | S60: 0
B61: Refrigerator | C61: Not Applicable | D61: =SUM(IF(($N$963:$S$963=$C$49)*($I$965:$I$970=$C61)*($L$964:$L$969=$B61),$N$964:$S$969)) -> 0 | L61: Refrigerator | N61: 0 | O61: 0 | P61: 0 | Q61: 0 | R61: 0 | S61: 0
B62: Other | C62: Not Applicable | D62: =SUM(IF(($N$963:$S$963=$C$49)*($I$965:$I$970=$C62)*($L$964:$L$969=$B62),$N$964:$S$969)) -> 0 | L62: Other | N62: 0 | O62: 0 | P62: 0 | Q62: 0 | R62: 0 | S62: 0
B64: Total | D64: =SUM(D52:D62) -> 0
I65: Spreadsheet (ver13) based on form HUD-52667 (12/97).
B66: Previous editions are obsolete | I66: ref. Handbook 7420.8
H72: Show
H73: Hidden
B74: ALL COMPUTATIONS ARE RIGHT OF COLUMN J AND BELOW ROW 70 | H74: Hidden
H75: Hidden
H76: Hidden
H77: Hidden
B79: Space Heating/Water Heat | C79: Cooking Fuel Sources | D79: Air Condition/Other Electric | E79: Other | F79: Unit sizes | G79: water heat | H79: Hidden | L79: ENERGY Savings Adjustment
B80: Not Applicable | C80: Not Applicable | D80: Not Applicable | E80: Not Applicable | F80: 0 BR | G80: Not Applicable | H80: Hidden
B81: Natural Gas | C81: Natural Gas | D81: Electric | E81: Tenant pays | F81: 1 BR | G81: Natural Gas | H81: Hidden | M81: None | N81: Energy Star | O81: Leed | P81: Retrofit | S81: Selection Key | U81: Options
B82: Bottled Gas | C82: Bottled Gas | F82: 2 BR | G82: Bottled Gas | H82: Hidden | L82: Mobile home | M82: 1 | N82: 1 | O82: 1 | P82: 1 | S82: =INDEX(M82:P82,$H$10) -> 1 | U82: None
B83: Electric Resistance | C83: Electric | F83: 3 BR | G83: Electric | H83: Hidden | L83: Single family detached | M83: 1 | N83: 0.82 | O83: 0.75 | P83: 0.82 | S83: =INDEX(M83:R83,$H$10) -> 1 | U83: ENERGY STAR
B84: Electric Heat Pump | F84: 4 BR | G84: Fuel Oil | H84: Hidden | L84: Single family attached | M84: 1 | N84: 0.82 | O84: 0.75 | P84: 0.82 | S84: 1 | U84: LEED
B85: Fuel Oil | F85: 5 BR | H85: Hidden | L85: Apartment with 2-4 units | M85: 1 | N85: 0.82 | O85: 0.75 | P85: 0.82 | S85: 1 | U85: Significant Green Retrofit
H86: Hidden | L86: Apartment with 5 or more units | M86: 1 | N86: 0.82 | O86: 0.75 | P86: 0.82 | S86: 1
B87: Unit size: | C87: 1 | H87: Hidden
H88: Hidden
B89: Utility or Service | C89: Fuel Source | H89: Hidden
B90: Space Heating | C90: 1 | H90: Hidden
B91: Cooking | C91: 1 | H91: Hidden | L91: Water Consumption Adjustment | M91: Bedroom | N91: Conversion to Per Person
B92: Other Electric | C92: 1 | H92: Hidden | M92: 0 | N92: 1
B93: Air Conditioning | C93: 1 | H93: Hidden | M93: 1 | N93: 1.5
B94: Water Heating | C94: 1 | H94: Hidden | M94: 2 | N94: 2.5
B95: Water | C95: 1 | H95: Hidden | M95: 3 | N95: 4
B96: Sewer | C96: 1 | H96: Hidden | M96: 4 | N96: 5.5
B97: Trash Collection | C97: 1 | H97: Hidden | M97: 5 | N97: 7
B98: Range/Microwave | C98: 1 | H98: Hidden
B99: Refrigerator | C99: 1 | H99: Hidden | L99: Water Consumption Model | M99: Constant | N99: Monthly Min Temp
B100: Other | C100: 1 | H100: Hidden | M100: =VLOOKUP(state,water_cons_states,2,FALSE) -> 28015.49 | N100: =VLOOKUP(state,water_cons_states,3,FALSE) -> 0
H101: Hidden
H102: Hidden
H103: Hidden
H104: Hidden | L104: Derived Consumption Equations
H105: Hidden
H106: Hidden | L106: The coefficients in the following table were mainly derived from DOE/EIA Residential Energy Consumption Survey for 1997, 2001, and 2005 databases. The derivation is not part of this spreadsheet
H107: Hidden | L107: but may be found in the the HUD Utility Model (HUSM) Rebenchmarking report by Riley and Associates Dated June 6, 2013
H108: Hidden
H109: Hidden | L109: Structure Adjustment (Riley Table 6) | M109: 2014 | P109: Other Electric Adjustment | S109: Heat Pump Adjustment to Natural Gas
H110: Hidden | L110: Mobile home | M110: 0.85 | P110: 1 | R110: 5 | S110: 0.85 | T110: =10202/48522 -> 0.210255142
H111: Hidden | L111: Single family detached | M111: 1 | P111: 1 | R111: 1 | S111: 1
H112: Hidden | L112: Single family attached | M112: 0.85 | P112: 0.86 | R112: 2 | S112: 0.85
H113: Hidden | L113: Apartment with 2-4 units | M113: 0.9 | P113: 0.83 | R113: 3 | S113: 0.9
H114: Hidden | L114: Apartment with 5 or more units | M114: 0.7 | P114: 0.68 | R114: 4 | S114: 0.7
H115: Hidden
H116: Hidden | P116: % of natural gas | S116: Bedroom Adjustment for Heat Pump
H117: Hidden | P117: 1.2 | S117: 1-BR | T117: 0.75
H118: Hidden | S118: 2-BR | T118: 0.89
H119: Hidden | P119: SF - 3 Bedroom NG for Heat Pump | S119: 3-BR | T119: 1
H120: Hidden | P120: =MAX(0,$P132+$N$226*$S132+$N$226*$T132*Q$244+$N$226*$N$226*$U132+$N$226*$N$226*Q$244*$V132) -> 37771.2627 | S120: 4-BR | T120: 1.11
H121: Hidden | S121: 5-BR | T121: 1.22
H122: Hidden
H123: Hidden | S123: 1 | T123: Projected Family Utility Allowance
H124: Hidden | S124: 2 | T124: Projected Allowance Schedule
H125: Hidden
H126: Hidden
H127: Hidden
H128: Hidden
H129: Hidden
H130: Hidden | K130: Type | L130: Utility or Service | M130: Housing | N130: Units | O130: Bedroom Coef | P130: Constant | Q130: Adjustment from Natural Gas | R130: Added if >=3bedrm | S130: Coeff for xDD | T130: Coeff for xDD*Bedrooms | U130: Coeff for xDD squared | V130: Coeff for Bedrooms * xDD^2 | W130: Coef for Bedroom squared
H131: Hidden | K131: 0 | L131: Heating with Natural Gas | M131: Mobile | N131: kBtu/yr | O131: na | P131: =P132*$M$110 -> 11690.3254 | Q131: na | R131: na | S131: =S132*$M$110 -> 3.91595 | T131: =T132*$M$110 -> 1.1594 | U131: 0 | V131: 0
H132: Hidden | K132: 1 | L132: Heating with Natural Gas | M132: SF Det | N132: kBtu/yr | O132: na | P132: 13753.324 | Q132: na | R132: na | S132: 4.607 | T132: 1.364 | U132: 0 | V132: 0
H133: Hidden | K133: 2 | L133: Heating with Natural Gas | M133: SF Att | N133: kBtu/yr | O133: na | P133: 14917.491 | Q133: na | R133: na | S133: 3.756 | T133: 1.132 | U133: 0 | V133: 0
H134: Hidden | K134: 3 | L134: Heating with Natural Gas | M134: Apt 2-4 | N134: kBtu/yr | O134: na | P134: 7777.927 | Q134: na | R134: na | S134: 7.993 | T134: 0.759 | U134: 0 | V134: 0
H135: Hidden | K135: 4 | L135: Heating with Natural Gas | M135: Apt 5+ | N135: kBtu/yr | O135: na | P135: =P132*$M$114 -> 9627.3268 | Q135: na | R135: na | S135: =S132*$M$114 -> 3.2249 | T135: =T132*$M$114 -> 0.9548 | U135: 0 | V135: 0
H136: Hidden | K136: 0 | L136: Heating with Electric Resistance | M136: Mobile | N136: kBtu/yr | O136: na | P136: 3105.5 | Q136: na | R136: na | S136: 2.754 | T136: 0.107 | U136: 0 | V136: 0
H137: Hidden | K137: 1 | L137: Heating with Electric Resistance | M137: SF Det | N137: kBtu/yr | O137: na | P137: 2486.6 | Q137: na | R137: na | S137: 2.26 | T137: 0.546 | U137: 0 | V137: 0
H138: Hidden | K138: 2 | L138: Heating with Electric Resistance | M138: SF Att | N138: kBtu/yr | O138: na | P138: 2888.3 | Q138: na | R138: na | S138: 0.908 | T138: 0.597 | U138: 0 | V138: 0
H139: Hidden | K139: 3 | L139: Heating with Electric Resistance | M139: Apt 2-4 | N139: kBtu/yr | O139: na | P139: 2888.3 | Q139: na | R139: na | S139: 0.908 | T139: 0.597 | U139: 0 | V139: 0 | X139: Possible Mistake and also haven't changed since 2012
H140: Hidden | K140: 4 | L140: Heating with Electric Resistance | M140: Apt 5+ | N140: kBtu/yr | O140: na | P140: 1874.092 | Q140: na | R140: na | S140: 0.5758197607 | T140: 0.4853773216 | U140: 0 | V140: 0
H141: Hidden | K141: 0 | L141: Heating with Electric Heat Pump | M141: Mobile | N141: kBtu/yr | O141: na | P141: na | Q141: na | R141: na | S141: na | T141: na | U141: 0 | V141: 0
H142: Hidden | K142: 1 | L142: Heating with Electric Heat Pump | M142: SF Det | N142: kBtu/yr | O142: na | P142: na | Q142: na | R142: na | S142: na | T142: na | U142: 0 | V142: 0 | X142: Note: Mike are your current Heat Pump coefficients changing with HDD … see above
H143: Hidden | K143: 2 | L143: Heating with Electric Heat Pump | M143: SF Att | N143: kBtu/yr | O143: na | P143: na | Q143: na | R143: na | S143: na | T143: na | U143: 0 | V143: 0 | X143: No Longer Derived from Heat Pump Adjustment
H144: Hidden | K144: 3 | L144: Heating with Electric Heat Pump | M144: Apt 2-4 | N144: kBtu/yr | O144: na | P144: na | Q144: na | R144: na | S144: na | T144: na | U144: 0 | V144: 0
H145: Hidden | K145: 4 | L145: Heating with Electric Heat Pump | M145: Apt 5+ | N145: kBtu/yr | O145: na | P145: na | Q145: na | R145: na | S145: na | T145: na | U145: 0 | V145: 0
H146: Hidden | K146: 0 | L146: Heating with Fuel Oil | M146: Mobile | N146: kBtu/yr | O146: na | P146: =P131*$P$117 -> 14028.39048 | Q146: na | R146: na | S146: =S131*$P$117 -> 4.69914 | T146: 1.39128 | U146: 0 | V146: 0
H147: Hidden | K147: 1 | L147: Heating with Fuel Oil | M147: SF Det | N147: kBtu/yr | O147: na | P147: =P132*$P$117 -> 16503.9888 | Q147: na | R147: na | S147: 5.5284 | T147: 1.6368 | U147: 0 | V147: 0
H148: Hidden | K148: 2 | L148: Heating with Fuel Oil | M148: SF Att | N148: kBtu/yr | O148: na | P148: =P133*$P$117 -> 17900.9892 | Q148: na | R148: na | S148: 4.5072 | T148: 1.3584 | U148: 0 | V148: 0
H149: Hidden | K149: 3 | L149: Heating with Fuel Oil | M149: Apt 2-4 | N149: kBtu/yr | O149: na | P149: =P134*$P$117 -> 9333.5124 | Q149: na | R149: na | S149: 9.5916 | T149: 0.9108 | U149: 0 | V149: 0
H150: Hidden | K150: 4 | L150: Heating with Fuel Oil | M150: Apt 5+ | N150: kBtu/yr | O150: na | P150: =P135*$P$117 -> 11552.79216 | Q150: na | R150: na | S150: 3.86988 | T150: 1.14576 | U150: 0 | V150: 0
H151: Hidden | K151: 0-4 | L151: Cooking with Natural Gas | M151: All | N151: kBtu/yr | O151: 1760.9 | P151: 2177.7 | Q151: na | R151: na | S151: na | T151: na
H152: Hidden | K152: 0-4 | L152: Cooking with Electricity | M152: All | N152: kBtu/yr | O152: =O151*0.5 -> 880.45 | P152: =P151*0.5 -> 1088.85 | Q152: 0 | R152: na | S152: na | T152: na
H153: Hidden | K153: 0 | L153: Other Electric | M153: Mobile | N153: kBtu/yr | O153: =$O$154*P110 -> 4278 | P153: =$P$154*P110 -> 6655 | Q153: na | R153: 0 | S153: na | T153: na
H154: Hidden | K154: 1 | L154: Other Electric | M154: SF Det | N154: kBtu/yr | O154: 4278 | P154: 6655 | Q154: na | R154: 0 | S154: na | T154: na
H155: Hidden | K155: 2 | L155: Other Electric | M155: SF Att | N155: kBtu/yr | O155: =$O$154*P112 -> 3679.08 | P155: =$P$154*P112 -> 5723.3 | Q155: na | R155: 0 | S155: na | T155: na
H156: Hidden | K156: 3 | L156: Other Electric | M156: Apt 2-4 | N156: kBtu/yr | O156: =$O$154*P113 -> 3550.74 | P156: =$P$154*P113 -> 5523.65 | Q156: na | R156: 0 | S156: na | T156: na
H157: Hidden | K157: 4 | L157: Other Electric | M157: Apt 5+ | N157: kBtu/yr | O157: =$O$154*P114 -> 2909.04 | P157: =$P$154*P114 -> 4525.4 | Q157: na | R157: 0 | S157: na | T157: na
H158: Hidden | K158: 0 | L158: Air Conditioning | M158: Mobile | N158: kBtu/yr | O158: na | P158: -190.006 | Q158: na | R158: na | S158: 0.532 | T158: 1.281
H159: Hidden | K159: 1 | L159: Air Conditioning | M159: SF Det | N159: kBtu/yr | O159: na | P159: 42.077 | Q159: na | R159: na | S159: -0.371 | T159: 1.854
H160: Hidden | K160: 2 | L160: Air Conditioning | M160: SF Att | N160: kBtu/yr | O160: na | P160: -273.65 | Q160: na | R160: na | S160: 0.548 | T160: 1.347
H161: Hidden | K161: 3 | L161: Air Conditioning | M161: Apt 2-4 | N161: kBtu/yr | O161: na | P161: -709.088 | Q161: na | R161: na | S161: 1.263 | T161: 0.849
H162: Hidden | K162: 4 | L162: Air Conditioning | M162: Apt 5+ | N162: kBtu/yr | O162: na | P162: -313.671 | Q162: na | R162: na | S162: 1.177 | T162: 0.741
H163: Hidden | K163: 0-4 | L163: Water Heating with Natural Gas | M163: All | N163: kBtu/yr | O163: 5097.6 | P163: 6366.5 | Q163: na | R163: na | S163: na | T163: na | U163: na | V163: na | W163: 0 | X163: No mention of squared Coefficient
H164: Hidden | K164: 0-4 | L164: Water Heating with Electricity | M164: All | N164: kBtu/yr | O164: 1691.2 | P164: 4430.6 | Q164: 0 | R164: na | S164: na | T164: na | U164: na | V164: na | W164: 0
H165: Hidden | K165: 0-4 | L165: Water Heating with Fuel Oil | M165: All | N165: kBtu/yr | O165: =O163*$P$117 -> 6117.12 | P165: =P163*$P$117 -> 7639.8 | Q165: 0 | R165: na | S165: na | T165: na | U165: na | V165: na | W165: =W163 -> 0
H166: Hidden | K166: 0-4 | L166: All Water | M166: All | N166: gal/month | O166: =(water_cons_const + water_cons_coef * monthly_min_temp)/12 -> 2334.624167 | P166: 0 | Q166: na | R166: na | S166: na | T166: na
H167: Hidden | K167: 0-4 | L167: Outdoor Water | M167: All | N167: gal/month | O167: 0 | P167: 0 | Q167: na | R167: na | S167: na | T167: na
H168: Hidden | K168: 0-4 | L168: Sewer | M168: All | N168: gal/month | O168: 0 | P168: 0 | Q168: na | R168: na | S168: na | T168: na | X168: No mention in Report
H169: Hidden
H170: Hidden | L170: Unit Types and Adjustment Factors
H171: Hidden
H172: Hidden | L172: Unit Types | M172: Based on RECS Unit Type | N172: RECS Type Number | P172: Heat Adj | Q172: Cook Adj | R172: Other Adj | S172: A/C Adj | T172: Water Heat Adj | U172: Cold Water Adj
H173: Hidden | L173: Single Family House | M173: =INDEX($M$131:$M$135,N173) -> SF Det | N173: 2 | P173: 1 | Q173: 1 | R173: 1 | S173: 1 | T173: 1 | U173: 1
H174: Hidden | L174: Single Family Attached | M174: =INDEX($M$131:$M$135,N174) -> SF Att | N174: 3 | P174: 1 | Q174: 1 | R174: 1 | S174: 1 | T174: 1 | U174: 1
H175: Hidden | L175: Lowrise Apartment (2 - 4 units) | M175: =INDEX($M$131:$M$135,N175) -> Apt 2-4 | N175: 4 | P175: 1 | Q175: 1 | R175: 1 | S175: 1 | T175: 1 | U175: 1
H176: Hidden | L176: Larger Apartment Bldgs. (5+ units) | M176: =INDEX($M$131:$M$135,N176) -> Apt 5+ | N176: 5 | P176: 1 | Q176: 1 | R176: 1 | S176: 1 | T176: 0.8 | U176: 1
H177: Hidden | L177: Manufactured Homes | M177: =INDEX($M$131:$M$135,N177) -> Mobile | N177: 1 | P177: 1 | Q177: 1 | R177: 1 | S177: 1 | T177: 1 | U177: 1
H178: Hidden
H179: Hidden | L179: Selected Unit Type
H180: Hidden
H181: Hidden | L181: Unit Types | M181: Based on RECS Unit Type | N181: RECS Type Number | P181: Heat Adj | Q181: Cook Adj | R181: Other Adj | S181: A/C Adj | T181: Water Heat Adj | U181: Cold Water Adj
H182: Hidden | L182: =INDEX(L173:L177,$H$4) -> Single Family House | M182: =INDEX(M173:M177,$H$4) -> SF Det | N182: =INDEX(N173:N177,$H$4) -> 2 | P182: =INDEX(P173:P177,$H$4) -> 1 | Q182: 1 | R182: 1 | S182: 1 | T182: 1 | U182: 1
H183: Hidden
H184: Hidden | L184: UNADJUSTED TABLE FOR SELECTED UNIT TYPE
H185: Hidden | L185: Utility or Service | M185: Housing | N185: Units | O185: Bedroom Coef | P185: Constant | Q185: Adjustment from Natural Gas | R185: Added if >=3bedrm | S185: Coeff for xDD | T185: Coeff for xDD*Bedrooms | U185: Coeff for xDD squared | V185: Coeff for Bedrooms * xDD^2 | W185: Coef for Bedroom squared
H186: Hidden | L186: Heating with Natural Gas | M186: =INDEX(M131:M135,$N$182) -> SF Det | N186: =INDEX(N131:N135,$N$182) -> kBtu/yr | O186: na | P186: =INDEX(P131:P135,$N$182) -> 13753.324 | Q186: na | R186: na | S186: =INDEX(S131:S135,$N$182) -> 4.607 | T186: 1.364 | U186: =INDEX(U131:U135,$N$182) -> 0 | V186: =INDEX(V131:V135,$N$182) -> 0 | X186: changed in version 09
H187: Hidden | L187: Heating with Electric Resistance | M187: =INDEX(M136:M140,$N$182) -> SF Det | N187: kBtu/yr | O187: na | P187: 2486.6 | Q187: na | R187: na | S187: 2.26 | T187: 0.546 | U187: 0 | V187: 0 | X187: changed in version 13
H188: Hidden | L188: Heating with Electric Heat Pump | M188: =INDEX(M141:M145,$N$182) -> SF Det | N188: =INDEX(N137:N141,$N$182) -> kBtu/yr | O188: =INDEX(O141:O145,$N$182) -> na | P188: =INDEX(P141:P145,$N$182) -> na | Q188: =INDEX(Q141:Q145,$N$182) -> na | R188: na | S188: na | T188: na | U188: 0 | V188: 0
H189: Hidden | L189: Heating with Fuel Oil | M189: =INDEX(M146:M150,$N$182) -> SF Det | N189: kBtu/yr | O189: na | P189: =INDEX(P146:P150,$N$182) -> 16503.9888 | Q189: na | R189: na | S189: =INDEX(S146:S150,$N$182) -> 5.5284 | T189: 1.6368 | U189: =INDEX(U146:U150,$N$182) -> 0 | V189: =INDEX(V146:V150,$N$182) -> 0
H190: Hidden | L190: Cooking with Natural Gas | M190: =M151 -> All | N190: kBtu/yr | O190: 1760.9 | P190: 2177.7 | Q190: na | R190: na | S190: na | T190: na
H191: Hidden | L191: Cooking with Electricity | M191: All | N191: kBtu/yr | O191: 880.45 | P191: 1088.85 | Q191: 0 | R191: na | S191: na | T191: na
H192: Hidden | L192: Other Electric | M192: =INDEX(M153:M157,$N$182) -> SF Det | N192: kBtu/yr | O192: 4278 | P192: 6655 | Q192: na | R192: 0 | S192: na | T192: na
H193: Hidden | L193: Air Conditioning | M193: =INDEX(M158:M162,$N$182) -> SF Det | N193: kBtu/yr | O193: na | P193: 42.077 | Q193: na | R193: na | S193: -0.371 | T193: 1.854
H194: Hidden | L194: Water Heating with Natural Gas | M194: =M163 -> All | N194: kBtu/yr | O194: 5097.6 | P194: 6366.5 | Q194: na | R194: na | S194: na | T194: na | U194: =U163 -> na | V194: na | W194: 0 | X194: changed in version 13
H195: Hidden | L195: Water Heating with Electricity | M195: All | N195: kBtu/yr | O195: 1691.2 | P195: 4430.6 | Q195: 0 | R195: na | S195: na | T195: na | U195: na | V195: na | W195: 0 | X195: changed in version 13
H196: Hidden | L196: Water Heating with Fuel Oil | M196: All | N196: kBtu/yr | O196: 6117.12 | P196: 7639.8 | Q196: 0 | R196: na | S196: na | T196: na | U196: na | V196: na | W196: 0 | X196: changed in version 13
H197: Hidden | L197: All Water | M197: All | N197: gal/month | O197: 2334.624167 | P197: 0 | Q197: na | R197: na | S197: na | T197: na
H198: Hidden | L198: Outdoor Water | M198: All | N198: gal/month | O198: 0 | P198: 0 | Q198: na | R198: na | S198: na | T198: na
H199: Hidden | L199: Sewer | M199: All | N199: gal/month | O199: 0 | P199: 0 | Q199: na | R199: na | S199: na | T199: na
H200: Hidden
H201: Hidden | L201: Apply Energy Savings Coefficient Adjustment and Adjustment Factors
H202: Hidden
H203: Hidden | L203: Green Discount Adjustment (all energy) | M203: Fraction | N203: =INDEX(S82:S86,$N$182) -> 1
H204: Hidden | P204: Heat Adj | Q204: Cook Adj | R204: Other Adj | S204: A/C Adj | T204: Water Heat Adj | U204: Cold Water Adj
L205: Adjustment Factors | O205: if HDD <= 150, then no heating allowance | P205: =IF(hdd_annual<=150, 0, P182) -> 1 | Q205: =Q182 -> 1 | R205: 1 | S205: 1 | T205: 1 | U205: 1
H207: Hidden | L207: Utility or Service | M207: Housing | N207: Units | O207: Bedroom Coef | P207: Constant | Q207: Adjustment from Natural Gas | R207: Added if >=3bedrm | S207: Coeff for xDD | T207: Coeff for xDD*Bedrooms | U207: Coeff for xDD squared | V207: Coeff for Bedrooms * xDD^2 | W207: Coef for Bedroom squared
H208: Hidden | L208: Heating with Natural Gas | M208: =M186 -> SF Det | N208: kBtu/yr | O208: =IF(ISNUMBER(O186),O186*$N$203*$P$205,O186) -> na | P208: =IF(ISNUMBER(P186),P186*$N$203*$P$205,P186) -> 13753.324 | Q208: =IF(ISNUMBER(Q186),Q186*$N$203*$P$205,Q186) -> na | R208: na | S208: 4.607 | T208: 1.364 | U208: 0 | V208: 0 | X208: changed in version 09,13
H209: Hidden | L209: Heating with Electric Resistance | M209: SF Det | N209: kBtu/yr | O209: =IF(ISNUMBER(O187),O187*$N$203*$P$205,O187) -> na | P209: =IF(ISNUMBER(P187),P187*$N$203*$P$205,P187) -> 2486.6 | Q209: na | R209: na | S209: 2.26 | T209: 0.546 | U209: 0 | V209: 0 | X209: changed in version 13
H210: Hidden | L210: Heating with Electric Heat Pump | M210: SF Det | N210: kBtu/yr | O210: =IF(ISNUMBER(O188),O188*$N$203*$P$205,O188) -> na | P210: =IF(ISNUMBER(P188),P188*$N$203*$P$205,P188) -> na | Q210: na | R210: na | S210: na | T210: na | U210: 0 | V210: 0
H211: Hidden | L211: Heating with Fuel Oil | M211: =M189 -> SF Det | N211: kBtu/yr | O211: =IF(ISNUMBER(O189),O189*$N$203,O189) -> na | P211: =IF(ISNUMBER(P189),P189*$N$203*$P$205,P189) -> 16503.9888 | Q211: na | R211: na | S211: 5.5284 | T211: 1.6368 | U211: 0 | V211: 0 | X211: changed in version 13
H212: Hidden | L212: Cooking with Natural Gas | M212: All | N212: kBtu/yr | O212: =IF(ISNUMBER(O190),O190*$N$203*$Q$205,O190) -> 1760.9 | P212: 2177.7 | Q212: na | R212: na | S212: na | T212: na | X212: changed in version 13
H213: Hidden | L213: Cooking with Electricity | M213: All | N213: kBtu/yr | O213: 880.45 | P213: 1088.85 | Q213: 0 | R213: na | S213: na | T213: na | X213: changed in version 13
H214: Hidden | L214: Other Electric | M214: SF Det | N214: kBtu/yr | O214: =IF(ISNUMBER(O192),O192*$N$203*$R$205,O192) -> 4278 | P214: 6655 | Q214: na | R214: 0 | S214: na | T214: na | X214: changed in version 13
H215: Hidden | L215: Air Conditioning | M215: SF Det | N215: kBtu/yr | O215: =IF(ISNUMBER(O193),O193*$N$203*$S$205,O193) -> na | P215: 42.077 | Q215: na | R215: na | S215: -0.371 | T215: 1.854 | X215: changed in version 13
H216: Hidden | L216: Water Heating with Natural Gas | M216: All | N216: kBtu/yr | O216: =IF(ISNUMBER(O194),O194*$N$203*$T$205,O194) -> 5097.6 | P216: =IF(ISNUMBER(P194),P194*$N$203*$T$205,P194) -> 6366.5 | Q216: na | R216: na | S216: na | T216: na | U216: na | V216: na | W216: 0 | X216: changed in version 13
H217: Hidden | L217: Water Heating with Electricity | M217: All | N217: kBtu/yr | O217: =IF(ISNUMBER(O195),O195*$N$203*$T$205,O195) -> 1691.2 | P217: 4430.6 | Q217: 0 | R217: na | S217: na | T217: na | U217: na | V217: na | W217: 0 | X217: changed in version 13
... 814 more rows

Sheet PHA state average allowances (hidden)
A1: AK | B1: 1 | C1: Utility or Service | E1: Monthly Dollar Allowances
E2: 0 BR | F2: 1 BR | G2: 2 BR | H2: 3 BR | I2: 4 BR | J2: 5 BR
C3: Space Heating | D3: Natural Gas | E3: 0 | F3: 0 | G3: 0 | H3: 0 | I3: 0 | J3: 0
D4: Bottled Gas | E4: 0 | F4: 0 | G4: 0 | H4: 0 | I4: 0 | J4: 0
D5: Electric Resistance | E5: 146.3511229 | F5: 172.1777916 | G5: 203.3994046 | H5: 234.6210175 | I5: 265.8426305 | J5: 297.0642435
D6: Electric Heat Pump | E6: 75.36594734 | F6: 88.6658204 | G6: 105.2167735 | H6: 118.2210939 | I6: 131.2254142 | J6: 144.2297345
D7: Fuel Oil | E7: 0 | F7: 0 | G7: 0 | H7: 0 | I7: 0 | J7: 0
C8: Cooking | D8: Natural Gas | E8: 0 | F8: 0 | G8: 0 | H8: 0 | I8: 0 | J8: 0
D9: Bottled Gas | E9: 0 | F9: 0 | G9: 0 | H9: 0 | I9: 0 | J9: 0
D10: Electric | E10: 7.892153909 | F10: 9.284886952 | G10: 13.43604661 | H10: 17.58720627 | I10: 21.73836593 | J10: 25.88952559
D11: Other | E11: 0 | F11: 0 | G11: 0 | H11: 0 | I11: 0 | J11: 0
C12: Other Electric | E12: 43.8150199 | F12: 51.54708223 | G12: 71.71706465 | H12: 91.88704707 | I12: 112.0570295 | J12: 132.2270119
C13: Air Conditioning | E13: 0 | F13: 0 | G13: 0 | H13: 0 | I13: 0 | J13: 0
C14: Water Heating | D14: Natural Gas | E14: 0 | F14: 0 | G14: 0 | H14: 0 | I14: 0 | J14: 0
D15: Bottled Gas | E15: 0 | F15: 0 | G15: 0 | H15: 0 | I15: 0 | J15: 0
D16: Electric | E16: 30.42453501 | F16: 35.7935706 | G16: 45.6818529 | H16: 55.57013521 | I16: 65.45841751 | J16: 75.34669981
D17: Fuel Oil | E17: 0 | F17: 0 | G17: 0 | H17: 0 | I17: 0 | J17: 0
C18: Water | E18: 55.32883898 | F18: 57.34648776 | G18: 70.79747959 | H18: 90.97396735 | I18: 111.1504551 | J18: 131.3269429
C19: Sewer | E19: 24.1430946 | F19: 25.95121623 | G19: 38.00536038 | H19: 56.08657661 | I19: 74.16779283 | J19: 92.24900906
A20: AK | B20: 2 | C20: Utility or Service | E20: Monthly Dollar Allowances
E21: 0 BR | F21: 1 BR | G21: 2 BR | H21: 3 BR | I21: 4 BR | J21: 5 BR
C22: Space Heating | D22: Natural Gas | E22: 0 | F22: 0 | G22: 0 | H22: 0 | I22: 0 | J22: 0
D23: Bottled Gas | E23: 0 | F23: 0 | G23: 0 | H23: 0 | I23: 0 | J23: 0
D24: Electric Resistance | E24: 84.72577043 | F24: 99.67737697 | G24: 133.8152944 | H24: 167.9532119 | I24: 202.0911294 | J24: 236.2290469
D25: Electric Heat Pump | E25: 64.06105524 | F25: 75.36594734 | G25: 89.43425751 | H25: 100.4879298 | I25: 111.5416021 | J25: 122.5952743
D26: Fuel Oil | E26: 0 | F26: 0 | G26: 0 | H26: 0 | I26: 0 | J26: 0
C27: Cooking | D27: Natural Gas | E27: 0 | F27: 0 | G27: 0 | H27: 0 | I27: 0 | J27: 0
D28: Bottled Gas | E28: 0 | F28: 0 | G28: 0 | H28: 0 | I28: 0 | J28: 0
D29: Electric | E29: 7.892153909 | F29: 9.284886952 | G29: 13.43604661 | H29: 17.58720627 | I29: 21.73836593 | J29: 25.88952559
D30: Other | E30: 0 | F30: 0 | G30: 0 | H30: 0 | I30: 0 | J30: 0
C31: Other Electric | E31: 37.68091711 | F31: 44.33049072 | G31: 61.6766756 | H31: 79.02286048 | I31: 96.36904537 | J31: 113.7152302
C32: Air Conditioning | E32: 0 | F32: 0 | G32: 0 | H32: 0 | I32: 0 | J32: 0
C33: Water Heating | D33: Natural Gas | E33: 0 | F33: 0 | G33: 0 | H33: 0 | I33: 0 | J33: 0
D34: Bottled Gas | E34: 0 | F34: 0 | G34: 0 | H34: 0 | I34: 0 | J34: 0
D35: Electric | E35: 30.42453501 | F35: 35.7935706 | G35: 45.6818529 | H35: 55.57013521 | I35: 65.45841751 | J35: 75.34669981
D36: Fuel Oil | E36: 0 | F36: 0 | G36: 0 | H36: 0 | I36: 0 | J36: 0
C37: Water | E37: 55.32883898 | F37: 57.34648776 | G37: 70.79747959 | H37: 90.97396735 | I37: 111.1504551 | J37: 131.3269429
C38: Sewer | E38: 24.1430946 | F38: 25.95121623 | G38: 38.00536038 | H38: 56.08657661 | I38: 74.16779283 | J38: 92.24900906
A39: AK | B39: 3 | C39: Utility or Service | E39: Monthly Dollar Allowances
E40: 0 BR | F40: 1 BR | G40: 2 BR | H40: 3 BR | I40: 4 BR | J40: 5 BR
C41: Space Heating | D41: Natural Gas | E41: 0 | F41: 0 | G41: 0 | H41: 0 | I41: 0 | J41: 0
D42: Bottled Gas | E42: 0 | F42: 0 | G42: 0 | H42: 0 | I42: 0 | J42: 0
D43: Electric Resistance | E43: 84.72577043 | F43: 99.67737697 | G43: 133.8152944 | H43: 167.9532119 | I43: 202.0911294 | J43: 236.2290469
D44: Electric Heat Pump | E44: 67.82935261 | F44: 79.79923836 | G44: 94.69509619 | H44: 106.3989845 | I44: 118.1028728 | J44: 129.8067611
D45: Fuel Oil | E45: 0 | F45: 0 | G45: 0 | H45: 0 | I45: 0 | J45: 0
C46: Cooking | D46: Natural Gas | E46: 0 | F46: 0 | G46: 0 | H46: 0 | I46: 0 | J46: 0
D47: Bottled Gas | E47: 0 | F47: 0 | G47: 0 | H47: 0 | I47: 0 | J47: 0
D48: Electric | E48: 7.892153909 | F48: 9.284886952 | G48: 13.43604661 | H48: 17.58720627 | I48: 21.73836593 | J48: 25.88952559
D49: Other | E49: 0 | F49: 0 | G49: 0 | H49: 0 | I49: 0 | J49: 0
C50: Other Electric | E50: 36.36646652 | F50: 42.78407825 | G50: 59.52516366 | H50: 76.26624907 | I50: 93.00733448 | J50: 109.7484199
C51: Air Conditioning | E51: 0 | F51: 0 | G51: 0 | H51: 0 | I51: 0 | J51: 0
C52: Water Heating | D52: Natural Gas | E52: 0 | F52: 0 | G52: 0 | H52: 0 | I52: 0 | J52: 0
D53: Bottled Gas | E53: 0 | F53: 0 | G53: 0 | H53: 0 | I53: 0 | J53: 0
D54: Electric | E54: 30.42453501 | F54: 35.7935706 | G54: 45.6818529 | H54: 55.57013521 | I54: 65.45841751 | J54: 75.34669981
D55: Fuel Oil | E55: 0 | F55: 0 | G55: 0 | H55: 0 | I55: 0 | J55: 0
C56: Water | E56: 55.32883898 | F56: 57.34648776 | G56: 70.79747959 | H56: 90.97396735 | I56: 111.1504551 | J56: 131.3269429
C57: Sewer | E57: 24.1430946 | F57: 25.95121623 | G57: 38.00536038 | H57: 56.08657661 | I57: 74.16779283 | J57: 92.24900906
A58: AK | B58: 4 | C58: Utility or Service | E58: Monthly Dollar Allowances
E59: 0 BR | F59: 1 BR | G59: 2 BR | H59: 3 BR | I59: 4 BR | J59: 5 BR
C60: Space Heating | D60: Natural Gas | E60: 0 | F60: 0 | G60: 0 | H60: 0 | I60: 0 | J60: 0
D61: Bottled Gas | E61: 0 | F61: 0 | G61: 0 | H61: 0 | I61: 0 | J61: 0
D62: Electric Resistance | E62: 59.09016286 | F62: 69.51783866 | G62: 97.27289887 | H62: 125.0279591 | I62: 152.7830193 | J62: 180.5380795
D63: Electric Heat Pump | E63: 52.75616314 | F63: 62.06607428 | G63: 73.65174148 | H63: 82.75476571 | I63: 91.85778994 | J63: 100.9608142
D64: Fuel Oil | E64: 0 | F64: 0 | G64: 0 | H64: 0 | I64: 0 | J64: 0
C65: Cooking | D65: Natural Gas | E65: 0 | F65: 0 | G65: 0 | H65: 0 | I65: 0 | J65: 0
D66: Bottled Gas | E66: 0 | F66: 0 | G66: 0 | H66: 0 | I66: 0 | J66: 0
D67: Electric | E67: 7.892153909 | F67: 9.284886952 | G67: 13.43604661 | H67: 17.58720627 | I67: 21.73836593 | J67: 25.88952559
D68: Other | E68: 0 | F68: 0 | G68: 0 | H68: 0 | I68: 0 | J68: 0
C69: Other Electric | E69: 29.79421353 | F69: 35.05201592 | G69: 48.76760397 | H69: 62.48319201 | I69: 76.19878006 | J69: 89.9143681
C70: Air Conditioning | E70: 0 | F70: 0 | G70: 0 | H70: 0 | I70: 0 | J70: 0
C71: Water Heating | D71: Natural Gas | E71: 0 | F71: 0 | G71: 0 | H71: 0 | I71: 0 | J71: 0
D72: Bottled Gas | E72: 0 | F72: 0 | G72: 0 | H72: 0 | I72: 0 | J72: 0
D73: Electric | E73: 24.33962801 | F73: 28.63485648 | G73: 36.54548232 | H73: 44.45610816 | I73: 52.36673401 | J73: 60.27735985
D74: Fuel Oil | E74: 0 | F74: 0 | G74: 0 | H74: 0 | I74: 0 | J74: 0
C75: Water | E75: 55.32883898 | F75: 57.34648776 | G75: 70.79747959 | H75: 90.97396735 | I75: 111.1504551 | J75: 131.3269429
C76: Sewer | E76: 24.1430946 | F76: 25.95121623 | G76: 38.00536038 | H76: 56.08657661 | I76: 74.16779283 | J76: 92.24900906
A77: AK | B77: 5 | C77: Utility or Service | E77: Monthly Dollar Allowances
E78: 0 BR | F78: 1 BR | G78: 2 BR | H78: 3 BR | I78: 4 BR | J78: 5 BR
C79: Space Heating | D79: Natural Gas | E79: 0 | F79: 0 | G79: 0 | H79: 0 | I79: 0 | J79: 0
D80: Bottled Gas | E80: 0 | F80: 0 | G80: 0 | H80: 0 | I80: 0 | J80: 0
D81: Electric Resistance | E81: 151.5047016 | F81: 178.2408254 | G81: 184.3593467 | H81: 190.4778679 | I81: 196.5963891 | J81: 202.7149103
D82: Electric Heat Pump | E82: 60.29275788 | F82: 70.93265632 | G82: 84.17341884 | H82: 94.5768751 | I82: 104.9803314 | J82: 115.3837876
D83: Fuel Oil | E83: 0 | F83: 0 | G83: 0 | H83: 0 | I83: 0 | J83: 0
C84: Cooking | D84: Natural Gas | E84: 0 | F84: 0 | G84: 0 | H84: 0 | I84: 0 | J84: 0
D85: Bottled Gas | E85: 0 | F85: 0 | G85: 0 | H85: 0 | I85: 0 | J85: 0
D86: Electric | E86: 7.892153909 | F86: 9.284886952 | G86: 13.43604661 | H86: 17.58720627 | I86: 21.73836593 | J86: 25.88952559
D87: Other | E87: 0 | F87: 0 | G87: 0 | H87: 0 | I87: 0 | J87: 0
C88: Other Electric | E88: 43.8150199 | F88: 51.54708223 | G88: 71.71706465 | H88: 91.88704707 | I88: 112.0570295 | J88: 132.2270119
C89: Air Conditioning | E89: 0 | F89: 0 | G89: 0 | H89: 0 | I89: 0 | J89: 0
C90: Water Heating | D90: Natural Gas | E90: 0 | F90: 0 | G90: 0 | H90: 0 | I90: 0 | J90: 0
D91: Bottled Gas | E91: 0 | F91: 0 | G91: 0 | H91: 0 | I91: 0 | J91: 0
D92: Electric | E92: 30.42453501 | F92: 35.7935706 | G92: 45.6818529 | H92: 55.57013521 | I92: 65.45841751 | J92: 75.34669981
D93: Fuel Oil | E93: 0 | F93: 0 | G93: 0 | H93: 0 | I93: 0 | J93: 0
C94: Water | E94: 55.32883898 | F94: 57.34648776 | G94: 70.79747959 | H94: 90.97396735 | I94: 111.1504551 | J94: 131.3269429
C95: Sewer | E95: 24.1430946 | F95: 25.95121623 | G95: 38.00536038 | H95: 56.08657661 | I95: 74.16779283 | J95: 92.24900906
A96: AL | B96: 1 | C96: Utility or Service | E96: Monthly Dollar Allowances
E97: 0 BR | F97: 1 BR | G97: 2 BR | H97: 3 BR | I97: 4 BR | J97: 5 BR
C98: Space Heating | D98: Natural Gas | E98: 30.16696994 | F98: 35.49055287 | G98: 39.83660866 | H98: 44.18266446 | I98: 48.52872025 | J98: 52.87477605
D99: Bottled Gas | E99: 0 | F99: 0 | G99: 0 | H99: 0 | I99: 0 | J99: 0
D100: Electric Resistance | E100: 23.80001896 | F100: 28.00002231 | G100: 32.08739013 | H100: 36.17475796 | I100: 40.26212578 | J100: 44.34949361
D101: Electric Heat Pump | E101: 13.91389974 | F101: 16.36929381 | G101: 19.42489532 | H101: 21.82572508 | I101: 24.22655484 | J101: 26.6273846
D102: Fuel Oil | E102: 0 | F102: 0 | G102: 0 | H102: 0 | I102: 0 | J102: 0
C103: Cooking | D103: Natural Gas | E103: 4.007980454 | F103: 4.715271122 | G103: 6.823411304 | H103: 8.931551485 | I103: 11.03969167 | J103: 13.14783185
D104: Bottled Gas | E104: 0 | F104: 0 | G104: 0 | H104: 0 | I104: 0 | J104: 0
D105: Electric | E105: 4.708317609 | F105: 5.539197187 | G105: 8.015704659 | H105: 10.49221213 | I105: 12.9687196 | J105: 15.44522707
D106: Other | E106: 0 | F106: 0 | G106: 0 | H106: 0 | I106: 0 | J106: 0
C107: Other Electric | E107: 26.13925579 | F107: 30.75206563 | G107: 42.78511573 | H107: 54.81816584 | I107: 66.85121594 | J107: 78.88426604
C108: Air Conditioning | E108: 0 | F108: 0 | G108: 0 | H108: 0 | I108: 0 | J108: 0
C109: Water Heating | D109: Natural Gas | E109: 10.9761962 | F109: 12.91317201 | G109: 18.65511299 | H109: 24.39705397 | I109: 30.13899495 | J109: 35.88093593
D110: Bottled Gas | E110: 0 | F110: 0 | G110: 0 | H110: 0 | I110: 0 | J110: 0
D111: Electric | E111: 13.77086387 | F111: 16.20101632 | G111: 20.67668667 | H111: 25.15235703 | I111: 29.62802739 | J111: 34.10369775
D112: Fuel Oil | E112: 0 | F112: 0 | G112: 0 | H112: 0 | I112: 0 | J112: 0
C113: Water | E113: 13.90718816 | F113: 14.44909796 | G113: 18.06182993 | H113: 23.48092789 | I113: 28.90002585 | J113: 34.31912381
C114: Sewer | E114: 18.94923324 | F114: 20.10137026 | G114: 27.78228377 | H114: 39.30365403 | I114: 50.8250243 | J114: 62.34639456
A115: AL | B115: 2 | C115: Utility or Service | E115: Monthly Dollar Allowances
E116: 0 BR | F116: 1 BR | G116: 2 BR | H116: 3 BR | I116: 4 BR | J116: 5 BR
C117: Space Heating | D117: Natural Gas | E117: 28.41853461 | F117: 33.43357013 | G117: 37.04041409 | H117: 40.64725805 | I117: 44.25410201 | J117: 47.86094597
D118: Bottled Gas | E118: 0 | F118: 0 | G118: 0 | H118: 0 | I118: 0 | J118: 0
D119: Electric Resistance | E119: 16.48200976 | F119: 19.39059972 | G119: 23.85975465 | H119: 28.32890958 | I119: 32.79806451 | J119: 37.26721944
D120: Electric Heat Pump | E120: 11.82681478 | F120: 13.91389974 | G120: 16.51116103 | H120: 18.55186632 | I120: 20.59257162 | J120: 22.63327691
D121: Fuel Oil | E121: 0 | F121: 0 | G121: 0 | H121: 0 | I121: 0 | J121: 0
C122: Cooking | D122: Natural Gas | E122: 4.007980454 | F122: 4.715271122 | G122: 6.823411304 | H122: 8.931551485 | I122: 11.03969167 | J122: 13.14783185
D123: Bottled Gas | E123: 0 | F123: 0 | G123: 0 | H123: 0 | I123: 0 | J123: 0
D124: Electric | E124: 4.708317609 | F124: 5.539197187 | G124: 8.015704659 | H124: 10.49221213 | I124: 12.9687196 | J124: 15.44522707
D125: Other | E125: 0 | F125: 0 | G125: 0 | H125: 0 | I125: 0 | J125: 0
C126: Other Electric | E126: 22.47975998 | F126: 26.44677644 | G126: 36.79519953 | H126: 47.14362262 | I126: 57.49204571 | J126: 67.8404688
C127: Air Conditioning | E127: 0 | F127: 0 | G127: 0 | H127: 0 | I127: 0 | J127: 0
C128: Water Heating | D128: Natural Gas | E128: 10.9761962 | F128: 12.91317201 | G128: 18.65511299 | H128: 24.39705397 | I128: 30.13899495 | J128: 35.88093593
D129: Bottled Gas | E129: 0 | F129: 0 | G129: 0 | H129: 0 | I129: 0 | J129: 0
D130: Electric | E130: 13.77086387 | F130: 16.20101632 | G130: 20.67668667 | H130: 25.15235703 | I130: 29.62802739 | J130: 34.10369775
D131: Fuel Oil | E131: 0 | F131: 0 | G131: 0 | H131: 0 | I131: 0 | J131: 0
C132: Water | E132: 13.90718816 | F132: 14.44909796 | G132: 18.06182993 | H132: 23.48092789 | I132: 28.90002585 | J132: 34.31912381
C133: Sewer | E133: 18.94923324 | F133: 20.10137026 | G133: 27.78228377 | H133: 39.30365403 | I133: 50.8250243 | J133: 62.34639456
A134: AL | B134: 3 | C134: Utility or Service | E134: Monthly Dollar Allowances
E135: 0 BR | F135: 1 BR | G135: 2 BR | H135: 3 BR | I135: 4 BR | J135: 5 BR
C136: Space Heating | D136: Natural Gas | E136: 31.61814903 | F136: 37.19782239 | G136: 39.61619215 | H136: 42.03456191 | I136: 44.45293166 | J136: 46.87130142
D137: Bottled Gas | E137: 0 | F137: 0 | G137: 0 | H137: 0 | I137: 0 | J137: 0
D138: Electric Resistance | E138: 16.48200976 | F138: 19.39059972 | G138: 23.85975465 | H138: 28.32890958 | I138: 32.79806451 | J138: 37.26721944
D139: Electric Heat Pump | E139: 12.52250977 | F139: 14.73236443 | G139: 17.48240579 | H139: 19.64315257 | I139: 21.80389936 | J139: 23.96464614
D140: Fuel Oil | E140: 0 | F140: 0 | G140: 0 | H140: 0 | I140: 0 | J140: 0
C141: Cooking | D141: Natural Gas | E141: 4.007980454 | F141: 4.715271122 | G141: 6.823411304 | H141: 8.931551485 | I141: 11.03969167 | J141: 13.14783185
D142: Bottled Gas | E142: 0 | F142: 0 | G142: 0 | H142: 0 | I142: 0 | J142: 0
D143: Electric | E143: 4.708317609 | F143: 5.539197187 | G143: 8.015704659 | H143: 10.49221213 | I143: 12.9687196 | J143: 15.44522707
D144: Other | E144: 0 | F144: 0 | G144: 0 | H144: 0 | I144: 0 | J144: 0
C145: Other Electric | E145: 21.6955823 | F145: 25.52421447 | G145: 35.51164606 | H145: 45.49907764 | I145: 55.48650923 | J145: 65.47394081
C146: Air Conditioning | E146: 0 | F146: 0 | G146: 0 | H146: 0 | I146: 0 | J146: 0
C147: Water Heating | D147: Natural Gas | E147: 10.9761962 | F147: 12.91317201 | G147: 18.65511299 | H147: 24.39705397 | I147: 30.13899495 | J147: 35.88093593
D148: Bottled Gas | E148: 0 | F148: 0 | G148: 0 | H148: 0 | I148: 0 | J148: 0
D149: Electric | E149: 13.77086387 | F149: 16.20101632 | G149: 20.67668667 | H149: 25.15235703 | I149: 29.62802739 | J149: 34.10369775
D150: Fuel Oil | E150: 0 | F150: 0 | G150: 0 | H150: 0 | I150: 0 | J150: 0
C151: Water | E151: 13.90718816 | F151: 14.44909796 | G151: 18.06182993 | H151: 23.48092789 | I151: 28.90002585 | J151: 34.31912381
C152: Sewer | E152: 18.94923324 | F152: 20.10137026 | G152: 27.78228377 | H152: 39.30365403 | I152: 50.8250243 | J152: 62.34639456
A153: AL | B153: 4 | C153: Utility or Service | E153: Monthly Dollar Allowances
E154: 0 BR | F154: 1 BR | G154: 2 BR | H154: 3 BR | I154: 4 BR | J154: 5 BR
C155: Space Heating | D155: Natural Gas | E155: 21.11687896 | F155: 24.84338701 | G155: 27.88562606 | H155: 30.92786512 | I155: 33.97010418 | J155: 37.01234323
D156: Bottled Gas | E156: 0 | F156: 0 | G156: 0 | H156: 0 | I156: 0 | J156: 0
D157: Electric Resistance | E157: 11.23321144 | F157: 13.21554288 | G157: 16.84908802 | H157: 20.48263316 | I157: 24.1161783 | J157: 27.74972344
D158: Electric Heat Pump | E158: 9.739729818 | F158: 11.45850567 | G158: 13.59742673 | H158: 15.27800756 | I158: 16.95858839 | J158: 18.63916922
D159: Fuel Oil | E159: 0 | F159: 0 | G159: 0 | H159: 0 | I159: 0 | J159: 0
C160: Cooking | D160: Natural Gas | E160: 4.007980454 | F160: 4.715271122 | G160: 6.823411304 | H160: 8.931551485 | I160: 11.03969167 | J160: 13.14783185
D161: Bottled Gas | E161: 0 | F161: 0 | G161: 0 | H161: 0 | I161: 0 | J161: 0
D162: Electric | E162: 4.708317609 | F162: 5.539197187 | G162: 8.015704659 | H162: 10.49221213 | I162: 12.9687196 | J162: 15.44522707
D163: Other | E163: 0 | F163: 0 | G163: 0 | H163: 0 | I163: 0 | J163: 0
C164: Other Electric | E164: 17.77469393 | F164: 20.91140463 | G164: 29.0938787 | H164: 37.27635277 | I164: 45.45882684 | J164: 53.64130091
C165: Air Conditioning | E165: 0 | F165: 0 | G165: 0 | H165: 0 | I165: 0 | J165: 0
C166: Water Heating | D166: Natural Gas | E166: 8.780956964 | F166: 10.3305376 | G166: 14.92409039 | H166: 19.51764318 | I166: 24.11119596 | J166: 28.70474875
D167: Bottled Gas | E167: 0 | F167: 0 | G167: 0 | H167: 0 | I167: 0 | J167: 0
D168: Electric | E168: 11.0166911 | F168: 12.96081305 | G168: 16.54134934 | H168: 20.12188563 | I168: 23.70242191 | J168: 27.2829582
D169: Fuel Oil | E169: 0 | F169: 0 | G169: 0 | H169: 0 | I169: 0 | J169: 0
C170: Water | E170: 13.90718816 | F170: 14.44909796 | G170: 18.06182993 | H170: 23.48092789 | I170: 28.90002585 | J170: 34.31912381
C171: Sewer | E171: 18.94923324 | F171: 20.10137026 | G171: 27.78228377 | H171: 39.30365403 | I171: 50.8250243 | J171: 62.34639456
A172: AL | B172: 5 | C172: Utility or Service | E172: Monthly Dollar Allowances
E173: 0 BR | F173: 1 BR | G173: 2 BR | H173: 3 BR | I173: 4 BR | J173: 5 BR
C174: Space Heating | D174: Natural Gas | E174: 25.64192445 | F174: 30.16696994 | G174: 33.86111736 | H174: 37.55526479 | I174: 41.24941221 | J174: 44.94355964
D175: Bottled Gas | E175: 0 | F175: 0 | G175: 0 | H175: 0 | I175: 0 | J175: 0
D176: Electric Resistance | E176: 25.62969279 | F176: 30.15257975 | G176: 30.95358407 | H176: 31.75458838 | I176: 32.5555927 | J176: 33.35659702
D177: Electric Heat Pump | E177: 11.13111979 | F177: 13.09543505 | G177: 15.53991626 | H177: 17.46058007 | I177: 19.38124387 | J177: 21.30190768
D178: Fuel Oil | E178: 0 | F178: 0 | G178: 0 | H178: 0 | I178: 0 | J178: 0
C179: Cooking | D179: Natural Gas | E179: 4.007980454 | F179: 4.715271122 | G179: 6.823411304 | H179: 8.931551485 | I179: 11.03969167 | J179: 13.14783185
D180: Bottled Gas | E180: 0 | F180: 0 | G180: 0 | H180: 0 | I180: 0 | J180: 0
D181: Electric | E181: 4.708317609 | F181: 5.539197187 | G181: 8.015704659 | H181: 10.49221213 | I181: 12.9687196 | J181: 15.44522707
D182: Other | E182: 0 | F182: 0 | G182: 0 | H182: 0 | I182: 0 | J182: 0
C183: Other Electric | E183: 26.13925579 | F183: 30.75206563 | G183: 42.78511573 | H183: 54.81816584 | I183: 66.85121594 | J183: 78.88426604
C184: Air Conditioning | E184: 0 | F184: 0 | G184: 0 | H184: 0 | I184: 0 | J184: 0
C185: Water Heating | D185: Natural Gas | E185: 10.9761962 | F185: 12.91317201 | G185: 18.65511299 | H185: 24.39705397 | I185: 30.13899495 | J185: 35.88093593
D186: Bottled Gas | E186: 0 | F186: 0 | G186: 0 | H186: 0 | I186: 0 | J186: 0
D187: Electric | E187: 13.77086387 | F187: 16.20101632 | G187: 20.67668667 | H187: 25.15235703 | I187: 29.62802739 | J187: 34.10369775
D188: Fuel Oil | E188: 0 | F188: 0 | G188: 0 | H188: 0 | I188: 0 | J188: 0
C189: Water | E189: 13.90718816 | F189: 14.44909796 | G189: 18.06182993 | H189: 23.48092789 | I189: 28.90002585 | J189: 34.31912381
C190: Sewer | E190: 18.94923324 | F190: 20.10137026 | G190: 27.78228377 | H190: 39.30365403 | I190: 50.8250243 | J190: 62.34639456
A191: AR | B191: 1 | C191: Utility or Service | E191: Monthly Dollar Allowances
E192: 0 BR | F192: 1 BR | G192: 2 BR | H192: 3 BR | I192: 4 BR | J192: 5 BR
C193: Space Heating | D193: Natural Gas | E193: 25.2460201 | F193: 29.70120012 | G193: 33.8031157 | H193: 37.90503128 | I193: 42.00694686 | J193: 46.10886244
D194: Bottled Gas | E194: 0 | F194: 0 | G194: 0 | H194: 0 | I194: 0 | J194: 0
D195: Electric Resistance | E195: 24.35959818 | F195: 28.6583508 | G195: 33.11364039 | H195: 37.56892999 | I195: 42.02421959 | J195: 46.47950918
D196: Electric Heat Pump | E196: 13.78588408 | F196: 16.21868715 | G196: 19.24617542 | H196: 21.6249162 | I196: 24.00365698 | J196: 26.38239777
D197: Fuel Oil | E197: 0 | F197: 0 | G197: 0 | H197: 0 | I197: 0 | J197: 0
C198: Cooking | D198: Natural Gas | E198: 2.858897153 | F198: 3.363408416 | G198: 4.867147277 | H198: 6.370886139 | I198: 7.874625 | J198: 9.378363861
D199: Bottled Gas | E199: 0 | F199: 0 | G199: 0 | H199: 0 | I199: 0 | J199: 0
D200: Electric | E200: 3.878640114 | F200: 4.563106016 | G200: 6.603215036 | H200: 8.643324055 | I200: 10.68343307 | J200: 12.72354209
... 5217 more rows

Sheet HUD-52667 Form
A1: Print the form shown below for the selected unit type
A2: Create copies of this worksheet for other unit types
A4: Allowances for | D4: U.S. Department of Housing
A5: Tenant-Furnished Utilities | D5: and Urban Development
A6: and Other Services | D6: Office of Public and Indian Housing
A9: Locality | C9: Green Discount | E9: Unit Type | H9: Date (mm/dd/yyyy)
A10: ='Building Characteristics'!B24 -> Birmingham | C10: ='Building Characteristics'!D24 -> None | E10: ='Building Characteristics'!F24 -> Single Family House | H10: ='Building Characteristics'!I24 -> July 31,2015
A11: Utility or Service | C11: Monthly Dollar Allowances
C12: 0 BR | D12: 1 BR | E12: 2 BR | F12: 3 BR | G12: 4 BR | H12: 5 BR
A13: Space Heating | B13: Natural Gas | C13: ='Building Characteristics'!D27+IF('Building Characteristics'!$O$52=1,'Building Characteristics'!$Q$42,0)+IF(AND(SUM('Building Characteristics'!O52:'Building Characteristics'!O62)=0,'Building Characteristics'!Q42>0),'Building Characteristics'!Q42) -> 0 | D13: ='Building Characteristics'!E27+IF('Building Characteristics'!$O$52=1,'Building Characteristics'!$Q$42,0)+IF(AND(SUM('Building Characteristics'!O52:'Building Characteristics'!O62)=0,'Building Characteristics'!Q42>0),'Building Characteristics'!Q42) -> 0 | E13: ='Building Characteristics'!F27+IF('Building Characteristics'!$O$52=1,'Building Characteristics'!$Q$42,0)+IF(AND(SUM('Building Characteristics'!O52:'Building Characteristics'!O62)=0,'Building Characteristics'!Q42>0),'Building Characteristics'!Q42) -> 0 | F13: ='Building Characteristics'!G27+IF('Building Characteristics'!$O$52=1,'Building Characteristics'!$Q$42,0)+IF(AND(SUM('Building Characteristics'!O52:'Building Characteristics'!O62)=0,'Building Characteristics'!Q42>0),'Building Characteristics'!Q42) -> 0 | G13: ='Building Characteristics'!H27+IF('Building Characteristics'!$O$52=1,'Building Characteristics'!$Q$42,0)+IF(AND(SUM('Building Characteristics'!O52:'Building Characteristics'!O62)=0,'Building Characteristics'!Q42>0),'Building Characteristics'!Q42) -> 0 | H13: ='Building Characteristics'!I27+IF('Building Characteristics'!$O$52=1,'Building Characteristics'!$Q$42,0)+IF(AND(SUM('Building Characteristics'!O52:'Building Characteristics'!O62)=0,'Building Characteristics'!Q42>0),'Building Characteristics'!Q42) -> 0
B14: Bottled Gas | C14: ='Building Characteristics'!D28+IF('Building Characteristics'!$Q$52=1,'Building Characteristics'!$Q$44,0)+IF(AND(SUM('Building Characteristics'!Q52:'Building Characteristics'!Q62)=0,'Building Characteristics'!Q44>0),'Building Characteristics'!Q44) -> 0 | D14: ='Building Characteristics'!E28+IF('Building Characteristics'!$Q$52=1,'Building Characteristics'!$Q$44,0)+IF(AND(SUM('Building Characteristics'!Q52:'Building Characteristics'!Q62)=0,'Building Characteristics'!Q44>0),'Building Characteristics'!Q44) -> 0 | E14: ='Building Characteristics'!F28+IF('Building Characteristics'!$Q$52=1,'Building Characteristics'!$Q$44,0)+IF(AND(SUM('Building Characteristics'!Q52:'Building Characteristics'!Q62)=0,'Building Characteristics'!Q44>0),'Building Characteristics'!Q44) -> 0 | F14: ='Building Characteristics'!G28+IF('Building Characteristics'!$Q$52=1,'Building Characteristics'!$Q$44,0)+IF(AND(SUM('Building Characteristics'!Q52:'Building Characteristics'!Q62)=0,'Building Characteristics'!Q44>0),'Building Characteristics'!Q44) -> 0 | G14: ='Building Characteristics'!H28+IF('Building Characteristics'!$Q$52=1,'Building Characteristics'!$Q$44,0)+IF(AND(SUM('Building Characteristics'!Q52:'Building Characteristics'!Q62)=0,'Building Characteristics'!Q44>0),'Building Characteristics'!Q44) -> 0 | H14: ='Building Characteristics'!I28+IF('Building Characteristics'!$Q$52=1,'Building Characteristics'!$Q$44,0)+IF(AND(SUM('Building Characteristics'!Q52:'Building Characteristics'!Q62)=0,'Building Characteristics'!Q44>0),'Building Characteristics'!Q44) -> 0
B15: Electric Resistance | C15: ='Building Characteristics'!D29+IF(AND('Building Characteristics'!$N$52=1,'Building Characteristics'!$C$52="Electric Resistance"),'Building Characteristics'!$Q$41,0)+IF(AND(SUM('Building Characteristics'!N52:'Building Characteristics'!N62)=0,'Building Characteristics'!Q41>0),'Building Characteristics'!Q41) -> 0 | D15: ='Building Characteristics'!E29+IF(AND('Building Characteristics'!$N$52=1,'Building Characteristics'!$C$52="Electric Resistance"),'Building Characteristics'!$Q$41,0)+IF(AND(SUM('Building Characteristics'!N52:'Building Characteristics'!N62)=0,'Building Characteristics'!Q41>0),'Building Characteristics'!Q41) -> 0 | E15: ='Building Characteristics'!F29+IF(AND('Building Characteristics'!$N$52=1,'Building Characteristics'!$C$52="Electric Resistance"),'Building Characteristics'!$Q$41,0)+IF(AND(SUM('Building Characteristics'!N52:'Building Characteristics'!N62)=0,'Building Characteristics'!Q41>0),'Building Characteristics'!Q41) -> 0 | F15: ='Building Characteristics'!G29+IF(AND('Building Characteristics'!$N$52=1,'Building Characteristics'!$C$52="Electric Resistance"),'Building Characteristics'!$Q$41,0)+IF(AND(SUM('Building Characteristics'!N52:'Building Characteristics'!N62)=0,'Building Characteristics'!Q41>0),'Building Characteristics'!Q41) -> 0 | G15: ='Building Characteristics'!H29+IF(AND('Building Characteristics'!$N$52=1,'Building Characteristics'!$C$52="Electric Resistance"),'Building Characteristics'!$Q$41,0)+IF(AND(SUM('Building Characteristics'!N52:'Building Characteristics'!N62)=0,'Building Characteristics'!Q41>0),'Building Characteristics'!Q41) -> 0 | H15: ='Building Characteristics'!I29+IF(AND('Building Characteristics'!$N$52=1,'Building Characteristics'!$C$52="Electric Resistance"),'Building Characteristics'!$Q$41,0)+IF(AND(SUM('Building Characteristics'!N52:'Building Characteristics'!N62)=0,'Building Characteristics'!Q41>0),'Building Characteristics'!Q41) -> 0
B16: Electric Heat Pump | C16: ='Building Characteristics'!D30+IF(AND('Building Characteristics'!$N$52=1,'Building Characteristics'!$C$52="Electric Heat Pump"),'Building Characteristics'!$Q$41,0) -> 0 | D16: ='Building Characteristics'!E30+IF(AND('Building Characteristics'!$N$52=1,'Building Characteristics'!$C$52="Electric Heat Pump"),'Building Characteristics'!$Q$41,0) -> 0 | E16: ='Building Characteristics'!F30+IF(AND('Building Characteristics'!$N$52=1,'Building Characteristics'!$C$52="Electric Heat Pump"),'Building Characteristics'!$Q$41,0) -> 0 | F16: ='Building Characteristics'!G30+IF(AND('Building Characteristics'!$N$52=1,'Building Characteristics'!$C$52="Electric Heat Pump"),'Building Characteristics'!$Q$41,0) -> 0 | G16: ='Building Characteristics'!H30+IF(AND('Building Characteristics'!$N$52=1,'Building Characteristics'!$C$52="Electric Heat Pump"),'Building Characteristics'!$Q$41,0) -> 0 | H16: ='Building Characteristics'!I30+IF(AND('Building Characteristics'!$N$52=1,'Building Characteristics'!$C$52="Electric Heat Pump"),'Building Characteristics'!$Q$41,0) -> 0
B17: Fuel Oil | C17: ='Building Characteristics'!D31+IF('Building Characteristics'!$P$52=1,'Building Characteristics'!$Q$43,0)+IF(AND(SUM('Building Characteristics'!P52:'Building Characteristics'!P62)=0,'Building Characteristics'!Q43>0),'Building Characteristics'!Q43) -> 0 | D17: ='Building Characteristics'!E31+IF('Building Characteristics'!$P$52=1,'Building Characteristics'!$Q$43,0)+IF(AND(SUM('Building Characteristics'!P52:'Building Characteristics'!P62)=0,'Building Characteristics'!Q43>0),'Building Characteristics'!Q43) -> 0 | E17: ='Building Characteristics'!F31+IF('Building Characteristics'!$P$52=1,'Building Characteristics'!$Q$43,0)+IF(AND(SUM('Building Characteristics'!P52:'Building Characteristics'!P62)=0,'Building Characteristics'!Q43>0),'Building Characteristics'!Q43) -> 0 | F17: ='Building Characteristics'!G31+IF('Building Characteristics'!$P$52=1,'Building Characteristics'!$Q$43,0)+IF(AND(SUM('Building Characteristics'!P52:'Building Characteristics'!P62)=0,'Building Characteristics'!Q43>0),'Building Characteristics'!Q43) -> 0 | G17: ='Building Characteristics'!H31+IF('Building Characteristics'!$P$52=1,'Building Characteristics'!$Q$43,0)+IF(AND(SUM('Building Characteristics'!P52:'Building Characteristics'!P62)=0,'Building Characteristics'!Q43>0),'Building Characteristics'!Q43) -> 0 | H17: ='Building Characteristics'!I31+IF('Building Characteristics'!$P$52=1,'Building Characteristics'!$Q$43,0)+IF(AND(SUM('Building Characteristics'!P52:'Building Characteristics'!P62)=0,'Building Characteristics'!Q43>0),'Building Characteristics'!Q43) -> 0
A18: Cooking | B18: Natural Gas | C18: ='Building Characteristics'!D32+IF('Building Characteristics'!$O$53=1,'Building Characteristics'!$Q$42,0) -> 0 | D18: ='Building Characteristics'!E32+IF('Building Characteristics'!$O$53=1,'Building Characteristics'!$Q$42,0) -> 0 | E18: ='Building Characteristics'!F32+IF('Building Characteristics'!$O$53=1,'Building Characteristics'!$Q$42,0) -> 0 | F18: ='Building Characteristics'!G32+IF('Building Characteristics'!$O$53=1,'Building Characteristics'!$Q$42,0) -> 0 | G18: ='Building Characteristics'!H32+IF('Building Characteristics'!$O$53=1,'Building Characteristics'!$Q$42,0) -> 0 | H18: ='Building Characteristics'!I32+IF('Building Characteristics'!$O$53=1,'Building Characteristics'!$Q$42,0) -> 0
B19: Bottled Gas | C19: ='Building Characteristics'!D33+IF('Building Characteristics'!$Q$53=1,'Building Characteristics'!$Q$44,0) -> 0 | D19: ='Building Characteristics'!E33+IF('Building Characteristics'!$Q$53=1,'Building Characteristics'!$Q$44,0) -> 0 | E19: ='Building Characteristics'!F33+IF('Building Characteristics'!$Q$53=1,'Building Characteristics'!$Q$44,0) -> 0 | F19: ='Building Characteristics'!G33+IF('Building Characteristics'!$Q$53=1,'Building Characteristics'!$Q$44,0) -> 0 | G19: ='Building Characteristics'!H33+IF('Building Characteristics'!$Q$53=1,'Building Characteristics'!$Q$44,0) -> 0 | H19: ='Building Characteristics'!I33+IF('Building Characteristics'!$Q$53=1,'Building Characteristics'!$Q$44,0) -> 0
B20: Electric | C20: ='Building Characteristics'!D34+IF('Building Characteristics'!$N$53=1,'Building Characteristics'!$Q$41,0) -> 0 | D20: ='Building Characteristics'!E34+IF('Building Characteristics'!$N$53=1,'Building Characteristics'!$Q$41,0) -> 0 | E20: ='Building Characteristics'!F34+IF('Building Characteristics'!$N$53=1,'Building Characteristics'!$Q$41,0) -> 0 | F20: ='Building Characteristics'!G34+IF('Building Characteristics'!$N$53=1,'Building Characteristics'!$Q$41,0) -> 0 | G20: ='Building Characteristics'!H34+IF('Building Characteristics'!$N$53=1,'Building Characteristics'!$Q$41,0) -> 0 | H20: ='Building Characteristics'!I34+IF('Building Characteristics'!$N$53=1,'Building Characteristics'!$Q$41,0) -> 0
B21: Other | C21: ='Building Characteristics'!D35 -> 0 | D21: ='Building Characteristics'!E35 -> 0 | E21: ='Building Characteristics'!F35 -> 0 | F21: ='Building Characteristics'!G35 -> 0 | G21: ='Building Characteristics'!H35 -> 0 | H21: ='Building Characteristics'!I35 -> 0
A22: Other Electric | C22: ='Building Characteristics'!D36+IF('Building Characteristics'!$N$54=1,'Building Characteristics'!$Q$41,0) -> 0 | D22: ='Building Characteristics'!E36+IF('Building Characteristics'!$N$54=1,'Building Characteristics'!$Q$41,0) -> 0 | E22: ='Building Characteristics'!F36+IF('Building Characteristics'!$N$54=1,'Building Characteristics'!$Q$41,0) -> 0 | F22: ='Building Characteristics'!G36+IF('Building Characteristics'!$N$54=1,'Building Characteristics'!$Q$41,0) -> 0 | G22: ='Building Characteristics'!H36+IF('Building Characteristics'!$N$54=1,'Building Characteristics'!$Q$41,0) -> 0 | H22: ='Building Characteristics'!I36+IF('Building Characteristics'!$N$54=1,'Building Characteristics'!$Q$41,0) -> 0
A23: Air Conditioning | C23: ='Building Characteristics'!D37+IF('Building Characteristics'!$N$55=1,'Building Characteristics'!$Q$41,0) -> 0 | D23: ='Building Characteristics'!E37+IF('Building Characteristics'!$N$55=1,'Building Characteristics'!$Q$41,0) -> 0 | E23: ='Building Characteristics'!F37+IF('Building Characteristics'!$N$55=1,'Building Characteristics'!$Q$41,0) -> 0 | F23: ='Building Characteristics'!G37+IF('Building Characteristics'!$N$55=1,'Building Characteristics'!$Q$41,0) -> 0 | G23: ='Building Characteristics'!H37+IF('Building Characteristics'!$N$55=1,'Building Characteristics'!$Q$41,0) -> 0 | H23: ='Building Characteristics'!I37+IF('Building Characteristics'!$N$55=1,'Building Characteristics'!$Q$41,0) -> 0
A24: Water Heating | B24: Natural Gas | C24: ='Building Characteristics'!D38+IF('Building Characteristics'!$O$56=1,'Building Characteristics'!$Q$42,0) -> 0 | D24: ='Building Characteristics'!E38+IF('Building Characteristics'!$O$56=1,'Building Characteristics'!$Q$42,0) -> 0 | E24: ='Building Characteristics'!F38+IF('Building Characteristics'!$O$56=1,'Building Characteristics'!$Q$42,0) -> 0 | F24: ='Building Characteristics'!G38+IF('Building Characteristics'!$O$56=1,'Building Characteristics'!$Q$42,0) -> 0 | G24: ='Building Characteristics'!H38+IF('Building Characteristics'!$O$56=1,'Building Characteristics'!$Q$42,0) -> 0 | H24: ='Building Characteristics'!I38+IF('Building Characteristics'!$O$56=1,'Building Characteristics'!$Q$42,0) -> 0
B25: Bottled Gas | C25: ='Building Characteristics'!D39+IF('Building Characteristics'!$Q$56=1,'Building Characteristics'!$Q$44,0) -> 0 | D25: ='Building Characteristics'!E39+IF('Building Characteristics'!$Q$56=1,'Building Characteristics'!$Q$44,0) -> 0 | E25: ='Building Characteristics'!F39+IF('Building Characteristics'!$Q$56=1,'Building Characteristics'!$Q$44,0) -> 0 | F25: ='Building Characteristics'!G39+IF('Building Characteristics'!$Q$56=1,'Building Characteristics'!$Q$44,0) -> 0 | G25: ='Building Characteristics'!H39+IF('Building Characteristics'!$Q$56=1,'Building Characteristics'!$Q$44,0) -> 0 | H25: ='Building Characteristics'!I39+IF('Building Characteristics'!$Q$56=1,'Building Characteristics'!$Q$44,0) -> 0
B26: Electric | C26: ='Building Characteristics'!D40+IF('Building Characteristics'!$N$56=1,'Building Characteristics'!$Q$41,0) -> 0 | D26: ='Building Characteristics'!E40+IF('Building Characteristics'!$N$56=1,'Building Characteristics'!$Q$41,0) -> 0 | E26: ='Building Characteristics'!F40+IF('Building Characteristics'!$N$56=1,'Building Characteristics'!$Q$41,0) -> 0 | F26: ='Building Characteristics'!G40+IF('Building Characteristics'!$N$56=1,'Building Characteristics'!$Q$41,0) -> 0 | G26: ='Building Characteristics'!H40+IF('Building Characteristics'!$N$56=1,'Building Characteristics'!$Q$41,0) -> 0 | H26: ='Building Characteristics'!I40+IF('Building Characteristics'!$N$56=1,'Building Characteristics'!$Q$41,0) -> 0
B27: Fuel Oil | C27: ='Building Characteristics'!D41+IF('Building Characteristics'!$P$56=1,'Building Characteristics'!$Q$43,0) -> 0 | D27: ='Building Characteristics'!E41+IF('Building Characteristics'!$P$56=1,'Building Characteristics'!$Q$43,0) -> 0 | E27: ='Building Characteristics'!F41+IF('Building Characteristics'!$P$56=1,'Building Characteristics'!$Q$43,0) -> 0 | F27: ='Building Characteristics'!G41+IF('Building Characteristics'!$P$56=1,'Building Characteristics'!$Q$43,0) -> 0 | G27: ='Building Characteristics'!H41+IF('Building Characteristics'!$P$56=1,'Building Characteristics'!$Q$43,0) -> 0 | H27: ='Building Characteristics'!I41+IF('Building Characteristics'!$P$56=1,'Building Characteristics'!$Q$43,0) -> 0
A28: Water | C28: ='Building Characteristics'!D42+IF('Building Characteristics'!$R$57=1,'Building Characteristics'!$Q$45,0) -> 0 | D28: ='Building Characteristics'!E42+IF('Building Characteristics'!$R$57=1,'Building Characteristics'!$Q$45,0) -> 0 | E28: ='Building Characteristics'!F42+IF('Building Characteristics'!$R$57=1,'Building Characteristics'!$Q$45,0) -> 0 | F28: ='Building Characteristics'!G42+IF('Building Characteristics'!$R$57=1,'Building Characteristics'!$Q$45,0) -> 0 | G28: ='Building Characteristics'!H42+IF('Building Characteristics'!$R$57=1,'Building Characteristics'!$Q$45,0) -> 0 | H28: ='Building Characteristics'!I42+IF('Building Characteristics'!$R$57=1,'Building Characteristics'!$Q$45,0) -> 0
A29: Sewer | C29: ='Building Characteristics'!D43+IF('Building Characteristics'!$S$58=1,'Building Characteristics'!$Q$46,0) -> 0 | D29: ='Building Characteristics'!E43+IF('Building Characteristics'!$S$58=1,'Building Characteristics'!$Q$46,0) -> 0 | E29: ='Building Characteristics'!F43+IF('Building Characteristics'!$S$58=1,'Building Characteristics'!$Q$46,0) -> 0 | F29: ='Building Characteristics'!G43+IF('Building Characteristics'!$S$58=1,'Building Characteristics'!$Q$46,0) -> 0 | G29: ='Building Characteristics'!H43+IF('Building Characteristics'!$S$58=1,'Building Characteristics'!$Q$46,0) -> 0 | H29: ='Building Characteristics'!I43+IF('Building Characteristics'!$S$58=1,'Building Characteristics'!$Q$46,0) -> 0
A30: Trash Collection | C30: ='Building Characteristics'!D44 -> 0 | D30: ='Building Characteristics'!E44 -> 0 | E30: ='Building Characteristics'!F44 -> 0 | F30: ='Building Characteristics'!G44 -> 0 | G30: ='Building Characteristics'!H44 -> 0 | H30: ='Building Characteristics'!I44 -> 0
A31: Range/Microwave | C31: ='Building Characteristics'!D45 -> 0 | D31: ='Building Characteristics'!E45 -> 0 | E31: ='Building Characteristics'!F45 -> 0 | F31: ='Building Characteristics'!G45 -> 0 | G31: ='Building Characteristics'!H45 -> 0 | H31: ='Building Characteristics'!I45 -> 0
A32: Refrigerator | C32: ='Building Characteristics'!D46 -> 0 | D32: ='Building Characteristics'!E46 -> 0 | E32: ='Building Characteristics'!F46 -> 0 | F32: ='Building Characteristics'!G46 -> 0 | G32: ='Building Characteristics'!H46 -> 0 | H32: ='Building Characteristics'!I46 -> 0
A33: Other - specify | C33: ='Building Characteristics'!D47 -> 0 | D33: ='Building Characteristics'!E47 -> 0 | E33: ='Building Characteristics'!F47 -> 0 | F33: ='Building Characteristics'!G47 -> 0 | G33: ='Building Characteristics'!H47 -> 0 | H33: ='Building Characteristics'!I47 -> 0
A34: Projected Family Allowances To be used to compute specific family allowances.
A35: Unit size: | B35: ='Building Characteristics'!C49 -> 0 BR
A37: Utility or Service | B37: Fuel Source | C37: Monthly Allowance
A38: Space Heating | B38: ='Building Characteristics'!C52 -> Not Applicable | C38: =IF(B38="Not Applicable",0,INDEX(C13:H17,MATCH(B38,B13:B17,0),MATCH(B35,C12:H12,0))) -> 0
A39: Cooking | B39: ='Building Characteristics'!C53 -> Not Applicable | C39: =IF(B39="Not Applicable",0,INDEX(C18:H21,MATCH(B39,B18:B21,0),MATCH($B$35,C12:H12,0))) -> 0
A40: Other Electric | B40: ='Building Characteristics'!C54 -> Not Applicable | C40: =IF(B40="Not Applicable",0,LOOKUP($B$35,$C$12:$H$12,C22:H22)) -> 0
A41: Air Conditioning | B41: ='Building Characteristics'!C55 -> Not Applicable | C41: =IF(B41="Not Applicable",0,LOOKUP($B$35,$C$12:$H$12,C23:H23)) -> 0
A42: Water Heating | B42: ='Building Characteristics'!C56 -> Not Applicable | C42: =IF(B42="Not Applicable",0,INDEX(C24:H27,MATCH(B42,B24:B27,0),MATCH($B$35,C12:H12,0))) -> 0
A43: Water | B43: ='Building Characteristics'!C57 -> Not Applicable | C43: =IF(B43="Not Applicable",0,LOOKUP($B$35,$C$12:$H$12,C28:H28)) -> 0
A44: Sewer | B44: ='Building Characteristics'!C58 -> Not Applicable | C44: 0
A45: Trash Collection | B45: ='Building Characteristics'!C59 -> Not Applicable | C45: 0
A46: Range/Microwave | B46: ='Building Characteristics'!C60 -> Not Applicable | C46: 0
A47: Refrigerator | B47: ='Building Characteristics'!C61 -> Not Applicable | C47: 0
A48: Other | B48: ='Building Characteristics'!C62 -> Not Applicable | C48: 0
A50: Total | C50: =SUM(C38:C48) -> 0
H51: Spreadsheet (ver13) based on form HUD-52667 (12/97).
A52: Previous editions are obsolete | H52: ref. Handbook 7420.8
A53: The schedule above has allocated any monthly fees from tariffs into the 1st instance they are selected in the Building Characteristics sheet.
A54: Note: If no utility has been selected monthly allowances can be found in space heating. (For an electric heat source, it is in Electric Resistance.)
A55: Be sure to apply monthly fees correctly to allowances with a different utility profile!

Sheet Compare Schedule - State Avg. (hidden)
A1: =VLOOKUP(structure,state_structure_table,1) -> 1
A2: =MATCH($A$1,state_structure_row, 0) -> 1
B5: State Average Monthly Dollar Allowance Schedules
B6: State averages allowances are HUSM generated, using state average 30-year HDD data from NOAA.gov and 2014 utility rate data from EIA.gov and AWWA.org.
B7: Where an allowance is unavailable, those organizations did not have a 2014 published average annual rate.
B9: State Average Schedule | L9: Deviation from projected utility Schedule
A10: =state -> AL | B10: =INDEX(state_structure_table,$A$2+ROW()-10,COLUMN()) -> Single Family
E11: =INDEX(state_structure_table,$A$2+ROW()-10,COLUMN()+-1) -> 0 BR | F11: 1 BR | G11: 2 BR | H11: 3 BR | I11: 4 BR | J11: 5 BR | N11: 0 BR | O11: 1 BR | P11: 2 BR | Q11: 3 BR | R11: 4 BR | S11: 5 BR
C12: =INDEX(state_lookup,$A$2+ROW()-10,COLUMN()) -> Space Heating | D12: =INDEX(state_lookup,$A$2+ROW()-10,COLUMN()) -> Natural Gas | E12: 30.16696994 | F12: 35.49055287 | G12: 39.83660866 | H12: 44.18266446 | I12: 48.52872025 | J12: 52.87477605 | L12: Space Heating | M12: Natural Gas | N12: =IF(AND('Compare Schedule - State Avg.'!E12>0, 'HUD-52667 Form'!C13>0),('HUD-52667 Form'!C13-'Compare Schedule - State Avg.'!E12)/'Compare Schedule - State Avg.'!E12,"N/A") -> N/A | O12: =IF(AND('Compare Schedule - State Avg.'!F12>0, 'HUD-52667 Form'!D13>0),('HUD-52667 Form'!D13-'Compare Schedule - State Avg.'!F12)/'Compare Schedule - State Avg.'!F12,"N/A") -> N/A | P12: =IF(AND('Compare Schedule - State Avg.'!G12>0, 'HUD-52667 Form'!E13>0),('HUD-52667 Form'!E13-'Compare Schedule - State Avg.'!G12)/'Compare Schedule - State Avg.'!G12,"N/A") -> N/A | Q12: =IF(AND('Compare Schedule - State Avg.'!H12>0, 'HUD-52667 Form'!F13>0),('HUD-52667 Form'!F13-'Compare Schedule - State Avg.'!H12)/'Compare Schedule - State Avg.'!H12,"N/A") -> N/A | R12: =IF(AND('Compare Schedule - State Avg.'!I12>0, 'HUD-52667 Form'!G13>0),('HUD-52667 Form'!G13-'Compare Schedule - State Avg.'!I12)/'Compare Schedule - State Avg.'!I12,"N/A") -> N/A | S12: =IF(AND('Compare Schedule - State Avg.'!J12>0, 'HUD-52667 Form'!H13>0),('HUD-52667 Form'!H13-'Compare Schedule - State Avg.'!J12)/'Compare Schedule - State Avg.'!J12,"N/A") -> N/A
D13: =INDEX(state_lookup,$A$2+ROW()-10,COLUMN()) -> Bottled Gas | E13: 0 | F13: 0 | G13: 0 | H13: 0 | I13: 0 | J13: 0 | M13: Bottled Gas | N13: =IF(AND('Compare Schedule - State Avg.'!E13>0, 'HUD-52667 Form'!C14>0),('HUD-52667 Form'!C14-'Compare Schedule - State Avg.'!E13)/'Compare Schedule - State Avg.'!E13,"N/A") -> N/A | O13: =IF(AND('Compare Schedule - State Avg.'!F13>0, 'HUD-52667 Form'!D14>0),('HUD-52667 Form'!D14-'Compare Schedule - State Avg.'!F13)/'Compare Schedule - State Avg.'!F13,"N/A") -> N/A | P13: =IF(AND('Compare Schedule - State Avg.'!G13>0, 'HUD-52667 Form'!E14>0),('HUD-52667 Form'!E14-'Compare Schedule - State Avg.'!G13)/'Compare Schedule - State Avg.'!G13,"N/A") -> N/A | Q13: =IF(AND('Compare Schedule - State Avg.'!H13>0, 'HUD-52667 Form'!F14>0),('HUD-52667 Form'!F14-'Compare Schedule - State Avg.'!H13)/'Compare Schedule - State Avg.'!H13,"N/A") -> N/A | R13: =IF(AND('Compare Schedule - State Avg.'!I13>0, 'HUD-52667 Form'!G14>0),('HUD-52667 Form'!G14-'Compare Schedule - State Avg.'!I13)/'Compare Schedule - State Avg.'!I13,"N/A") -> N/A | S13: =IF(AND('Compare Schedule - State Avg.'!J13>0, 'HUD-52667 Form'!H14>0),('HUD-52667 Form'!H14-'Compare Schedule - State Avg.'!J13)/'Compare Schedule - State Avg.'!J13,"N/A") -> N/A
D14: Electric Resistance | E14: 23.80001896 | F14: 28.00002231 | G14: 32.08739013 | H14: 36.17475796 | I14: 40.26212578 | J14: 44.34949361 | M14: Electric Resistance | N14: =IF(AND('Compare Schedule - State Avg.'!E14>0, 'HUD-52667 Form'!C15>0),('HUD-52667 Form'!C15-'Compare Schedule - State Avg.'!E14)/'Compare Schedule - State Avg.'!E14,"N/A") -> N/A | O14: =IF(AND('Compare Schedule - State Avg.'!F14>0, 'HUD-52667 Form'!D15>0),('HUD-52667 Form'!D15-'Compare Schedule - State Avg.'!F14)/'Compare Schedule - State Avg.'!F14,"N/A") -> N/A | P14: =IF(AND('Compare Schedule - State Avg.'!G14>0, 'HUD-52667 Form'!E15>0),('HUD-52667 Form'!E15-'Compare Schedule - State Avg.'!G14)/'Compare Schedule - State Avg.'!G14,"N/A") -> N/A | Q14: =IF(AND('Compare Schedule - State Avg.'!H14>0, 'HUD-52667 Form'!F15>0),('HUD-52667 Form'!F15-'Compare Schedule - State Avg.'!H14)/'Compare Schedule - State Avg.'!H14,"N/A") -> N/A | R14: =IF(AND('Compare Schedule - State Avg.'!I14>0, 'HUD-52667 Form'!G15>0),('HUD-52667 Form'!G15-'Compare Schedule - State Avg.'!I14)/'Compare Schedule - State Avg.'!I14,"N/A") -> N/A | S14: =IF(AND('Compare Schedule - State Avg.'!J14>0, 'HUD-52667 Form'!H15>0),('HUD-52667 Form'!H15-'Compare Schedule - State Avg.'!J14)/'Compare Schedule - State Avg.'!J14,"N/A") -> N/A
D15: Electric Heat Pump | E15: 13.91389974 | F15: 16.36929381 | G15: 19.42489532 | H15: 21.82572508 | I15: 24.22655484 | J15: 26.6273846 | M15: Electric Heat Pump | N15: =IF(AND('Compare Schedule - State Avg.'!E15>0, 'HUD-52667 Form'!C16>0),('HUD-52667 Form'!C16-'Compare Schedule - State Avg.'!E15)/'Compare Schedule - State Avg.'!E15,"N/A") -> N/A | O15: =IF(AND('Compare Schedule - State Avg.'!F15>0, 'HUD-52667 Form'!D16>0),('HUD-52667 Form'!D16-'Compare Schedule - State Avg.'!F15)/'Compare Schedule - State Avg.'!F15,"N/A") -> N/A | P15: =IF(AND('Compare Schedule - State Avg.'!G15>0, 'HUD-52667 Form'!E16>0),('HUD-52667 Form'!E16-'Compare Schedule - State Avg.'!G15)/'Compare Schedule - State Avg.'!G15,"N/A") -> N/A | Q15: =IF(AND('Compare Schedule - State Avg.'!H15>0, 'HUD-52667 Form'!F16>0),('HUD-52667 Form'!F16-'Compare Schedule - State Avg.'!H15)/'Compare Schedule - State Avg.'!H15,"N/A") -> N/A | R15: =IF(AND('Compare Schedule - State Avg.'!I15>0, 'HUD-52667 Form'!G16>0),('HUD-52667 Form'!G16-'Compare Schedule - State Avg.'!I15)/'Compare Schedule - State Avg.'!I15,"N/A") -> N/A | S15: =IF(AND('Compare Schedule - State Avg.'!J15>0, 'HUD-52667 Form'!H16>0),('HUD-52667 Form'!H16-'Compare Schedule - State Avg.'!J15)/'Compare Schedule - State Avg.'!J15,"N/A") -> N/A
D16: Fuel Oil | E16: 0 | F16: 0 | G16: 0 | H16: 0 | I16: 0 | J16: 0 | M16: Fuel Oil | N16: =IF(AND('Compare Schedule - State Avg.'!E16>0, 'HUD-52667 Form'!C17>0),('HUD-52667 Form'!C17-'Compare Schedule - State Avg.'!E16)/'Compare Schedule - State Avg.'!E16,"N/A") -> N/A | O16: =IF(AND('Compare Schedule - State Avg.'!F16>0, 'HUD-52667 Form'!D17>0),('HUD-52667 Form'!D17-'Compare Schedule - State Avg.'!F16)/'Compare Schedule - State Avg.'!F16,"N/A") -> N/A | P16: =IF(AND('Compare Schedule - State Avg.'!G16>0, 'HUD-52667 Form'!E17>0),('HUD-52667 Form'!E17-'Compare Schedule - State Avg.'!G16)/'Compare Schedule - State Avg.'!G16,"N/A") -> N/A | Q16: =IF(AND('Compare Schedule - State Avg.'!H16>0, 'HUD-52667 Form'!F17>0),('HUD-52667 Form'!F17-'Compare Schedule - State Avg.'!H16)/'Compare Schedule - State Avg.'!H16,"N/A") -> N/A | R16: =IF(AND('Compare Schedule - State Avg.'!I16>0, 'HUD-52667 Form'!G17>0),('HUD-52667 Form'!G17-'Compare Schedule - State Avg.'!I16)/'Compare Schedule - State Avg.'!I16,"N/A") -> N/A | S16: =IF(AND('Compare Schedule - State Avg.'!J16>0, 'HUD-52667 Form'!H17>0),('HUD-52667 Form'!H17-'Compare Schedule - State Avg.'!J16)/'Compare Schedule - State Avg.'!J16,"N/A") -> N/A
C17: =INDEX(state_lookup,$A$2+ROW()-10,COLUMN()) -> Cooking | D17: Natural Gas | E17: 4.007980454 | F17: 4.715271122 | G17: 6.823411304 | H17: 8.931551485 | I17: 11.03969167 | J17: 13.14783185 | L17: Cooking | M17: Natural Gas | N17: =IF(AND('Compare Schedule - State Avg.'!E17>0, 'HUD-52667 Form'!C18>0),('HUD-52667 Form'!C18-'Compare Schedule - State Avg.'!E17)/'Compare Schedule - State Avg.'!E17,"N/A") -> N/A | O17: =IF(AND('Compare Schedule - State Avg.'!F17>0, 'HUD-52667 Form'!D18>0),('HUD-52667 Form'!D18-'Compare Schedule - State Avg.'!F17)/'Compare Schedule - State Avg.'!F17,"N/A") -> N/A | P17: =IF(AND('Compare Schedule - State Avg.'!G17>0, 'HUD-52667 Form'!E18>0),('HUD-52667 Form'!E18-'Compare Schedule - State Avg.'!G17)/'Compare Schedule - State Avg.'!G17,"N/A") -> N/A | Q17: =IF(AND('Compare Schedule - State Avg.'!H17>0, 'HUD-52667 Form'!F18>0),('HUD-52667 Form'!F18-'Compare Schedule - State Avg.'!H17)/'Compare Schedule - State Avg.'!H17,"N/A") -> N/A | R17: =IF(AND('Compare Schedule - State Avg.'!I17>0, 'HUD-52667 Form'!G18>0),('HUD-52667 Form'!G18-'Compare Schedule - State Avg.'!I17)/'Compare Schedule - State Avg.'!I17,"N/A") -> N/A | S17: =IF(AND('Compare Schedule - State Avg.'!J17>0, 'HUD-52667 Form'!H18>0),('HUD-52667 Form'!H18-'Compare Schedule - State Avg.'!J17)/'Compare Schedule - State Avg.'!J17,"N/A") -> N/A
D18: Bottled Gas | E18: 0 | F18: 0 | G18: 0 | H18: 0 | I18: 0 | J18: 0 | M18: Bottled Gas | N18: =IF(AND('Compare Schedule - State Avg.'!E18>0, 'HUD-52667 Form'!C19>0),('HUD-52667 Form'!C19-'Compare Schedule - State Avg.'!E18)/'Compare Schedule - State Avg.'!E18,"N/A") -> N/A | O18: =IF(AND('Compare Schedule - State Avg.'!F18>0, 'HUD-52667 Form'!D19>0),('HUD-52667 Form'!D19-'Compare Schedule - State Avg.'!F18)/'Compare Schedule - State Avg.'!F18,"N/A") -> N/A | P18: =IF(AND('Compare Schedule - State Avg.'!G18>0, 'HUD-52667 Form'!E19>0),('HUD-52667 Form'!E19-'Compare Schedule - State Avg.'!G18)/'Compare Schedule - State Avg.'!G18,"N/A") -> N/A | Q18: =IF(AND('Compare Schedule - State Avg.'!H18>0, 'HUD-52667 Form'!F19>0),('HUD-52667 Form'!F19-'Compare Schedule - State Avg.'!H18)/'Compare Schedule - State Avg.'!H18,"N/A") -> N/A | R18: =IF(AND('Compare Schedule - State Avg.'!I18>0, 'HUD-52667 Form'!G19>0),('HUD-52667 Form'!G19-'Compare Schedule - State Avg.'!I18)/'Compare Schedule - State Avg.'!I18,"N/A") -> N/A | S18: =IF(AND('Compare Schedule - State Avg.'!J18>0, 'HUD-52667 Form'!H19>0),('HUD-52667 Form'!H19-'Compare Schedule - State Avg.'!J18)/'Compare Schedule - State Avg.'!J18,"N/A") -> N/A
D19: Electric | E19: 4.708317609 | F19: 5.539197187 | G19: 8.015704659 | H19: 10.49221213 | I19: 12.9687196 | J19: 15.44522707 | M19: Electric | N19: =IF(AND('Compare Schedule - State Avg.'!E19>0, 'HUD-52667 Form'!C20>0),('HUD-52667 Form'!C20-'Compare Schedule - State Avg.'!E19)/'Compare Schedule - State Avg.'!E19,"N/A") -> N/A | O19: =IF(AND('Compare Schedule - State Avg.'!F19>0, 'HUD-52667 Form'!D20>0),('HUD-52667 Form'!D20-'Compare Schedule - State Avg.'!F19)/'Compare Schedule - State Avg.'!F19,"N/A") -> N/A | P19: =IF(AND('Compare Schedule - State Avg.'!G19>0, 'HUD-52667 Form'!E20>0),('HUD-52667 Form'!E20-'Compare Schedule - State Avg.'!G19)/'Compare Schedule - State Avg.'!G19,"N/A") -> N/A | Q19: =IF(AND('Compare Schedule - State Avg.'!H19>0, 'HUD-52667 Form'!F20>0),('HUD-52667 Form'!F20-'Compare Schedule - State Avg.'!H19)/'Compare Schedule - State Avg.'!H19,"N/A") -> N/A | R19: =IF(AND('Compare Schedule - State Avg.'!I19>0, 'HUD-52667 Form'!G20>0),('HUD-52667 Form'!G20-'Compare Schedule - State Avg.'!I19)/'Compare Schedule - State Avg.'!I19,"N/A") -> N/A | S19: =IF(AND('Compare Schedule - State Avg.'!J19>0, 'HUD-52667 Form'!H20>0),('HUD-52667 Form'!H20-'Compare Schedule - State Avg.'!J19)/'Compare Schedule - State Avg.'!J19,"N/A") -> N/A
D20: Other | E20: 0 | F20: 0 | G20: 0 | H20: 0 | I20: 0 | J20: 0 | M20: Other | N20: =IF(AND('Compare Schedule - State Avg.'!E20>0, 'HUD-52667 Form'!C21>0),('HUD-52667 Form'!C21-'Compare Schedule - State Avg.'!E20)/'Compare Schedule - State Avg.'!E20,"N/A") -> N/A | O20: =IF(AND('Compare Schedule - State Avg.'!F20>0, 'HUD-52667 Form'!D21>0),('HUD-52667 Form'!D21-'Compare Schedule - State Avg.'!F20)/'Compare Schedule - State Avg.'!F20,"N/A") -> N/A | P20: =IF(AND('Compare Schedule - State Avg.'!G20>0, 'HUD-52667 Form'!E21>0),('HUD-52667 Form'!E21-'Compare Schedule - State Avg.'!G20)/'Compare Schedule - State Avg.'!G20,"N/A") -> N/A | Q20: =IF(AND('Compare Schedule - State Avg.'!H20>0, 'HUD-52667 Form'!F21>0),('HUD-52667 Form'!F21-'Compare Schedule - State Avg.'!H20)/'Compare Schedule - State Avg.'!H20,"N/A") -> N/A | R20: =IF(AND('Compare Schedule - State Avg.'!I20>0, 'HUD-52667 Form'!G21>0),('HUD-52667 Form'!G21-'Compare Schedule - State Avg.'!I20)/'Compare Schedule - State Avg.'!I20,"N/A") -> N/A | S20: =IF(AND('Compare Schedule - State Avg.'!J20>0, 'HUD-52667 Form'!H21>0),('HUD-52667 Form'!H21-'Compare Schedule - State Avg.'!J20)/'Compare Schedule - State Avg.'!J20,"N/A") -> N/A
C21: =INDEX(state_lookup,$A$2+ROW()-10,COLUMN()) -> Other Electric | E21: =INDEX(state_structure_table,$A$2+ROW()-10,COLUMN()+-1) -> 26.13925579 | F21: 30.75206563 | G21: 42.78511573 | H21: 54.81816584 | I21: 66.85121594 | J21: 78.88426604 | L21: Other Electric | N21: =IF(AND('Compare Schedule - State Avg.'!E21>0, 'HUD-52667 Form'!C22>0),('HUD-52667 Form'!C22-'Compare Schedule - State Avg.'!E21)/'Compare Schedule - State Avg.'!E21,"N/A") -> N/A | O21: =IF(AND('Compare Schedule - State Avg.'!F21>0, 'HUD-52667 Form'!D22>0),('HUD-52667 Form'!D22-'Compare Schedule - State Avg.'!F21)/'Compare Schedule - State Avg.'!F21,"N/A") -> N/A | P21: =IF(AND('Compare Schedule - State Avg.'!G21>0, 'HUD-52667 Form'!E22>0),('HUD-52667 Form'!E22-'Compare Schedule - State Avg.'!G21)/'Compare Schedule - State Avg.'!G21,"N/A") -> N/A | Q21: =IF(AND('Compare Schedule - State Avg.'!H21>0, 'HUD-52667 Form'!F22>0),('HUD-52667 Form'!F22-'Compare Schedule - State Avg.'!H21)/'Compare Schedule - State Avg.'!H21,"N/A") -> N/A | R21: =IF(AND('Compare Schedule - State Avg.'!I21>0, 'HUD-52667 Form'!G22>0),('HUD-52667 Form'!G22-'Compare Schedule - State Avg.'!I21)/'Compare Schedule - State Avg.'!I21,"N/A") -> N/A | S21: =IF(AND('Compare Schedule - State Avg.'!J21>0, 'HUD-52667 Form'!H22>0),('HUD-52667 Form'!H22-'Compare Schedule - State Avg.'!J21)/'Compare Schedule - State Avg.'!J21,"N/A") -> N/A
C22: =INDEX(state_lookup,$A$2+ROW()-10,COLUMN()) -> Air Conditioning | E22: 0 | F22: 0 | G22: 0 | H22: 0 | I22: 0 | J22: 0 | L22: Air Conditioning | N22: =IF(AND('Compare Schedule - State Avg.'!E22>0, 'HUD-52667 Form'!C23>0),('HUD-52667 Form'!C23-'Compare Schedule - State Avg.'!E22)/'Compare Schedule - State Avg.'!E22,"N/A") -> N/A | O22: =IF(AND('Compare Schedule - State Avg.'!F22>0, 'HUD-52667 Form'!D23>0),('HUD-52667 Form'!D23-'Compare Schedule - State Avg.'!F22)/'Compare Schedule - State Avg.'!F22,"N/A") -> N/A | P22: =IF(AND('Compare Schedule - State Avg.'!G22>0, 'HUD-52667 Form'!E23>0),('HUD-52667 Form'!E23-'Compare Schedule - State Avg.'!G22)/'Compare Schedule - State Avg.'!G22,"N/A") -> N/A | Q22: =IF(AND('Compare Schedule - State Avg.'!H22>0, 'HUD-52667 Form'!F23>0),('HUD-52667 Form'!F23-'Compare Schedule - State Avg.'!H22)/'Compare Schedule - State Avg.'!H22,"N/A") -> N/A | R22: =IF(AND('Compare Schedule - State Avg.'!I22>0, 'HUD-52667 Form'!G23>0),('HUD-52667 Form'!G23-'Compare Schedule - State Avg.'!I22)/'Compare Schedule - State Avg.'!I22,"N/A") -> N/A | S22: =IF(AND('Compare Schedule - State Avg.'!J22>0, 'HUD-52667 Form'!H23>0),('HUD-52667 Form'!H23-'Compare Schedule - State Avg.'!J22)/'Compare Schedule - State Avg.'!J22,"N/A") -> N/A
C23: =INDEX(state_lookup,$A$2+ROW()-10,COLUMN()) -> Water Heating | D23: =INDEX(state_lookup,$A$2+ROW()-10,COLUMN()) -> Natural Gas | E23: 10.9761962 | F23: 12.91317201 | G23: 18.65511299 | H23: 24.39705397 | I23: 30.13899495 | J23: 35.88093593 | L23: Water Heating | M23: Natural Gas | N23: =IF(AND('Compare Schedule - State Avg.'!E23>0, 'HUD-52667 Form'!C24>0),('HUD-52667 Form'!C24-'Compare Schedule - State Avg.'!E23)/'Compare Schedule - State Avg.'!E23,"N/A") -> N/A | O23: =IF(AND('Compare Schedule - State Avg.'!F23>0, 'HUD-52667 Form'!D24>0),('HUD-52667 Form'!D24-'Compare Schedule - State Avg.'!F23)/'Compare Schedule - State Avg.'!F23,"N/A") -> N/A | P23: =IF(AND('Compare Schedule - State Avg.'!G23>0, 'HUD-52667 Form'!E24>0),('HUD-52667 Form'!E24-'Compare Schedule - State Avg.'!G23)/'Compare Schedule - State Avg.'!G23,"N/A") -> N/A | Q23: =IF(AND('Compare Schedule - State Avg.'!H23>0, 'HUD-52667 Form'!F24>0),('HUD-52667 Form'!F24-'Compare Schedule - State Avg.'!H23)/'Compare Schedule - State Avg.'!H23,"N/A") -> N/A | R23: =IF(AND('Compare Schedule - State Avg.'!I23>0, 'HUD-52667 Form'!G24>0),('HUD-52667 Form'!G24-'Compare Schedule - State Avg.'!I23)/'Compare Schedule - State Avg.'!I23,"N/A") -> N/A | S23: =IF(AND('Compare Schedule - State Avg.'!J23>0, 'HUD-52667 Form'!H24>0),('HUD-52667 Form'!H24-'Compare Schedule - State Avg.'!J23)/'Compare Schedule - State Avg.'!J23,"N/A") -> N/A
D24: =INDEX(state_lookup,$A$2+ROW()-10,COLUMN()) -> Bottled Gas | E24: 0 | F24: 0 | G24: 0 | H24: 0 | I24: 0 | J24: 0 | M24: Bottled Gas | N24: =IF(AND('Compare Schedule - State Avg.'!E24>0, 'HUD-52667 Form'!C25>0),('HUD-52667 Form'!C25-'Compare Schedule - State Avg.'!E24)/'Compare Schedule - State Avg.'!E24,"N/A") -> N/A | O24: =IF(AND('Compare Schedule - State Avg.'!F24>0, 'HUD-52667 Form'!D25>0),('HUD-52667 Form'!D25-'Compare Schedule - State Avg.'!F24)/'Compare Schedule - State Avg.'!F24,"N/A") -> N/A | P24: =IF(AND('Compare Schedule - State Avg.'!G24>0, 'HUD-52667 Form'!E25>0),('HUD-52667 Form'!E25-'Compare Schedule - State Avg.'!G24)/'Compare Schedule - State Avg.'!G24,"N/A") -> N/A | Q24: =IF(AND('Compare Schedule - State Avg.'!H24>0, 'HUD-52667 Form'!F25>0),('HUD-52667 Form'!F25-'Compare Schedule - State Avg.'!H24)/'Compare Schedule - State Avg.'!H24,"N/A") -> N/A | R24: =IF(AND('Compare Schedule - State Avg.'!I24>0, 'HUD-52667 Form'!G25>0),('HUD-52667 Form'!G25-'Compare Schedule - State Avg.'!I24)/'Compare Schedule - State Avg.'!I24,"N/A") -> N/A | S24: =IF(AND('Compare Schedule - State Avg.'!J24>0, 'HUD-52667 Form'!H25>0),('HUD-52667 Form'!H25-'Compare Schedule - State Avg.'!J24)/'Compare Schedule - State Avg.'!J24,"N/A") -> N/A
D25: =INDEX(state_lookup,$A$2+ROW()-10,COLUMN()) -> Electric | E25: 13.77086387 | F25: 16.20101632 | G25: 20.67668667 | H25: 25.15235703 | I25: 29.62802739 | J25: 34.10369775 | M25: Electric | N25: =IF(AND('Compare Schedule - State Avg.'!E25>0, 'HUD-52667 Form'!C26>0),('HUD-52667 Form'!C26-'Compare Schedule - State Avg.'!E25)/'Compare Schedule - State Avg.'!E25,"N/A") -> N/A | O25: =IF(AND('Compare Schedule - State Avg.'!F25>0, 'HUD-52667 Form'!D26>0),('HUD-52667 Form'!D26-'Compare Schedule - State Avg.'!F25)/'Compare Schedule - State Avg.'!F25,"N/A") -> N/A | P25: =IF(AND('Compare Schedule - State Avg.'!G25>0, 'HUD-52667 Form'!E26>0),('HUD-52667 Form'!E26-'Compare Schedule - State Avg.'!G25)/'Compare Schedule - State Avg.'!G25,"N/A") -> N/A | Q25: =IF(AND('Compare Schedule - State Avg.'!H25>0, 'HUD-52667 Form'!F26>0),('HUD-52667 Form'!F26-'Compare Schedule - State Avg.'!H25)/'Compare Schedule - State Avg.'!H25,"N/A") -> N/A | R25: =IF(AND('Compare Schedule - State Avg.'!I25>0, 'HUD-52667 Form'!G26>0),('HUD-52667 Form'!G26-'Compare Schedule - State Avg.'!I25)/'Compare Schedule - State Avg.'!I25,"N/A") -> N/A | S25: =IF(AND('Compare Schedule - State Avg.'!J25>0, 'HUD-52667 Form'!H26>0),('HUD-52667 Form'!H26-'Compare Schedule - State Avg.'!J25)/'Compare Schedule - State Avg.'!J25,"N/A") -> N/A
D26: =INDEX(state_lookup,$A$2+ROW()-10,COLUMN()) -> Fuel Oil | E26: 0 | F26: 0 | G26: 0 | H26: 0 | I26: 0 | J26: 0 | M26: Fuel Oil | N26: =IF(AND('Compare Schedule - State Avg.'!E26>0, 'HUD-52667 Form'!C27>0),('HUD-52667 Form'!C27-'Compare Schedule - State Avg.'!E26)/'Compare Schedule - State Avg.'!E26,"N/A") -> N/A | O26: =IF(AND('Compare Schedule - State Avg.'!F26>0, 'HUD-52667 Form'!D27>0),('HUD-52667 Form'!D27-'Compare Schedule - State Avg.'!F26)/'Compare Schedule - State Avg.'!F26,"N/A") -> N/A | P26: =IF(AND('Compare Schedule - State Avg.'!G26>0, 'HUD-52667 Form'!E27>0),('HUD-52667 Form'!E27-'Compare Schedule - State Avg.'!G26)/'Compare Schedule - State Avg.'!G26,"N/A") -> N/A | Q26: =IF(AND('Compare Schedule - State Avg.'!H26>0, 'HUD-52667 Form'!F27>0),('HUD-52667 Form'!F27-'Compare Schedule - State Avg.'!H26)/'Compare Schedule - State Avg.'!H26,"N/A") -> N/A | R26: =IF(AND('Compare Schedule - State Avg.'!I26>0, 'HUD-52667 Form'!G27>0),('HUD-52667 Form'!G27-'Compare Schedule - State Avg.'!I26)/'Compare Schedule - State Avg.'!I26,"N/A") -> N/A | S26: =IF(AND('Compare Schedule - State Avg.'!J26>0, 'HUD-52667 Form'!H27>0),('HUD-52667 Form'!H27-'Compare Schedule - State Avg.'!J26)/'Compare Schedule - State Avg.'!J26,"N/A") -> N/A
C27: =INDEX(state_lookup,$A$2+ROW()-10,COLUMN()) -> Water | E27: 13.90718816 | F27: 14.44909796 | G27: 18.06182993 | H27: 23.48092789 | I27: 28.90002585 | J27: 34.31912381 | L27: Water | N27: =IF(AND('Compare Schedule - State Avg.'!E27>0, 'HUD-52667 Form'!C28>0),('HUD-52667 Form'!C28-'Compare Schedule - State Avg.'!E27)/'Compare Schedule - State Avg.'!E27,"N/A") -> N/A | O27: =IF(AND('Compare Schedule - State Avg.'!F27>0, 'HUD-52667 Form'!D28>0),('HUD-52667 Form'!D28-'Compare Schedule - State Avg.'!F27)/'Compare Schedule - State Avg.'!F27,"N/A") -> N/A | P27: =IF(AND('Compare Schedule - State Avg.'!G27>0, 'HUD-52667 Form'!E28>0),('HUD-52667 Form'!E28-'Compare Schedule - State Avg.'!G27)/'Compare Schedule - State Avg.'!G27,"N/A") -> N/A | Q27: =IF(AND('Compare Schedule - State Avg.'!H27>0, 'HUD-52667 Form'!F28>0),('HUD-52667 Form'!F28-'Compare Schedule - State Avg.'!H27)/'Compare Schedule - State Avg.'!H27,"N/A") -> N/A | R27: =IF(AND('Compare Schedule - State Avg.'!I27>0, 'HUD-52667 Form'!G28>0),('HUD-52667 Form'!G28-'Compare Schedule - State Avg.'!I27)/'Compare Schedule - State Avg.'!I27,"N/A") -> N/A | S27: =IF(AND('Compare Schedule - State Avg.'!J27>0, 'HUD-52667 Form'!H28>0),('HUD-52667 Form'!H28-'Compare Schedule - State Avg.'!J27)/'Compare Schedule - State Avg.'!J27,"N/A") -> N/A
C28: =INDEX(state_lookup,$A$2+ROW()-10,COLUMN()) -> Sewer | E28: 18.94923324 | F28: 20.10137026 | G28: 27.78228377 | H28: 39.30365403 | I28: 50.8250243 | J28: 62.34639456 | L28: Sewer | N28: =IF(AND('Compare Schedule - State Avg.'!E28>0, 'HUD-52667 Form'!C29>0),('HUD-52667 Form'!C29-'Compare Schedule - State Avg.'!E28)/'Compare Schedule - State Avg.'!E28,"N/A") -> N/A | O28: =IF(AND('Compare Schedule - State Avg.'!F28>0, 'HUD-52667 Form'!D29>0),('HUD-52667 Form'!D29-'Compare Schedule - State Avg.'!F28)/'Compare Schedule - State Avg.'!F28,"N/A") -> N/A | P28: =IF(AND('Compare Schedule - State Avg.'!G28>0, 'HUD-52667 Form'!E29>0),('HUD-52667 Form'!E29-'Compare Schedule - State Avg.'!G28)/'Compare Schedule - State Avg.'!G28,"N/A") -> N/A | Q28: =IF(AND('Compare Schedule - State Avg.'!H28>0, 'HUD-52667 Form'!F29>0),('HUD-52667 Form'!F29-'Compare Schedule - State Avg.'!H28)/'Compare Schedule - State Avg.'!H28,"N/A") -> N/A | R28: =IF(AND('Compare Schedule - State Avg.'!I28>0, 'HUD-52667 Form'!G29>0),('HUD-52667 Form'!G29-'Compare Schedule - State Avg.'!I28)/'Compare Schedule - State Avg.'!I28,"N/A") -> N/A | S28: =IF(AND('Compare Schedule - State Avg.'!J28>0, 'HUD-52667 Form'!H29>0),('HUD-52667 Form'!H29-'Compare Schedule - State Avg.'!J28)/'Compare Schedule - State Avg.'!J28,"N/A") -> N/A
B31: State Averages do not include any Green Discount. | L31: The deviation table represents the percent difference between projected allowances and the state average.
L32: Not all locations are well represented by the state average utility rates or state average climate.
